FILE,Service Area Categorisation,Service Division Categorisation,Responsible Unit,Unit Code,Expenses Type,Expenses Sub Type,Expense  Code,Detailed Expenses Type,Transaction No,Amount,Invoice Date,Capital/Revenue,Supplier Name
2012 - JUL,Central Services,Corporate Management,Chief Exec's Office                     ,A01001,Supplies & Services           ,Grants and Subscriptions      ,DJ04,Subscriptions,1,"15,000.00",7/1/2012,R,CROYDON COUNCIL               
2012 - JUL,Central Services,Fully rechargeable Overheads,Local Involvement Network               ,A01039,Third Party Payments          ,Private Contractors           ,EH10,Contract Payments,2,"8,342.91",7/1/2012,R,MERTON VOLUNTARY SERV COUNCIL 
2012 - JUL,Central Services,Fully rechargeable Overheads,Local Involvement Network               ,A01039,Third Party Payments          ,Private Contractors           ,EH10,Contract Payments,3,"8,342.91",6/6/2012,R,MERTON VOLUNTARY SERV COUNCIL 
2012 - JUL,Cultural Env Reg&Plan Services,Comm. Safety (Crime Reduction),CCTV                                    ,A01200,Supplies & Services           ,Equip Furniture/Materials     ,DA01,Equipment - R & M,4,"3,425.00",7/16/2012,R,EUROVIA INFRASTRUCTURE LTD    
2012 - JUL,Cultural Env Reg&Plan Services,Comm. Safety (Crime Reduction),CCTV                                    ,A01200,Supplies & Services           ,Equip Furniture/Materials     ,DA01,Equipment - R & M,5,"10,146.65",7/16/2012,R,EUROVIA INFRASTRUCTURE LTD    
2012 - JUL,Cultural Env Reg&Plan Services,Comm. Safety (Crime Reduction),CCTV                                    ,A01200,Supplies & Services           ,Comms and Computing           ,DG15,Network Maintenance,6,"5,698.30",4/2/2012,R,BT REDCARE                    
2012 - JUL,Cultural Env Reg&Plan Services,Comm. Safety (Crime Reduction),CCTV                                    ,A01200,Supplies & Services           ,Comms and Computing           ,DG15,Network Maintenance,7,"2,666.92",4/2/2012,R,BT REDCARE                    
2012 - JUL,Cultural Env Reg&Plan Services,Comm. Safety (Crime Reduction),CCTV                                    ,A01200,Supplies & Services           ,Comms and Computing           ,DG15,Network Maintenance,8,744.45,5/1/2012,R,BT REDCARE                    
2012 - JUL,Cultural Env Reg&Plan Services,Comm. Safety (Crime Reduction),CCTV                                    ,A01200,Supplies & Services           ,Comms and Computing           ,DG15,Network Maintenance,9,"5,107.00",3/23/2012,R,BT REDCARE                    
2012 - JUL,Adult Social Care,Other Adult Services,Access and Engagement                   ,A01302,Third Party Payments          ,Private Contractors           ,EH02,Miscellaneous Hired Services,10,"41,048.00",7/1/2012,R,CRI                           
2012 - JUL,Adult Social Care,Other Adult Services,Retention in Drug Treatmt Srvs          ,A01303,Third Party Payments          ,Private Contractors           ,EH02,Miscellaneous Hired Services,11,"2,238.75",9/14/2011,R,ADDACTION KINGSTON            
2012 - JUL,Adult Social Care,Other Adult Services,Retention in Drug Treatmt Srvs          ,A01303,Third Party Payments          ,Private Contractors           ,EH02,Miscellaneous Hired Services,12,"7,462.50",9/14/2011,R,ADDACTION KINGSTON            
2012 - JUL,Adult Social Care,Other Adult Services,Retention in Drug Treatmt Srvs          ,A01303,Third Party Payments          ,Private Contractors           ,EH02,Miscellaneous Hired Services,13,"44,665.36",1/31/2012,R,SW LONDON ST GEORGES NHS TRUST
2012 - JUL,Adult Social Care,Other Adult Services,Retention in Drug Treatmt Srvs          ,A01303,Third Party Payments          ,Private Contractors           ,EH02,Miscellaneous Hired Services,14,"10,114.56",1/31/2012,R,SW LONDON ST GEORGES NHS TRUST
2012 - JUL,Adult Social Care,Other Adult Services,Retention in Drug Treatmt Srvs          ,A01303,Third Party Payments          ,Private Contractors           ,EH02,Miscellaneous Hired Services,15,-997.5,3/31/2012,R,CRANSTOUN DRUG SERVICES       
2012 - JUL,Adult Social Care,Other Adult Services,Retention in Drug Treatmt Srvs          ,A01303,Third Party Payments          ,Private Contractors           ,EH02,Miscellaneous Hired Services,16,"1,661.50",7/5/2012,R,COMM.DRUG SERV.FOR SOUTHLONDON
2012 - JUL,Adult Social Care,Other Adult Services,Retention in Drug Treatmt Srvs          ,A01303,Third Party Payments          ,Private Contractors           ,EH02,Miscellaneous Hired Services,17,"3,666.42",7/5/2012,R,COMM.DRUG SERV.FOR SOUTHLONDON
2012 - JUL,Adult Social Care,Other Adult Services,Retention in Drug Treatmt Srvs          ,A01303,Third Party Payments          ,Private Contractors           ,EH02,Miscellaneous Hired Services,18,"1,732.87",7/5/2012,R,COMM.DRUG SERV.FOR SOUTHLONDON
2012 - JUL,Adult Social Care,Other Adult Services,Retention in Drug Treatmt Srvs          ,A01303,Third Party Payments          ,Private Contractors           ,EH02,Miscellaneous Hired Services,19,"2,934.69",7/5/2012,R,COMM.DRUG SERV.FOR SOUTHLONDON
2012 - JUL,Adult Social Care,Other Adult Services,Retention in Drug Treatmt Srvs          ,A01303,Third Party Payments          ,Private Contractors           ,EH02,Miscellaneous Hired Services,20,"1,550.27",7/5/2012,R,COMM.DRUG SERV.FOR SOUTHLONDON
2012 - JUL,Adult Social Care,Other Adult Services,Retention in Drug Treatmt Srvs          ,A01303,Third Party Payments          ,Private Contractors           ,EH02,Miscellaneous Hired Services,21,"2,870.88",7/5/2012,R,COMM.DRUG SERV.FOR SOUTHLONDON
2012 - JUL,Adult Social Care,Other Adult Services,Retention in Drug Treatmt Srvs          ,A01303,Third Party Payments          ,Private Contractors           ,EH02,Miscellaneous Hired Services,22,"8,953.63",7/5/2012,R,COMM.DRUG SERV.FOR SOUTHLONDON
2012 - JUL,Adult Social Care,Other Adult Services,Retention in Drug Treatmt Srvs          ,A01303,Third Party Payments          ,Private Contractors           ,EH02,Miscellaneous Hired Services,23,"6,600.00",7/15/2012,R,CIDARIS CONSULTING LIMITED    
2012 - JUL,Central Services,Fully rechargeable Overheads,NON-STATUTORY MARKETING & COMM ,A02019,Supplies & Services           ,Prntng Stnry Gen Off Exp      ,DE22,Marketing,24,"1,150.00",6/15/2012,R,JOHN CHAMBERS ASSOCIATES LTD  
2012 - JUL,Central Services,Fully rechargeable Overheads,NON-STATUTORY MARKETING & COMM ,A02019,Supplies & Services           ,Services                      ,DF02,Misc Advertising/Publicity,25,537.5,6/22/2012,R,JCDECAUX UNITED KINGDOM       
2012 - JUL,Central Services,Fully rechargeable Overheads,NON-STATUTORY MARKETING & COMM ,A02019,Supplies & Services           ,Services                      ,DF02,Misc Advertising/Publicity,26,537.5,6/22/2012,R,JCDECAUX UNITED KINGDOM       
2012 - JUL,Central Services,Fully rechargeable Overheads,NON-STATUTORY MARKETING & COMM ,A02019,Supplies & Services           ,Services                      ,DF02,Misc Advertising/Publicity,27,537.5,6/22/2012,R,JCDECAUX UNITED KINGDOM       
2012 - JUL,Central Services,Fully rechargeable Overheads,NON-STATUTORY MARKETING & COMM ,A02019,Supplies & Services           ,Services                      ,DF35,Graphic Design,28,"1,980.00",7/9/2012,R,THE BIG IDEA (MARK BUCKINGHAM)
2012 - JUL,Central Services,Fully rechargeable Overheads,Democratic Services                     ,A02023,Employees                     ,Direct Employee Expenses      ,AA17,Agency Staff & Casual Paymts,29,707.85,6/3/2012,R,REDACTED
2012 - JUL,Central Services,Fully rechargeable Overheads,Democratic Services                     ,A02023,Supplies & Services           ,Clothing Unfrms Laundry       ,DC02,Clothing & Uniforms,30,"1,139.01",5/3/2012,R,TOYE KENNING & SPENCER LTD    
2012 - JUL,Central Services,Fully rechargeable Overheads,Democratic Services                     ,A02023,Supplies & Services           ,Expenses                      ,DH79,Incoming Mayor (May-March),31,740,7/2/2012,R,AAA BADGES OF QUALITY         
2012 - JUL,Central Services,Fully rechargeable Overheads,Press and Public Relations.             ,A02026,Employees                     ,Direct Employee Expenses      ,AA17,Agency Staff & Casual Paymts,32,"1,017.00",6/25/2012,R,HAYS RECRUITING EXPERTS       
2012 - JUL,Central Services,Fully rechargeable Overheads,Press and Public Relations.             ,A02026,Employees                     ,Direct Employee Expenses      ,AA17,Agency Staff & Casual Paymts,33,678,7/5/2012,R,HAYS RECRUITING EXPERTS       
2012 - JUL,Central Services,Fully rechargeable Overheads,Press and Public Relations.             ,A02026,Employees                     ,Direct Employee Expenses      ,AA17,Agency Staff & Casual Paymts,34,"1,130.00",7/19/2012,R,HAYS RECRUITING EXPERTS       
2012 - JUL,Central Services,Fully rechargeable Overheads,Press and Public Relations.             ,A02026,Supplies & Services           ,Grants and Subscriptions      ,DJ04,Subscriptions,35,"5,000.00",6/29/2012,R,MELTWATER (UK) LIMITED        
2012 - JUL,Cultural Env Reg&Plan Services,Culture & Heritage,Mitcham Carnival                        ,A02030,Supplies & Services           ,Services                      ,DF04,Miscellaneous Expenses,36,"1,680.00",6/29/2012,R,MAY GURNEY LTD T/A CARTLEDGE  
2012 - JUL,Cultural Env Reg&Plan Services,Culture & Heritage,Mitcham Carnival                        ,A02030,Supplies & Services           ,Services                      ,DF04,Miscellaneous Expenses,37,-620,5/28/2012,R,REDACTED
2012 - JUL,Cultural Env Reg&Plan Services,Culture & Heritage,Mitcham Carnival                        ,A02030,Supplies & Services           ,Services                      ,DF04,Miscellaneous Expenses,38,620,5/28/2012,R,REDACTED
2012 - JUL,CS -Oth Operating Inc & Expend,Trading A/c Surpluses/Deficits,Prtng Jobs - Ext Agncy                  ,A03041,Supplies & Services           ,Prntng Stnry Gen Off Exp      ,DE01,External Printing,39,757,6/30/2012,R,IMPRESS PRINT SERVICES LTD    
2012 - JUL,CS -Oth Operating Inc & Expend,Trading A/c Surpluses/Deficits,Prtng Jobs - Ext Agncy                  ,A03041,Supplies & Services           ,Prntng Stnry Gen Off Exp      ,DE01,External Printing,40,850,6/29/2012,R,ULTIMATE INVOICE FINANCE LTD  
2012 - JUL,CS -Oth Operating Inc & Expend,Trading A/c Surpluses/Deficits,PrintUnit-HighVolPhtcopying             ,A03042,Third Party Payments          ,Private Contractors           ,EH02,Miscellaneous Hired Services,41,"1,957.85",6/12/2012,R,OCE (UK) LTD                  
2012 - JUL,CS -Oth Operating Inc & Expend,Trading A/c Surpluses/Deficits,PrintUnit-HighVolPhtcopying             ,A03042,Third Party Payments          ,Private Contractors           ,EH02,Miscellaneous Hired Services,42,"3,566.02",6/12/2012,R,OCE (UK) LTD                  
2012 - JUL,CS -Oth Operating Inc & Expend,Trading A/c Surpluses/Deficits,Translation Services                    ,A04060,Supplies & Services           ,Services                      ,DF45,Payment of Sessional workers,43,666,7/10/2012,R,REDACTED
2012 - JUL,Central Services,Fully rechargeable Overheads,Merton Link                             ,A04070,Premises Related Expenditure  ,Cleaning and Domestic Supplies,BH03,Cleaning Services,44,"1,416.73",6/24/2012,R,DYNAMIQ CLEANING LIMITED      
2012 - JUL,Central Services,Fully rechargeable Overheads,Merton Link                             ,A04070,Supplies & Services           ,Comms and Computing           ,DG15,Network Maintenance,45,853.6,7/3/2012,R,NORTHGATE INFORMATION SOLUTION
2012 - JUL,Central Services,Fully rechargeable Overheads,Local Strategic Partnership             ,A04080,Supplies & Services           ,Grants and Subscriptions      ,DJ01,Grants,46,"9,304.00",7/1/2012,R,MERTON VOLUNTARY SERV COUNCIL 
2012 - JUL,Central Services,Gen Grants Bequest & Donations,VOLUNTARY SECTOR COORDINATION   ,A04082,Supplies & Services           ,Grants and Subscriptions      ,DJ01,Grants,47,"16,333.00",7/24/2012,R,MERTON CIL                    
2012 - JUL,Central Services,Fully rechargeable Overheads,CSI MERTON PROJECT                      ,A04084,Supplies & Services           ,Grants and Subscriptions      ,DJ01,Grants,48,"192,620.00",7/2/2012,R,MERTON CITIZEN ADVICE BUREAU  
2012 - JUL,Central Services,Fully rechargeable Overheads,Policy and Strategy                     ,A04086,Employees                     ,Indirect Employee Expenses    ,AB02,Recruitment Adverts,49,"3,627.20",7/12/2012,R,PENNA COMMUNICATIONS (NO 2 A/C
2012 - JUL,Central Services,Fully rechargeable Overheads,Learning and Development                ,B06146,Employees                     ,Indirect Employee Expenses    ,AB56,Internal Training Costs,50,550,4/18/2012,R,OPTIMUM TECHNOLOGY TRANSFER   
2012 - JUL,Central Services,Fully rechargeable Overheads,Learning and Development                ,B06146,Employees                     ,Indirect Employee Expenses    ,AB57,External Training Costs,51,"1,209.32",6/27/2012,R,PERSONAL STRENGTHS (UK) LTD   
2012 - JUL,Central Services,Fully rechargeable Overheads,Learning and Development                ,B06146,Employees                     ,Indirect Employee Expenses    ,AB57,External Training Costs,52,500,6/13/2012,R,GRANT RICHES COMM. CONSUL.    
2012 - JUL,Central Services,Fully rechargeable Overheads,Learning and Development                ,B06146,Employees                     ,Indirect Employee Expenses    ,AB57,External Training Costs,53,"407,902.67",4/27/2012,R,LONDON BOROUGH OF SUTTON      
2012 - JUL,Central Services,Fully rechargeable Overheads,Learning and Development                ,B06146,Employees                     ,Indirect Employee Expenses    ,AB57,External Training Costs,54,760,7/14/2012,R,THE EQUALITY ACADEMY          
2012 - JUL,Central Services,Fully rechargeable Overheads,Learning and Development                ,B06146,Supplies & Services           ,Grants and Subscriptions      ,DJ04,Subscriptions,55,536,6/22/2012,R,CIPD ENTERPRISES LIMITED      
2012 - JUL,CS -Oth Operating Inc & Expend,Trading A/c Surpluses/Deficits,CHAS Scheme                             ,B06150,Supplies & Services           ,Services                      ,DF88,Assessor Fees,56,710,6/19/2012,R,REDACTED
2012 - JUL,CS -Oth Operating Inc & Expend,Trading A/c Surpluses/Deficits,CHAS Scheme                             ,B06150,Supplies & Services           ,Services                      ,DF88,Assessor Fees,57,"1,790.00",6/12/2012,R,WEST WALES SAFETY SERVICES    
2012 - JUL,CS -Oth Operating Inc & Expend,Trading A/c Surpluses/Deficits,CHAS Scheme                             ,B06150,Supplies & Services           ,Services                      ,DF88,Assessor Fees,58,960,6/12/2012,R,REDACTED
2012 - JUL,CS -Oth Operating Inc & Expend,Trading A/c Surpluses/Deficits,CHAS Scheme                             ,B06150,Supplies & Services           ,Services                      ,DF88,Assessor Fees,59,927.15,6/10/2012,R,SELECT SAFETY LIMITED         
2012 - JUL,CS -Oth Operating Inc & Expend,Trading A/c Surpluses/Deficits,CHAS Scheme                             ,B06150,Supplies & Services           ,Services                      ,DF88,Assessor Fees,60,710,6/18/2012,R,REDACTED
2012 - JUL,CS -Oth Operating Inc & Expend,Trading A/c Surpluses/Deficits,CHAS Scheme                             ,B06150,Supplies & Services           ,Services                      ,DF88,Assessor Fees,61,"1,005.00",6/20/2012,R,TERN ASSOCIATES LTD           
2012 - JUL,CS -Oth Operating Inc & Expend,Trading A/c Surpluses/Deficits,CHAS Scheme                             ,B06150,Supplies & Services           ,Services                      ,DF88,Assessor Fees,62,"1,085.00",6/24/2012,R,REDACTED
2012 - JUL,CS -Oth Operating Inc & Expend,Trading A/c Surpluses/Deficits,CHAS Scheme                             ,B06150,Supplies & Services           ,Services                      ,DF88,Assessor Fees,63,920,6/27/2012,R,REDACTED
2012 - JUL,CS -Oth Operating Inc & Expend,Trading A/c Surpluses/Deficits,CHAS Scheme                             ,B06150,Supplies & Services           ,Services                      ,DF88,Assessor Fees,64,685,6/24/2012,R,REDACTED
2012 - JUL,CS -Oth Operating Inc & Expend,Trading A/c Surpluses/Deficits,CHAS Scheme                             ,B06150,Supplies & Services           ,Services                      ,DF88,Assessor Fees,65,630,5/31/2012,R,REDACTED
2012 - JUL,CS -Oth Operating Inc & Expend,Trading A/c Surpluses/Deficits,CHAS Scheme                             ,B06150,Supplies & Services           ,Services                      ,DF88,Assessor Fees,66,"1,900.00",6/30/2012,R,REDACTED
2012 - JUL,CS -Oth Operating Inc & Expend,Trading A/c Surpluses/Deficits,CHAS Scheme                             ,B06150,Supplies & Services           ,Services                      ,DF88,Assessor Fees,67,620,6/30/2012,R,2ND NATURE SAFETY SOLUTIONS UK
2012 - JUL,CS -Oth Operating Inc & Expend,Trading A/c Surpluses/Deficits,CHAS Scheme                             ,B06150,Supplies & Services           ,Services                      ,DF88,Assessor Fees,68,"2,190.00",6/27/2012,R,REDACTED
2012 - JUL,CS -Oth Operating Inc & Expend,Trading A/c Surpluses/Deficits,CHAS Scheme                             ,B06150,Supplies & Services           ,Services                      ,DF88,Assessor Fees,69,"1,220.00",6/29/2012,R,REDACTED
2012 - JUL,CS -Oth Operating Inc & Expend,Trading A/c Surpluses/Deficits,CHAS Scheme                             ,B06150,Supplies & Services           ,Services                      ,DF88,Assessor Fees,70,"2,600.00",5/31/2012,R,HOLLYGLADE LTD T/A BEACONRISK 
2012 - JUL,CS -Oth Operating Inc & Expend,Trading A/c Surpluses/Deficits,CHAS Scheme                             ,B06150,Supplies & Services           ,Services                      ,DF88,Assessor Fees,71,"3,585.00",6/24/2012,R,REDACTED
2012 - JUL,CS -Oth Operating Inc & Expend,Trading A/c Surpluses/Deficits,CHAS Scheme                             ,B06150,Supplies & Services           ,Services                      ,DF88,Assessor Fees,72,675,6/30/2012,R,REDACTED
2012 - JUL,CS -Oth Operating Inc & Expend,Trading A/c Surpluses/Deficits,CHAS Scheme                             ,B06150,Supplies & Services           ,Services                      ,DF88,Assessor Fees,73,"1,195.00",7/2/2012,R,REDACTED
2012 - JUL,CS -Oth Operating Inc & Expend,Trading A/c Surpluses/Deficits,CHAS Scheme                             ,B06150,Supplies & Services           ,Services                      ,DF88,Assessor Fees,74,932,7/1/2012,R,REDACTED
2012 - JUL,CS -Oth Operating Inc & Expend,Trading A/c Surpluses/Deficits,CHAS Scheme                             ,B06150,Supplies & Services           ,Services                      ,DF88,Assessor Fees,75,"1,410.00",7/2/2012,R,MGW SAFETY SERVICES           
2012 - JUL,CS -Oth Operating Inc & Expend,Trading A/c Surpluses/Deficits,CHAS Scheme                             ,B06150,Supplies & Services           ,Services                      ,DF88,Assessor Fees,76,715,7/2/2012,R,REDACTED
2012 - JUL,CS -Oth Operating Inc & Expend,Trading A/c Surpluses/Deficits,CHAS Scheme                             ,B06150,Supplies & Services           ,Services                      ,DF88,Assessor Fees,77,"1,300.00",6/28/2012,R,WOODS CONSULTANCY SERVICES LTD
2012 - JUL,CS -Oth Operating Inc & Expend,Trading A/c Surpluses/Deficits,CHAS Scheme                             ,B06150,Supplies & Services           ,Services                      ,DF88,Assessor Fees,78,"3,190.00",6/30/2012,R,SOUTH EAST HEALTH & SAFETY LTD
2012 - JUL,CS -Oth Operating Inc & Expend,Trading A/c Surpluses/Deficits,CHAS Scheme                             ,B06150,Supplies & Services           ,Services                      ,DF88,Assessor Fees,79,562.3,6/30/2012,R,REDACTED
2012 - JUL,CS -Oth Operating Inc & Expend,Trading A/c Surpluses/Deficits,CHAS Scheme                             ,B06150,Supplies & Services           ,Services                      ,DF88,Assessor Fees,80,615,7/1/2012,R,REDACTED
2012 - JUL,CS -Oth Operating Inc & Expend,Trading A/c Surpluses/Deficits,CHAS Scheme                             ,B06150,Supplies & Services           ,Services                      ,DF88,Assessor Fees,81,"3,400.00",6/30/2012,R,REDACTED
2012 - JUL,CS -Oth Operating Inc & Expend,Trading A/c Surpluses/Deficits,CHAS Scheme                             ,B06150,Supplies & Services           ,Services                      ,DF88,Assessor Fees,82,"1,129.00",7/2/2012,R,REDACTED
2012 - JUL,CS -Oth Operating Inc & Expend,Trading A/c Surpluses/Deficits,CHAS Scheme                             ,B06150,Supplies & Services           ,Services                      ,DF88,Assessor Fees,83,"4,190.00",7/2/2012,R,ARC ASSOCIATES (UK)           
2012 - JUL,CS -Oth Operating Inc & Expend,Trading A/c Surpluses/Deficits,CHAS Scheme                             ,B06150,Supplies & Services           ,Services                      ,DF88,Assessor Fees,84,"2,810.00",6/29/2012,R,ALIMOR SAFETY LTD             
2012 - JUL,CS -Oth Operating Inc & Expend,Trading A/c Surpluses/Deficits,CHAS Scheme                             ,B06150,Supplies & Services           ,Services                      ,DF88,Assessor Fees,85,540,6/30/2012,R,REDACTED
2012 - JUL,CS -Oth Operating Inc & Expend,Trading A/c Surpluses/Deficits,CHAS Scheme                             ,B06150,Supplies & Services           ,Services                      ,DF88,Assessor Fees,86,625,6/30/2012,R,REDACTED
2012 - JUL,CS -Oth Operating Inc & Expend,Trading A/c Surpluses/Deficits,CHAS Scheme                             ,B06150,Supplies & Services           ,Services                      ,DF88,Assessor Fees,87,550,6/30/2012,R,REDACTED
2012 - JUL,CS -Oth Operating Inc & Expend,Trading A/c Surpluses/Deficits,CHAS Scheme                             ,B06150,Supplies & Services           ,Services                      ,DF88,Assessor Fees,88,755,7/3/2012,R,REDACTED
2012 - JUL,CS -Oth Operating Inc & Expend,Trading A/c Surpluses/Deficits,CHAS Scheme                             ,B06150,Supplies & Services           ,Services                      ,DF88,Assessor Fees,89,"2,900.00",6/27/2012,R,REDACTED
2012 - JUL,CS -Oth Operating Inc & Expend,Trading A/c Surpluses/Deficits,CHAS Scheme                             ,B06150,Supplies & Services           ,Services                      ,DF88,Assessor Fees,90,"1,705.00",5/31/2012,R,2ND NATURE SAFETY SOLUTIONS UK
2012 - JUL,CS -Oth Operating Inc & Expend,Trading A/c Surpluses/Deficits,CHAS Scheme                             ,B06150,Supplies & Services           ,Services                      ,DF88,Assessor Fees,91,"1,045.00",7/1/2012,R,REDACTED
2012 - JUL,CS -Oth Operating Inc & Expend,Trading A/c Surpluses/Deficits,CHAS Scheme                             ,B06150,Supplies & Services           ,Services                      ,DF88,Assessor Fees,92,"5,930.00",6/29/2012,R,STALLARD KANE ASSOCIATES LTD  
2012 - JUL,CS -Oth Operating Inc & Expend,Trading A/c Surpluses/Deficits,CHAS Scheme                             ,B06150,Supplies & Services           ,Services                      ,DF88,Assessor Fees,93,641,7/7/2012,R,REDACTED
2012 - JUL,CS -Oth Operating Inc & Expend,Trading A/c Surpluses/Deficits,CHAS Scheme                             ,B06150,Supplies & Services           ,Services                      ,DF88,Assessor Fees,94,837.3,6/3/2012,R,REDACTED
2012 - JUL,CS -Oth Operating Inc & Expend,Trading A/c Surpluses/Deficits,CHAS Scheme                             ,B06150,Supplies & Services           ,Services                      ,DF88,Assessor Fees,95,"2,519.00",7/5/2012,R,REDACTED
2012 - JUL,CS -Oth Operating Inc & Expend,Trading A/c Surpluses/Deficits,CHAS Scheme                             ,B06150,Supplies & Services           ,Services                      ,DF88,Assessor Fees,96,917,7/9/2012,R,REDACTED
2012 - JUL,CS -Oth Operating Inc & Expend,Trading A/c Surpluses/Deficits,CHAS Scheme                             ,B06150,Supplies & Services           ,Services                      ,DF88,Assessor Fees,97,"1,554.00",7/6/2012,R,REDACTED
2012 - JUL,CS -Oth Operating Inc & Expend,Trading A/c Surpluses/Deficits,CHAS Scheme                             ,B06150,Supplies & Services           ,Services                      ,DF88,Assessor Fees,98,"1,037.00",7/3/2012,R,REDACTED
2012 - JUL,CS -Oth Operating Inc & Expend,Trading A/c Surpluses/Deficits,CHAS Scheme                             ,B06150,Supplies & Services           ,Services                      ,DF88,Assessor Fees,99,585,7/7/2012,R,REDACTED
2012 - JUL,CS -Oth Operating Inc & Expend,Trading A/c Surpluses/Deficits,CHAS Scheme                             ,B06150,Supplies & Services           ,Services                      ,DF88,Assessor Fees,100,"1,052.00",7/5/2012,R,WEST WALES SAFETY SERVICES    
2012 - JUL,CS -Oth Operating Inc & Expend,Trading A/c Surpluses/Deficits,CHAS Scheme                             ,B06150,Supplies & Services           ,Services                      ,DF88,Assessor Fees,101,"4,254.00",7/7/2012,R,REDACTED
2012 - JUL,CS -Oth Operating Inc & Expend,Trading A/c Surpluses/Deficits,CHAS Scheme                             ,B06150,Supplies & Services           ,Services                      ,DF88,Assessor Fees,102,671,7/1/2012,R,REDACTED
2012 - JUL,CS -Oth Operating Inc & Expend,Trading A/c Surpluses/Deficits,CHAS Scheme                             ,B06150,Supplies & Services           ,Services                      ,DF88,Assessor Fees,103,"1,299.00",7/12/2012,R,REDACTED
2012 - JUL,CS -Oth Operating Inc & Expend,Trading A/c Surpluses/Deficits,CHAS Scheme                             ,B06150,Supplies & Services           ,Services                      ,DF88,Assessor Fees,104,"1,554.00",7/12/2012,R,REDACTED
2012 - JUL,CS -Oth Operating Inc & Expend,Trading A/c Surpluses/Deficits,CHAS Scheme                             ,B06150,Supplies & Services           ,Services                      ,DF88,Assessor Fees,105,"1,255.00",6/30/2012,R,REDACTED
2012 - JUL,CS -Oth Operating Inc & Expend,Trading A/c Surpluses/Deficits,CHAS Scheme                             ,B06150,Supplies & Services           ,Services                      ,DF88,Assessor Fees,106,"2,042.00",7/4/2012,R,REDACTED
2012 - JUL,CS -Oth Operating Inc & Expend,Trading A/c Surpluses/Deficits,CHAS Scheme                             ,B06150,Supplies & Services           ,Services                      ,DF88,Assessor Fees,107,"1,495.00",7/12/2012,R,REDACTED
2012 - JUL,CS -Oth Operating Inc & Expend,Trading A/c Surpluses/Deficits,CHAS Scheme                             ,B06150,Supplies & Services           ,Services                      ,DF88,Assessor Fees,108,"1,199.00",6/18/2012,R,REDACTED
2012 - JUL,CS -Oth Operating Inc & Expend,Trading A/c Surpluses/Deficits,CHAS Scheme                             ,B06150,Supplies & Services           ,Services                      ,DF88,Assessor Fees,109,755,5/31/2012,R,REDACTED
2012 - JUL,CS -Oth Operating Inc & Expend,Trading A/c Surpluses/Deficits,CHAS Scheme                             ,B06150,Supplies & Services           ,Services                      ,DF88,Assessor Fees,110,"2,553.00",7/3/2012,R,HOLLYGLADE LTD T/A BEACONRISK 
2012 - JUL,CS -Oth Operating Inc & Expend,Trading A/c Surpluses/Deficits,CHAS Scheme                             ,B06150,Supplies & Services           ,Services                      ,DF88,Assessor Fees,111,"1,316.00",7/23/2012,R,TERN ASSOCIATES LTD           
2012 - JUL,CS -Oth Operating Inc & Expend,Trading A/c Surpluses/Deficits,CHAS Scheme                             ,B06150,Supplies & Services           ,Services                      ,DF88,Assessor Fees,112,"2,339.00",7/17/2012,R,REDACTED
2012 - JUL,CS -Oth Operating Inc & Expend,Trading A/c Surpluses/Deficits,CHAS Scheme                             ,B06150,Supplies & Services           ,Services                      ,DF88,Assessor Fees,113,852,7/14/2012,R,REDACTED
2012 - JUL,CS -Oth Operating Inc & Expend,Trading A/c Surpluses/Deficits,CHAS Scheme                             ,B06150,Supplies & Services           ,Services                      ,DF88,Assessor Fees,114,513,7/12/2012,R,REDACTED
2012 - JUL,,,Marlborough Hall Refurbishment          ,CC044AA,New Construction Conversion and Renovation,,B4,Site Works - Contractor,115,"9,784.90",6/11/2012,C,SALTASH ENTERPRISES LTD       
2012 - JUL,,,Marlborough Hall Refurbishment          ,CC044AA,New Construction Conversion and Renovation,,B4,Site Works - Contractor,116,"98,526.00",6/11/2012,C,SALTASH ENTERPRISES LTD       
2012 - JUL,,,CCTV (match funding)                    ,CE002EA,New Construction Conversion and Renovation,,B4,Site Works - Contractor,117,"15,000.00",6/1/2012,C,CARTEL SECURITY SYSTEMS PLC   
2012 - JUL,,,Disabled Facilities Grant DCLG          ,CE004RA,Other Capital Expenditure,,E1,Grants,118,"1,473.72",7/11/2012,C,CBS ADAPTATION                
2012 - JUL,,,Disabled Facilities Grant DCLG          ,CE004RA,Other Capital Expenditure,,E1,Grants,119,"1,339.81",7/11/2012,C,ABLE 2 OCCUP.THERAPY SERV.LTD 
2012 - JUL,,,Disabled Facilities Grant DCLG          ,CE004RA,Other Capital Expenditure,,E1,Grants,120,"5,048.00",7/11/2012,C,TLC STAIRLIFTS                
2012 - JUL,,,Disabled Facilities Grant DCLG          ,CE004RA,Other Capital Expenditure,,E1,Grants,121,516.76,7/11/2012,C,CBS ADAPTATION                
2012 - JUL,,,Disabled Facilities Grant DCLG          ,CE004RA,Other Capital Expenditure,,E1,Grants,122,578.84,7/16/2012,C,ABLE 2 OCCUP.THERAPY SERV.LTD 
2012 - JUL,,,Disabled Facilities Grant DCLG          ,CE004RA,Other Capital Expenditure,,E1,Grants,123,"9,804.40",7/20/2012,C,REDACTED
2012 - JUL,,,Disabled Facilities Grant DCLG          ,CE004RA,Other Capital Expenditure,,E1,Grants,124,"10,095.00",7/20/2012,C,FREEWAY LIFT SERVICES LTD     
2012 - JUL,,,Disabled Facilities Grant DCLG          ,CE004RA,Other Capital Expenditure,,E1,Grants,125,"1,105.42",7/20/2012,C,MORTON FAIRVIEW ELEC SERVICES 
2012 - JUL,,,Disabled Facilities Grant DCLG          ,CE004RA,Other Capital Expenditure,,E1,Grants,126,"2,938.95",7/20/2012,C,IDSYSTEMS                     
2012 - JUL,,,Disabled Facilities Grant DCLG          ,CE004RA,Other Capital Expenditure,,E1,Grants,127,699.12,7/26/2012,C,R E SHELLEY                   
2012 - JUL,,,Disabled Facilities Grant DCLG          ,CE004RA,Other Capital Expenditure,,E1,Grants,128,"6,778.00",7/26/2012,C,ASCENDIT LIFTS LTD            
2012 - JUL,,,Disabled Facilities Grant DCLG          ,CE004RA,Other Capital Expenditure,,E1,Grants,129,"1,637.00",7/26/2012,C,TLC STAIRLIFTS                
2012 - JUL,,,Disabled Facilities Grant DCLG          ,CE004RA,Other Capital Expenditure,,E1,Grants,130,"1,655.00",7/26/2012,C,TLC STAIRLIFTS                
2012 - JUL,,,Parks Investment                        ,CE013SA,New Construction Conversion and Renovation,,B4,Site Works - Contractor,131,"7,893.00",6/28/2012,C,TAYLOR BUILDING COMPANY LTD   
2012 - JUL,,,Parks Investment                        ,CE013SA,New Construction Conversion and Renovation,,B4,Site Works - Contractor,132,643,6/28/2012,C,TAYLOR BUILDING COMPANY LTD   
2012 - JUL,,,Parks Investment                        ,CE013SA,New Construction Conversion and Renovation,,B4,Site Works - Contractor,133,"1,718.00",7/11/2012,C,TAYLOR BUILDING COMPANY LTD   
2012 - JUL,,,Parks Investment                        ,CE013SA,New Construction Conversion and Renovation,,B4,Site Works - Contractor,134,"2,895.00",7/10/2012,C,TIDEY & WEBB LTD              
2012 - JUL,,,Parks Investment                        ,CE013SA,New Construction Conversion and Renovation,,B4,Site Works - Contractor,135,"1,484.00",7/17/2012,C,REDACTED
2012 - JUL,,,Parks Investment                        ,CE013SA,New Construction Conversion and Renovation,,B4,Site Works - Contractor,136,"1,456.00",7/20/2012,C,REDACTED
2012 - JUL,,,Parks Investment                        ,CE013SA,New Construction Conversion and Renovation,,B4,Site Works - Contractor,137,720,7/19/2012,C,MORTON FAIRVIEW ELEC SERVICES 
2012 - JUL,,,Parks Investment                        ,CE013SA,New Construction Conversion and Renovation,,B4,Site Works - Contractor,138,"9,450.00",6/28/2012,C,TAYLOR BUILDING COMPANY LTD   
2012 - JUL,,,Parks Investment                        ,CE013SA,New Construction Conversion and Renovation,,B4,Site Works - Contractor,139,"3,091.00",7/26/2012,C,TAYLOR BUILDING COMPANY LTD   
2012 - JUL,,,Parks Investment                        ,CE013SA,New Construction Conversion and Renovation,,B4,Site Works - Contractor,140,"1,893.00",7/26/2012,C,TAYLOR BUILDING COMPANY LTD   
2012 - JUL,,,Parks Investment                        ,CE013SA,New Construction Conversion and Renovation,,B4,Site Works - Contractor,141,"2,981.00",7/26/2012,C,TAYLOR BUILDING COMPANY LTD   
2012 - JUL,,,Parks Investment                        ,CE013SA,New Construction Conversion and Renovation,,B4,Site Works - Contractor,142,"1,063.31",7/18/2012,C,SOUTHERN LANDSCAPE & CONST LTD
2012 - JUL,,,Parks Investment                        ,CE013SA,New Construction Conversion and Renovation,,B5,Site Works - Suppliers,143,"2,186.00",6/29/2012,C,SIGNWAY SUPPLIES              
2012 - JUL,,,Parks Investment                        ,CE013SA,New Construction Conversion and Renovation,,B5,Site Works - Suppliers,144,"2,386.25",6/29/2012,C,FITZPATRICK WOOLMER DESIGN LTD
2012 - JUL,,,Parks Investment                        ,CE013SA,New Construction Conversion and Renovation,,B5,Site Works - Suppliers,145,"-2,386.25",7/10/2012,C,FITZPATRICK WOOLMER DESIGN LTD
2012 - JUL,,,Borough Roads Maintenance               ,CE026FA,New Construction Conversion and Renovation,,B4,Site Works - Contractor,146,629.17,7/16/2012,C,FM CONWAY LTD                 
2012 - JUL,,,Borough Roads Maintenance               ,CE026FA,New Construction Conversion and Renovation,,B4,Site Works - Contractor,147,"10,000.00",7/16/2012,C,FM CONWAY LTD                 
2012 - JUL,,,Repairs to Footways                     ,CE029FA,New Construction Conversion and Renovation,,B4,Site Works - Contractor,148,"1,708.42",7/16/2012,C,FM CONWAY LTD                 
2012 - JUL,,,Repairs to Footways                     ,CE029FA,New Construction Conversion and Renovation,,B4,Site Works - Contractor,149,"15,000.00",7/16/2012,C,FM CONWAY LTD                 
2012 - JUL,,,Repairs to Footways                     ,CE029FA,New Construction Conversion and Renovation,,B4,Site Works - Contractor,150,"13,000.00",7/16/2012,C,FM CONWAY LTD                 
2012 - JUL,,,Repairs to Footways                     ,CE029FA,New Construction Conversion and Renovation,,B4,Site Works - Contractor,151,"25,000.00",7/16/2012,C,FM CONWAY LTD                 
2012 - JUL,,,Repairs to Footways                     ,CE029FA,New Construction Conversion and Renovation,,B4,Site Works - Contractor,152,"9,260.44",7/16/2012,C,FM CONWAY LTD                 
2012 - JUL,,,Repairs to Footways                     ,CE029FA,New Construction Conversion and Renovation,,B4,Site Works - Contractor,153,"10,000.00",7/16/2012,C,FM CONWAY LTD                 
2012 - JUL,,,Repairs to Footways                     ,CE029FA,New Construction Conversion and Renovation,,B4,Site Works - Contractor,154,"12,592.56",7/16/2012,C,FM CONWAY LTD                 
2012 - JUL,,,Leisure Centre Plant & Machine          ,CE038MA,New Construction Conversion and Renovation,,B1,Design and Supervision - Consultants Fee,155,615,6/18/2012,C,MATERIALS SCIENCE CONS. LTD   
2012 - JUL,,,Leisure Centre Plant & Machine          ,CE038MA,New Construction Conversion and Renovation,,B1,Design and Supervision - Consultants Fee,156,-615,6/18/2012,C,MATERIALS SCIENCE CONS. LTD   
2012 - JUL,,,Leisure Centre Plant & Machine          ,CE038MA,New Construction Conversion and Renovation,,B1,Design and Supervision - Consultants Fee,157,615,5/30/2012,C,MATERIALS SCIENCE CONS. LTD   
2012 - JUL,,,Leisure Centre Plant & Machine          ,CE038MA,New Construction Conversion and Renovation,,B1,Design and Supervision - Consultants Fee,158,"1,300.00",5/30/2012,C,MATERIALS SCIENCE CONS. LTD   
2012 - JUL,,,Leisure Centre Plant & Machine          ,CE038MA,New Construction Conversion and Renovation,,B4,Site Works - Contractor,159,"50,971.07",6/18/2012,C,STAMFORD CONTRACTS LIMITED    
2012 - JUL,,,Street scene enhancements               ,CE066FE,New Construction Conversion and Renovation,,B4,Site Works - Contractor,160,675,4/30/2012,C,NCI SERVICES LTD              
2012 - JUL,,,B574 Town Centre transport imp          ,CE085FJ,New Construction Conversion and Renovation,,B1,Design and Supervision - Consultants Fee,161,"3,598.75",6/15/2012,C,REDACTED
2012 - JUL,,,B574 Town Centre transport imp          ,CE085FJ,New Construction Conversion and Renovation,,B1,Design and Supervision - Consultants Fee,162,"1,395.00",7/9/2012,C,HYDER CONSULTING (UK) LTD     
2012 - JUL,,,B544 Wimbledon Station Access           ,CE085FL,New Construction Conversion and Renovation,,B1,Design and Supervision - Consultants Fee,163,"6,454.21",6/15/2012,C,REDACTED
2012 - JUL,,,B544 Wimbledon Station Access           ,CE085FL,New Construction Conversion and Renovation,,B2,Design and Supervision - Site Surveys,164,"2,380.00",7/2/2012,C,MHC TRAFFIC                   
2012 - JUL,,,Alley Gating Scheme - Fly Tip           ,CE087FA,Other Capital Expenditure,,E1,Grants,165,"1,229.31",7/9/2012,C,RUTLAND GATE                  
2012 - JUL,,,Alley Gating Scheme - Fly Tip           ,CE087FA,Other Capital Expenditure,,E1,Grants,166,"1,229.31",7/25/2012,C,RUTLAND GATE                  
2012 - JUL,,,Alley Gating Scheme - Fly Tip           ,CE087FA,Other Capital Expenditure,,E1,Grants,167,"-1,229.31",7/9/2012,C,RUTLAND GATE                  
2012 - JUL,,,Kitchen Waste Collection Exten          ,CE089EA,Vehicles Plant Equipment and Machinery,,D3,Equipment,168,"22,275.00",3/21/2012,C,MATTIUSSI UK                  
2012 - JUL,,,Kitchen Waste Collection Exten          ,CE089EA,Vehicles Plant Equipment and Machinery,,D3,Equipment,169,"22,275.00",4/30/2012,C,MATTIUSSI UK                  
2012 - JUL,,,Kitchen Waste Collection Exten          ,CE089EA,Vehicles Plant Equipment and Machinery,,D3,Equipment,170,"22,275.00",4/30/2012,C,MATTIUSSI UK                  
2012 - JUL,,,Kitchen Waste Collection Exten          ,CE089EA,Vehicles Plant Equipment and Machinery,,D3,Equipment,171,"22,275.00",4/30/2012,C,MATTIUSSI UK                  
2012 - JUL,,,Kitchen Waste Collection Exten          ,CE089EA,Vehicles Plant Equipment and Machinery,,D3,Equipment,172,"22,275.00",5/31/2012,C,MATTIUSSI UK                  
2012 - JUL,,,Kitchen Waste Collection Exten          ,CE089EA,Vehicles Plant Equipment and Machinery,,D3,Equipment,173,"44,550.00",6/29/2012,C,MATTIUSSI UK                  
2012 - JUL,,,Waste Phase B - Replace RCVs            ,CE092EA,Vehicles Plant Equipment and Machinery,,D1,Vehicles,174,"71,661.62",6/22/2012,C,NTM GB LIMITED                
2012 - JUL,,,Waste Phase B - Replace RCVs            ,CE092EA,Vehicles Plant Equipment and Machinery,,D1,Vehicles,175,"71,661.62",6/22/2012,C,NTM GB LIMITED                
2012 - JUL,,,Strategic corridor Mitcham              ,CE104FB,New Construction Conversion and Renovation,,B4,Site Works - Contractor,176,"2,311.41",6/29/2012,C,MAY GURNEY LTD T/A CARTLEDGE  
2012 - JUL,,,Strategic corridor Mitcham              ,CE104FB,New Construction Conversion and Renovation,,B6,Site Works - Other Costs,177,707,6/22/2012,C,UK POWER NETWORKS (OPERATIONS)
2012 - JUL,,,Kingston/Hartfield Rd StratCor          ,CE104FC,New Construction Conversion and Renovation,,B2,Design and Supervision - Site Surveys,178,"2,780.00",7/11/2012,C,MHC TRAFFIC                   
2012 - JUL,,,Accesibility Programme                  ,CE104FD,New Construction Conversion and Renovation,,B2,Design and Supervision - Site Surveys,179,"1,300.00",7/6/2012,C,REDACTED
2012 - JUL,,,Accesibility Programme                  ,CE104FD,New Construction Conversion and Renovation,,B4,Site Works - Contractor,180,588.44,6/29/2012,C,MAY GURNEY LTD T/A CARTLEDGE  
2012 - JUL,,,20MPH Zones                             ,CE104FF,New Construction Conversion and Renovation,,B2,Design and Supervision - Site Surveys,181,"14,886.00",7/24/2012,C,TMS CONSULTANCY               
2012 - JUL,,,School & Road Safety Campaigns          ,CE104RC,Other Capital Expenditure,,E4,TFL Other,182,"1,875.00",7/4/2012,C,BIKEWIZE MOTORCYCLE TRAINING  
2012 - JUL,,,TFL Slippage - Corridors&Neigh          ,CE104RK,New Construction Conversion and Renovation,,B4,Site Works - Contractor,183,602.29,6/18/2012,C,MAY GURNEY LTD T/A CARTLEDGE  
2012 - JUL,,,TFL Slippage - Corridors&Neigh          ,CE104RK,New Construction Conversion and Renovation,,B4,Site Works - Contractor,184,"17,600.00",7/9/2012,C,FM CONWAY LTD                 
2012 - JUL,,,TFL Slippage - Corridors&Neigh          ,CE104RK,New Construction Conversion and Renovation,,B4,Site Works - Contractor,185,"20,000.00",5/31/2012,C,FM CONWAY LTD                 
2012 - JUL,,,TFL Slippage - Corridors&Neigh          ,CE104RK,New Construction Conversion and Renovation,,B4,Site Works - Contractor,186,"26,603.13",7/16/2012,C,FM CONWAY LTD                 
2012 - JUL,,,Morden Rd-Ravensbury-London Rd          ,CE105FE,New Construction Conversion and Renovation,,B4,Site Works - Contractor,187,"8,000.00",7/16/2012,C,FM CONWAY LTD                 
2012 - JUL,,,Leisure Services Parks&OpenSp           ,CE110SA,New Construction Conversion and Renovation,,B4,Site Works - Contractor,188,"3,680.00",7/11/2012,C,TAYLOR BUILDING COMPANY LTD   
2012 - JUL,,,Leisure Services Parks&OpenSp           ,CE110SA,New Construction Conversion and Renovation,,B4,Site Works - Contractor,189,"1,987.00",7/18/2012,C,TAYLOR BUILDING COMPANY LTD   
2012 - JUL,,,Leisure Services Parks&OpenSp           ,CE110SA,New Construction Conversion and Renovation,,B4,Site Works - Contractor,190,"1,976.00",7/26/2012,C,TAYLOR BUILDING COMPANY LTD   
2012 - JUL,,,Marathon Trust BMX Track                ,CE114SA,New Construction Conversion and Renovation,,B1,Design and Supervision - Consultants Fee,191,"3,306.00",5/30/2012,C,MATERIALS SCIENCE CONS. LTD   
2012 - JUL,,,Universal Cold Busters                  ,CE120RA,Other Capital Expenditure,,E1,Grants,192,504,7/24/2012,C,CLIMATE ENERGY LTD            
2012 - JUL,,,Universal Cold Busters                  ,CE120RA,Other Capital Expenditure,,E1,Grants,193,527.4,7/24/2012,C,CLIMATE ENERGY LTD            
2012 - JUL,,,Universal Cold Busters                  ,CE120RA,Other Capital Expenditure,,E1,Grants,194,"3,222.45",7/24/2012,C,CLIMATE ENERGY SOLUTIONS LTD  
2012 - JUL,,,Universal Cold Busters                  ,CE120RA,Other Capital Expenditure,,E1,Grants,195,"3,017.70",7/24/2012,C,CLAYDON HEATING               
2012 - JUL,,,Empty Homes Grant                       ,CE122RA,Other Capital Expenditure,,E1,Grants,196,"2,700.00",7/11/2012,C,REDACTED
2012 - JUL,,,Empty Homes Grant                       ,CE122RA,Other Capital Expenditure,,E1,Grants,197,"2,950.00",7/11/2012,C,REDACTED
2012 - JUL,,,Empty Homes Grant                       ,CE122RA,Other Capital Expenditure,,E1,Grants,198,"17,250.00",7/24/2012,C,T HARDING BUILDING CONTS      
2012 - JUL,,,Empty Homes Grant                       ,CE122RA,Other Capital Expenditure,,E1,Grants,199,"16,000.00",7/24/2012,C,REDACTED
2012 - JUL,,,Empty Homes Grant                       ,CE122RA,Other Capital Expenditure,,E1,Grants,200,"22,000.00",7/24/2012,C,REDACTED
2012 - JUL,,,Civic Centre refurbishment              ,CF001AB,New Construction Conversion and Renovation,,B4,Site Works - Contractor,201,"13,701.00",6/12/2012,C,LIFESTYLE WINDOW SYSTEMS      
2012 - JUL,,,Civic Centre refurbishment              ,CF001AB,New Construction Conversion and Renovation,,B4,Site Works - Contractor,202,"4,466.40",7/4/2012,C,RITEC DECORATORS LIMITED      
2012 - JUL,,,Civic Centre refurbishment              ,CF001AB,New Construction Conversion and Renovation,,B4,Site Works - Contractor,203,"7,705.76",7/6/2012,C,HART DECORATORS LIMITED       
2012 - JUL,,,Civic Centre refurbishment              ,CF001AB,New Construction Conversion and Renovation,,B4,Site Works - Contractor,204,"2,014.00",11/30/2011,C,EDE'S (U.K.) LTD              
2012 - JUL,,,Civic Centre refurbishment              ,CF001AB,New Construction Conversion and Renovation,,B4,Site Works - Contractor,205,"7,980.00",12/19/2011,C,EDE'S (U.K.) LTD              
2012 - JUL,,,Civic Centre refurbishment              ,CF001AB,Vehicles Plant Equipment and Machinery,,D4,Specialist Furniture,206,"8,656.20",7/10/2012,C,UNIQUE OFFICE SOLUTIONS LTD   
2012 - JUL,,,Civic Centre refurbishment              ,CF001AB,Vehicles Plant Equipment and Machinery,,D4,Specialist Furniture,207,"8,656.20",7/10/2012,C,UNIQUE OFFICE SOLUTIONS LTD   
2012 - JUL,,,Civic Centre refurbishment              ,CF001AB,Vehicles Plant Equipment and Machinery,,D4,Specialist Furniture,208,"3,575.40",7/10/2012,C,UNIQUE OFFICE SOLUTIONS LTD   
2012 - JUL,,,Civic Centre refurbishment              ,CF001AB,Vehicles Plant Equipment and Machinery,,D4,Specialist Furniture,209,"13,074.00",7/10/2012,C,UNIQUE OFFICE SOLUTIONS LTD   
2012 - JUL,,,Civic Centre refurbishment              ,CF001AB,Vehicles Plant Equipment and Machinery,,D4,Specialist Furniture,210,934.5,7/10/2012,C,UNIQUE OFFICE SOLUTIONS LTD   
2012 - JUL,,,Civic Centre refurbishment              ,CF001AB,Vehicles Plant Equipment and Machinery,,D4,Specialist Furniture,211,"2,129.40",7/10/2012,C,UNIQUE OFFICE SOLUTIONS LTD   
2012 - JUL,,,Civic Centre refurbishment              ,CF001AB,Vehicles Plant Equipment and Machinery,,D4,Specialist Furniture,212,"1,348.24",7/10/2012,C,UNIQUE OFFICE SOLUTIONS LTD   
2012 - JUL,,,Civic Centre refurbishment              ,CF001AB,Vehicles Plant Equipment and Machinery,,D4,Specialist Furniture,213,"4,068.75",7/10/2012,C,UNIQUE OFFICE SOLUTIONS LTD   
2012 - JUL,,,Civic Centre refurbishment              ,CF001AB,Vehicles Plant Equipment and Machinery,,D4,Specialist Furniture,214,"15,592.50",7/10/2012,C,UNIQUE OFFICE SOLUTIONS LTD   
2012 - JUL,,,Civic Centre refurbishment              ,CF001AB,Vehicles Plant Equipment and Machinery,,D4,Specialist Furniture,215,"3,147.12",7/10/2012,C,UNIQUE OFFICE SOLUTIONS LTD   
2012 - JUL,,,Civic Centre refurbishment              ,CF001AB,Vehicles Plant Equipment and Machinery,,D4,Specialist Furniture,216,516.6,7/10/2012,C,UNIQUE OFFICE SOLUTIONS LTD   
2012 - JUL,,,Civic Centre refurbishment              ,CF001AB,Vehicles Plant Equipment and Machinery,,D4,Specialist Furniture,217,"5,745.60",7/10/2012,C,UNIQUE OFFICE SOLUTIONS LTD   
2012 - JUL,,,Civic Centre refurbishment              ,CF001AB,Vehicles Plant Equipment and Machinery,,D4,Specialist Furniture,218,"1,854.00",7/10/2012,C,UNIQUE OFFICE SOLUTIONS LTD   
2012 - JUL,,,Civic Centre refurbishment              ,CF001AB,Vehicles Plant Equipment and Machinery,,D4,Specialist Furniture,219,837.65,7/10/2012,C,UNIQUE OFFICE SOLUTIONS LTD   
2012 - JUL,,,Civic Centre refurbishment              ,CF001AB,Vehicles Plant Equipment and Machinery,,D4,Specialist Furniture,220,"2,445.62",7/10/2012,C,UNIQUE OFFICE SOLUTIONS LTD   
2012 - JUL,,,Civic Centre refurbishment              ,CF001AB,Vehicles Plant Equipment and Machinery,,D4,Specialist Furniture,221,"1,946.88",7/10/2012,C,UNIQUE OFFICE SOLUTIONS LTD   
2012 - JUL,,,Civic Centre refurbishment              ,CF001AB,Vehicles Plant Equipment and Machinery,,D4,Specialist Furniture,222,"2,160.02",7/10/2012,C,UNIQUE OFFICE SOLUTIONS LTD   
2012 - JUL,,,Civic Centre refurbishment              ,CF001AB,Vehicles Plant Equipment and Machinery,,D4,Specialist Furniture,223,"4,187.15",7/10/2012,C,UNIQUE OFFICE SOLUTIONS LTD   
2012 - JUL,,,Civic Centre refurbishment              ,CF001AB,Vehicles Plant Equipment and Machinery,,D4,Specialist Furniture,224,919.8,7/13/2012,C,UNIQUE OFFICE SOLUTIONS LTD   
2012 - JUL,,,Civic Centre refurbishment              ,CF001AB,Vehicles Plant Equipment and Machinery,,D4,Specialist Furniture,225,919.8,7/13/2012,C,UNIQUE OFFICE SOLUTIONS LTD   
2012 - JUL,,,Civic Centre refurbishment              ,CF001AB,Vehicles Plant Equipment and Machinery,,D4,Specialist Furniture,226,721.35,7/13/2012,C,UNIQUE OFFICE SOLUTIONS LTD   
2012 - JUL,,,Civic Centre refurbishment              ,CF001AB,Vehicles Plant Equipment and Machinery,,D4,Specialist Furniture,227,721.35,7/13/2012,C,UNIQUE OFFICE SOLUTIONS LTD   
2012 - JUL,,,Civic Centre refurbishment              ,CF001AB,Vehicles Plant Equipment and Machinery,,D4,Specialist Furniture,228,976.5,7/13/2012,C,UNIQUE OFFICE SOLUTIONS LTD   
2012 - JUL,,,CHP Equipment                           ,CF001AE,New Construction Conversion and Renovation,,B4,Site Works - Contractor,229,794.69,3/30/2012,C,FIRST CHOICE FACILITIES PLC   
2012 - JUL,,,Civic C-Fire Alarm Panel                ,CF001AF,New Construction Conversion and Renovation,,B4,Site Works - Contractor,230,"5,789.80",4/30/2012,C,FIRST CHOICE FACILITIES PLC   
2012 - JUL,,,Mer&Sut Cemetry - Electric Wrk          ,CF004RB,New Construction Conversion and Renovation,,B4,Site Works - Contractor,231,"2,467.00",6/28/2012,C,COFELY LIMITED                
2012 - JUL,,,St Ann's - Targeted Capital             ,CS001DA,New Construction Conversion and Renovation,,B1,Design and Supervision - Consultants Fee,232,"9,504.01",6/19/2012,C,CURL LA TOURELLE ARCHITECTS   
2012 - JUL,,,St Ann's - Targeted Capital             ,CS001DA,New Construction Conversion and Renovation,,B1,Design and Supervision - Consultants Fee,233,"55,775.65",6/19/2012,C,CURL LA TOURELLE ARCHITECTS   
2012 - JUL,,,Raynes Park Sports Pavilion             ,CS003CA,New Construction Conversion and Renovation,,B4,Site Works - Contractor,234,"129,000.00",7/4/2012,C,LENGUARD LIMITED              
2012 - JUL,,,Bishop Gilpin new classroom             ,CS003RA,New Construction Conversion and Renovation,,B4,Site Works - Contractor,235,"43,462.50",7/2/2012,C,P R FREDDI LTD                
2012 - JUL,,,Bishop Gilpin new classroom             ,CS003RA,New Construction Conversion and Renovation,,B4,Site Works - Contractor,236,"22,389.60",7/19/2012,C,P R FREDDI LTD                
2012 - JUL,,,Brightwell                              ,CS004AA,New Construction Conversion and Renovation,,B4,Site Works - Contractor,237,"58,163.86",6/28/2012,C,STP SOLUTIONS                 
2012 - JUL,,,Aragon expansion                        ,CS008AA,New Construction Conversion and Renovation,,B1,Design and Supervision - Consultants Fee,238,"10,120.45",6/27/2012,C,EC HARRIS LLP                 
2012 - JUL,,,Aragon expansion                        ,CS008AA,New Construction Conversion and Renovation,,B4,Site Works - Contractor,239,"31,655.06",6/28/2012,C,THOMAS SINDEN CONSTRUCTION LTD
2012 - JUL,,,St Mary's expansion                     ,CS008RA,New Construction Conversion and Renovation,,B1,Design and Supervision - Consultants Fee,240,"3,281.82",7/17/2012,C,ATKINS LIMITED                
2012 - JUL,,,St Mary's expansion                     ,CS008RA,New Construction Conversion and Renovation,,B4,Site Works - Contractor,241,795,3/10/2012,C,MOY CONSTRUCTION CO LTD       
2012 - JUL,,,St Mary's expansion                     ,CS008RA,New Construction Conversion and Renovation,,B4,Site Works - Contractor,242,"9,639.00",3/10/2012,C,MOY CONSTRUCTION CO LTD       
2012 - JUL,,,St Mary's expansion                     ,CS008RA,New Construction Conversion and Renovation,,B4,Site Works - Contractor,243,"99,796.20",6/21/2012,C,R DURTNELL & SONS LTD         
2012 - JUL,,,Pupil Growth - Unallocated              ,CS008SA,New Construction Conversion and Renovation,,B1,Design and Supervision - Consultants Fee,244,"12,068.50",6/27/2012,C,ATKINS LIMITED                
2012 - JUL,,,Pupil Growth - Unallocated              ,CS008SA,New Construction Conversion and Renovation,,B1,Design and Supervision - Consultants Fee,245,641.13,7/16/2012,C,ATKINS LIMITED                
2012 - JUL,,,Pupil Growth - Unallocated              ,CS008SA,New Construction Conversion and Renovation,,B2,Design and Supervision - Site Surveys,246,"7,025.00",6/27/2012,C,ON CENTRE SURVEYS LTD         
2012 - JUL,,,Pupil Growth - Unallocated              ,CS008SA,New Construction Conversion and Renovation,,B2,Design and Supervision - Site Surveys,247,985,7/18/2012,C,REDACTED
2012 - JUL,,,All Saints/ South Wim YCC exp           ,CS008SB,New Construction Conversion and Renovation,,B1,Design and Supervision - Consultants Fee,248,"9,102.47",6/27/2012,C,ATKINS LIMITED                
2012 - JUL,,,All Saints/ South Wim YCC exp           ,CS008SB,New Construction Conversion and Renovation,,B1,Design and Supervision - Consultants Fee,249,"1,967.82",7/4/2012,C,ATKINS LIMITED                
2012 - JUL,,,All Saints/ South Wim YCC exp           ,CS008SB,New Construction Conversion and Renovation,,B1,Design and Supervision - Consultants Fee,250,"16,647.63",7/4/2012,C,ATKINS LIMITED                
2012 - JUL,,,All Saints/ South Wim YCC exp           ,CS008SB,New Construction Conversion and Renovation,,B4,Site Works - Contractor,251,"184,587.30",6/26/2012,C,GEE CONSTRUCTION LTD          
2012 - JUL,,,Benedict expansion                      ,CS009AA,New Construction Conversion and Renovation,,B4,Site Works - Contractor,252,"132,102.64",7/2/2012,C,R DURTNELL & SONS LTD         
2012 - JUL,,,Benedict expansion                      ,CS009AA,Vehicles Plant Equipment and Machinery,,D3,Equipment,253,"8,058.00",7/10/2012,C,SICO EUROPE LIMITED           
2012 - JUL,,,Temp classroom for 5 schools            ,CS009EA,New Construction Conversion and Renovation,,B1,Design and Supervision - Consultants Fee,254,"20,383.00",6/27/2012,C,ATKINS LIMITED                
2012 - JUL,,,Temp classroom for 5 schools            ,CS009EA,New Construction Conversion and Renovation,,B1,Design and Supervision - Consultants Fee,255,"1,209.00",7/16/2012,C,ATKINS LIMITED                
2012 - JUL,,,Hollymount Permanent Expansion          ,CS011AA,New Construction Conversion and Renovation,,B4,Site Works - Contractor,256,"9,000.00",6/7/2012,C,R DURTNELL & SONS LTD         
2012 - JUL,,,Hollymount Permanent Expansion          ,CS011AA,New Construction Conversion and Renovation,,B4,Site Works - Contractor,257,"139,000.00",6/7/2012,C,R DURTNELL & SONS LTD         
2012 - JUL,,,Joseph Hood Permanent Expansn           ,CS012AA,New Construction Conversion and Renovation,,B4,Site Works - Contractor,258,"181,000.00",7/5/2012,C,GEE CONSTRUCTION LTD          
2012 - JUL,,,Garden PCP                              ,CS013AA,New Construction Conversion and Renovation,,B1,Design and Supervision - Consultants Fee,259,"10,837.09",6/27/2012,C,EC HARRIS LLP                 
2012 - JUL,,,Garden PCP                              ,CS013AA,New Construction Conversion and Renovation,,B4,Site Works - Contractor,260,"135,508.40",6/28/2012,C,R DURTNELL & SONS LTD         
2012 - JUL,,,William Morris PCP                      ,CS016AA,New Construction Conversion and Renovation,,B1,Design and Supervision - Consultants Fee,261,548.96,6/27/2012,C,ATKINS LIMITED                
2012 - JUL,,,William Morris PCP                      ,CS016AA,New Construction Conversion and Renovation,,B1,Design and Supervision - Consultants Fee,262,"1,971.44",7/16/2012,C,ATKINS LIMITED                
2012 - JUL,,,Gorringe Park expansion                 ,CS018AB,New Construction Conversion and Renovation,,B4,Site Works - Contractor,263,"131,000.00",7/2/2012,C,GEE CONSTRUCTION LTD          
2012 - JUL,,,Hillcross School Expansion              ,CS020AC,New Construction Conversion and Renovation,,B2,Design and Supervision - Site Surveys,264,975,6/29/2012,C,MK SURVEYS                    
2012 - JUL,,,Hillcross School Expansion              ,CS020AC,New Construction Conversion and Renovation,,B2,Design and Supervision - Site Surveys,265,"1,200.00",6/29/2012,C,MK SURVEYS                    
2012 - JUL,,,Hillcross School Expansion              ,CS020AC,New Construction Conversion and Renovation,,B2,Design and Supervision - Site Surveys,266,"1,200.00",6/29/2012,C,MK SURVEYS                    
2012 - JUL,,,Hillcross School Expansion              ,CS020AC,New Construction Conversion and Renovation,,B4,Site Works - Contractor,267,680,7/2/2012,C,GML CONSTRUCTION LTD          
2012 - JUL,,,Dundonald expansion                     ,CS031AC,New Construction Conversion and Renovation,,B1,Design and Supervision - Consultants Fee,268,500,6/29/2012,C,SYNERGY CPC LLP               
2012 - JUL,,,Dundonald expansion                     ,CS031AC,New Construction Conversion and Renovation,,B2,Design and Supervision - Site Surveys,269,"3,760.50",6/29/2012,C,RSK ENVIRONMENT LTD           
2012 - JUL,,,St Anns - Primary                       ,CS032AB,New Construction Conversion and Renovation,,B4,Site Works - Contractor,270,680.34,7/1/2012,C,PORTAKABIN LIMITED            
2012 - JUL,,,Poplar Permanent Expansion              ,CS034AB,New Construction Conversion and Renovation,,B2,Design and Supervision - Site Surveys,271,666,6/26/2012,C,PENNINGTON CHOICES            
2012 - JUL,,,Poplar - Repairs nursery roof           ,CS034AC,New Construction Conversion and Renovation,,B1,Design and Supervision - Consultants Fee,272,"18,158.00",6/27/2012,C,ATKINS LIMITED                
2012 - JUL,,,Poplar - Repairs nursery roof           ,CS034AC,New Construction Conversion and Renovation,,B1,Design and Supervision - Consultants Fee,273,"1,209.00",7/16/2012,C,ATKINS LIMITED                
2012 - JUL,,,Liberty expansion                       ,CS036AB,New Construction Conversion and Renovation,,B4,Site Works - Contractor,274,"234,724.78",6/22/2012,C,R DURTNELL & SONS LTD         
2012 - JUL,,,Singlegate expansion                    ,CS049AA,New Construction Conversion and Renovation,,B1,Design and Supervision - Consultants Fee,275,"1,012.50",6/29/2012,C,SYNERGY CPC LLP               
2012 - JUL,,,Singlegate expansion                    ,CS049AA,New Construction Conversion and Renovation,,B1,Design and Supervision - Consultants Fee,276,"2,212.50",7/16/2012,C,ATKINS LIMITED                
2012 - JUL,,,Wimbledon Park expansion                ,CS050AA,New Construction Conversion and Renovation,,B1,Design and Supervision - Consultants Fee,277,"2,245.00",6/26/2012,C,RJF LANDSCAPE CONSULTANTS     
2012 - JUL,,,Wimbledon Park expansion                ,CS050AA,New Construction Conversion and Renovation,,B1,Design and Supervision - Consultants Fee,278,"2,400.00",6/29/2012,C,SYNERGY CPC LLP               
2012 - JUL,,,Wimbledon Park expansion                ,CS050AA,New Construction Conversion and Renovation,,B1,Design and Supervision - Consultants Fee,279,"37,223.60",6/19/2012,C,CURL LA TOURELLE ARCHITECTS   
2012 - JUL,,,Wimbledon Park expansion                ,CS050AA,New Construction Conversion and Renovation,,B1,Design and Supervision - Consultants Fee,280,"12,407.87",7/25/2012,C,CURL LA TOURELLE ARCHITECTS   
2012 - JUL,,,Wimbledon Park expansion                ,CS050AA,New Construction Conversion and Renovation,,B2,Design and Supervision - Site Surveys,281,"3,900.00",5/8/2012,C,HALCROW GROUP LTD             
2012 - JUL,,,Youth&Comm centres reprovision          ,CS083SA,New Construction Conversion and Renovation,,B4,Site Works - Contractor,282,"92,962.79",2/3/2012,C,STAMFORD CONTRACTS LIMITED    
2012 - JUL,,,Priory School bulge class               ,CS086RB,New Construction Conversion and Renovation,,B1,Design and Supervision - Consultants Fee,283,"1,007.15",6/27/2012,C,ATKINS LIMITED                
2012 - JUL,,,Connect to N3 Netwrk NHS Spine          ,CT001EA,Other Capital Expenditure,,E3,Miscellaneous Capital Expenditure,284,"1,551.60",3/13/2012,C,PERVASIVE NETWORKS LTD        
2012 - JUL,,,Connect to N3 Netwrk NHS Spine          ,CT001EA,Other Capital Expenditure,,E3,Miscellaneous Capital Expenditure,285,886.68,3/13/2012,C,PERVASIVE NETWORKS LTD        
2012 - JUL,,,Connect to N3 Netwrk NHS Spine          ,CT001EA,Other Capital Expenditure,,E3,Miscellaneous Capital Expenditure,286,"2,860.00",3/13/2012,C,PERVASIVE NETWORKS LTD        
2012 - JUL,,,IT Equipment                            ,CT006EA,Vehicles Plant Equipment and Machinery,,D3,Equipment,287,"29,970.00",6/6/2012,C,COMPUTERLAND                  
2012 - JUL,,,IT Equipment                            ,CT006EA,Vehicles Plant Equipment and Machinery,,D3,Equipment,288,"1,117.80",7/12/2012,C,COMPUTERLAND                  
2012 - JUL,,,IT Equipment                            ,CT006EA,Vehicles Plant Equipment and Machinery,,D3,Equipment,289,"5,291.04",7/19/2012,C,ORGANISED COMPUTER SYSTEMS LTD
2012 - JUL,,,FMIS Version Upgrade                    ,CT007EC,Vehicles Plant Equipment and Machinery,,D5,Software,290,570.67,6/28/2012,C,INFOR GLOBAL SOLUTIONS-FRIMLEY
2012 - JUL,,,Black Diamond Switch Replacemt          ,CT007ET,Vehicles Plant Equipment and Machinery,,D3,Equipment,291,"1,900.00",6/28/2012,C,CISILION LTD                  
2012 - JUL,,,IT Strategy - unallocated               ,CT007EW,Vehicles Plant Equipment and Machinery,,D3,Equipment,292,"13,230.00",7/4/2012,C,INCOM TELECOMMUNICATIONS      
2012 - JUL,,,IT Strategy - unallocated               ,CT007EW,Vehicles Plant Equipment and Machinery,,D3,Equipment,293,"9,100.00",7/10/2012,C,SCALABLE COMMUNICATIONS PLC   
2012 - JUL,,,IT Strategy - unallocated               ,CT007EW,Vehicles Plant Equipment and Machinery,,D3,Equipment,294,"36,600.00",7/10/2012,C,SCALABLE COMMUNICATIONS PLC   
2012 - JUL,,,Stability Networks                      ,CT012ED,Vehicles Plant Equipment and Machinery,,D3,Equipment,295,710.48,7/5/2012,C,ORGANISED COMPUTER SYSTEMS LTD
2012 - JUL,,,Stability Networks                      ,CT012ED,Vehicles Plant Equipment and Machinery,,D3,Equipment,296,"1,849.60",7/5/2012,C,ORGANISED COMPUTER SYSTEMS LTD
2012 - JUL,,,Stability Networks                      ,CT012ED,Vehicles Plant Equipment and Machinery,,D3,Equipment,297,"26,294.00",6/30/2012,C,FORDWAY LTD                   
2012 - JUL,,,Stability Networks                      ,CT012ED,Vehicles Plant Equipment and Machinery,,D3,Equipment,298,"21,880.00",6/30/2012,C,FORDWAY LTD                   
2012 - JUL,,,Stability Networks                      ,CT012ED,Vehicles Plant Equipment and Machinery,,D3,Equipment,299,"9,999.00",7/17/2012,C,VIGLEN LIMITED                
2012 - JUL,Central Services,Local Tax Collection,Local Taxation Services                 ,E02100,Supplies & Services           ,Services                      ,DF09,Miscellaneous Fees,300,"1,487.70",3/30/2010,R,EXPERIAN LTD                  
2012 - JUL,Central Services,Local Tax Collection,Local Taxation Services                 ,E02100,Supplies & Services           ,Comms and Computing           ,DG09,Computer Purchases - Misc,301,"2,625.00",6/29/2012,R,CIVICA UK LIMITED             
2012 - JUL,Central Services,Local Tax Collection,Local Taxation Services                 ,E02100,Third Party Payments          ,Private Contractors           ,EH01,Miscellaneous Agency Services,302,621.12,6/1/2012,R,COMMERCIAL COLLECTION SERVICES
2012 - JUL,Central Services,Local Tax Collection,Local Taxation Services                 ,E02100,Support Services,Corporate Services,GB16,Legal,303,750,6/8/2012,R,WELBECK LAW LLP               
2012 - JUL,Central Services,Local Tax Collection,Local Taxation Bailiffs                 ,E02101,Supplies & Services           ,Services                      ,DF18,Bailiffs' fees,304,508.75,7/5/2012,R,GREASBY'S AUCTION ROOMS       
2012 - JUL,Central Services,Local Tax Collection,Local Taxation Bailiffs                 ,E02101,Supplies & Services           ,Services                      ,DF18,Bailiffs' fees,305,559.5,7/5/2012,R,GREASBY'S AUCTION ROOMS       
2012 - JUL,Central Services,Local Tax Collection,Local Taxation Bailiffs                 ,E02101,Supplies & Services           ,Services                      ,DF18,Bailiffs' fees,306,510,7/17/2012,R,GREASBY'S AUCTION ROOMS       
2012 - JUL,Central Services,Local Tax Collection,Local Taxation Bailiffs                 ,E02101,Supplies & Services           ,Services                      ,DF18,Bailiffs' fees,307,540,7/17/2012,R,GREASBY'S AUCTION ROOMS       
2012 - JUL,Central Services,Local Tax Collection,Local Taxation Bailiffs                 ,E02101,Supplies & Services           ,Services                      ,DF18,Bailiffs' fees,308,570,7/17/2012,R,GREASBY'S AUCTION ROOMS       
2012 - JUL,Central Services,Local Tax Collection,Local Taxation Bailiffs                 ,E02101,Supplies & Services           ,Services                      ,DF18,Bailiffs' fees,309,510,7/17/2012,R,GREASBY'S AUCTION ROOMS       
2012 - JUL,Central Services,Local Tax Collection,Local Taxation Bailiffs                 ,E02101,Supplies & Services           ,Services                      ,DF18,Bailiffs' fees,310,835,7/19/2012,R,GREASBY'S AUCTION ROOMS       
2012 - JUL,Housing Services,Housing Benefit Administration,Benefits Administration                 ,E02120,Supplies & Services           ,Comms and Computing           ,DG09,Computer Purchases - Misc,311,"8,860.00",6/12/2012,R,CIVICA UK LIMITED             
2012 - JUL,Central Services,Fully rechargeable Overheads,Payroll                                 ,E02140,Supplies & Services           ,Comms and Computing           ,DG02,Software Licences,312,715,6/29/2012,R,TMP WORLDWIDE LTD             
2012 - JUL,Central Services,Fully rechargeable Overheads,AD Customer Services                    ,E02180,Employees                     ,Indirect Employee Expenses    ,AB57,External Training Costs,313,795,6/23/2012,R,KEVIN ASPIN LTD               
2012 - JUL,Central Services,Fully rechargeable Overheads,Civic Centre                            ,E02222,Premises Related Expenditure  ,RepairsAlterations&MtceOfBldgs,BA29,Build Maint Mgt Fees,314,"2,640.00",5/31/2012,R,EDE'S (U.K.) LTD              
2012 - JUL,Central Services,Fully rechargeable Overheads,Civic Centre                            ,E02222,Premises Related Expenditure  ,RepairsAlterations&MtceOfBldgs,BA29,Build Maint Mgt Fees,315,"2,080.50",5/31/2012,R,EDE'S (U.K.) LTD              
2012 - JUL,Central Services,Fully rechargeable Overheads,Civic Centre                            ,E02222,Premises Related Expenditure  ,RepairsAlterations&MtceOfBldgs,BA29,Build Maint Mgt Fees,316,570,5/31/2012,R,EDE'S (U.K.) LTD              
2012 - JUL,Central Services,Fully rechargeable Overheads,Civic Centre                            ,E02222,Premises Related Expenditure  ,RepairsAlterations&MtceOfBldgs,BA29,Build Maint Mgt Fees,317,978.5,5/31/2012,R,EDE'S (U.K.) LTD              
2012 - JUL,Central Services,Fully rechargeable Overheads,Civic Centre                            ,E02222,Premises Related Expenditure  ,RepairsAlterations&MtceOfBldgs,BA29,Build Maint Mgt Fees,318,646,5/31/2012,R,EDE'S (U.K.) LTD              
2012 - JUL,Central Services,Fully rechargeable Overheads,Civic Centre                            ,E02222,Premises Related Expenditure  ,RepairsAlterations&MtceOfBldgs,BA29,Build Maint Mgt Fees,319,"1,111.50",5/31/2012,R,EDE'S (U.K.) LTD              
2012 - JUL,Central Services,Fully rechargeable Overheads,Civic Centre                            ,E02222,Premises Related Expenditure  ,RepairsAlterations&MtceOfBldgs,BA29,Build Maint Mgt Fees,320,"2,327.50",5/31/2012,R,EDE'S (U.K.) LTD              
2012 - JUL,Central Services,Fully rechargeable Overheads,Civic Centre                            ,E02222,Premises Related Expenditure  ,RepairsAlterations&MtceOfBldgs,BA29,Build Maint Mgt Fees,321,"2,547.50",5/31/2012,R,EDE'S (U.K.) LTD              
2012 - JUL,Central Services,Fully rechargeable Overheads,Civic Centre                            ,E02222,Premises Related Expenditure  ,RepairsAlterations&MtceOfBldgs,BA29,Build Maint Mgt Fees,322,532,6/30/2012,R,EDE'S (U.K.) LTD              
2012 - JUL,Central Services,Fully rechargeable Overheads,Civic Centre                            ,E02222,Premises Related Expenditure  ,RepairsAlterations&MtceOfBldgs,BA29,Build Maint Mgt Fees,323,"1,130.50",6/30/2012,R,EDE'S (U.K.) LTD              
2012 - JUL,Central Services,Fully rechargeable Overheads,Civic Centre                            ,E02222,Premises Related Expenditure  ,RepairsAlterations&MtceOfBldgs,BA29,Build Maint Mgt Fees,324,"1,330.00",6/30/2012,R,EDE'S (U.K.) LTD              
2012 - JUL,Central Services,Fully rechargeable Overheads,Civic Centre                            ,E02222,Premises Related Expenditure  ,RepairsAlterations&MtceOfBldgs,BA29,Build Maint Mgt Fees,325,779,6/30/2012,R,EDE'S (U.K.) LTD              
2012 - JUL,Central Services,Fully rechargeable Overheads,Civic Centre                            ,E02222,Premises Related Expenditure  ,RepairsAlterations&MtceOfBldgs,BA29,Build Maint Mgt Fees,326,532,6/30/2012,R,EDE'S (U.K.) LTD              
2012 - JUL,Central Services,Fully rechargeable Overheads,Civic Centre                            ,E02222,Premises Related Expenditure  ,RepairsAlterations&MtceOfBldgs,BA29,Build Maint Mgt Fees,327,"4,788.00",5/31/2012,R,EDE'S (U.K.) LTD              
2012 - JUL,Central Services,Fully rechargeable Overheads,Civic Centre                            ,E02222,Premises Related Expenditure  ,RepairsAlterations&MtceOfBldgs,BA29,Build Maint Mgt Fees,328,"6,199.07",7/4/2012,R,RITEC DECORATORS LIMITED      
2012 - JUL,Central Services,Fully rechargeable Overheads,Civic Centre                            ,E02222,Premises Related Expenditure  ,RepairsAlterations&MtceOfBldgs,BA29,Build Maint Mgt Fees,329,"4,546.00",7/4/2012,R,RITEC DECORATORS LIMITED      
2012 - JUL,Central Services,Fully rechargeable Overheads,Civic Centre                            ,E02222,Premises Related Expenditure  ,RepairsAlterations&MtceOfBldgs,BA29,Build Maint Mgt Fees,330,801.98,7/6/2012,R,HART DECORATORS LIMITED       
2012 - JUL,Central Services,Fully rechargeable Overheads,Civic Centre                            ,E02222,Premises Related Expenditure  ,RepairsAlterations&MtceOfBldgs,BA29,Build Maint Mgt Fees,331,"23,270.26",7/6/2012,R,HART DECORATORS LIMITED       
2012 - JUL,Central Services,Fully rechargeable Overheads,Civic Centre                            ,E02222,Premises Related Expenditure  ,RepairsAlterations&MtceOfBldgs,BA29,Build Maint Mgt Fees,332,"11,644.00",6/27/2012,R,KH FLOORING LTD               
2012 - JUL,Central Services,Fully rechargeable Overheads,Civic Centre                            ,E02222,Premises Related Expenditure  ,RepairsAlterations&MtceOfBldgs,BA29,Build Maint Mgt Fees,333,"1,480.00",6/27/2012,R,KH FLOORING LTD               
2012 - JUL,Central Services,Fully rechargeable Overheads,Civic Centre                            ,E02222,Premises Related Expenditure  ,RepairsAlterations&MtceOfBldgs,BA29,Build Maint Mgt Fees,334,"2,052.00",7/17/2012,R,KH FLOORING LTD               
2012 - JUL,Central Services,Fully rechargeable Overheads,Civic Centre                            ,E02222,Premises Related Expenditure  ,RepairsAlterations&MtceOfBldgs,BA29,Build Maint Mgt Fees,335,625,6/30/2012,R,EDE'S (U.K.) LTD              
2012 - JUL,Central Services,Fully rechargeable Overheads,Civic Centre                            ,E02222,Premises Related Expenditure  ,Cleaning and Domestic Supplies,BH02,Window Cleaning,336,552.19,6/24/2012,R,DYNAMIQ CLEANING LIMITED      
2012 - JUL,Central Services,Fully rechargeable Overheads,Civic Centre                            ,E02222,Premises Related Expenditure  ,Cleaning and Domestic Supplies,BH03,Cleaning Services,337,"3,089.34",6/24/2012,R,DYNAMIQ CLEANING LIMITED      
2012 - JUL,Central Services,Fully rechargeable Overheads,Civic Centre                            ,E02222,Premises Related Expenditure  ,Cleaning and Domestic Supplies,BH03,Cleaning Services,338,"1,461.29",6/24/2012,R,DYNAMIQ CLEANING LIMITED      
2012 - JUL,Central Services,Fully rechargeable Overheads,Civic Centre                            ,E02222,Premises Related Expenditure  ,Cleaning and Domestic Supplies,BH03,Cleaning Services,339,"1,451.44",6/24/2012,R,DYNAMIQ CLEANING LIMITED      
2012 - JUL,Central Services,Fully rechargeable Overheads,Civic Centre                            ,E02222,Premises Related Expenditure  ,Cleaning and Domestic Supplies,BH03,Cleaning Services,340,"9,019.98",6/24/2012,R,DYNAMIQ CLEANING LIMITED      
2012 - JUL,Central Services,Fully rechargeable Overheads,Civic Centre                            ,E02222,Supplies & Services           ,Equip Furniture/Materials     ,DA01,Equipment - R & M,341,"1,575.00",6/22/2012,R,SSD LIMITED                   
2012 - JUL,Central Services,Fully rechargeable Overheads,Civic Centre                            ,E02222,Supplies & Services           ,Equip Furniture/Materials     ,DA01,Equipment - R & M,342,"6,756.00",6/22/2012,R,SSD LIMITED                   
2012 - JUL,Central Services,Fully rechargeable Overheads,Civic Centre                            ,E02222,Third Party Payments          ,Private Contractors           ,EH10,Contract Payments,343,"3,811.85",3/30/2012,R,ISS COLLECTIONS LTD           
2012 - JUL,Central Services,Fully rechargeable Overheads,Gifford House                           ,E02223,Premises Related Expenditure  ,Cleaning and Domestic Supplies,BH03,Cleaning Services,344,841.16,6/24/2012,R,DYNAMIQ CLEANING LIMITED      
2012 - JUL,Central Services,Fully rechargeable Overheads,Worsfold House                          ,E02224,Premises Related Expenditure  ,Cleaning and Domestic Supplies,BH03,Cleaning Services,345,"1,141.15",6/24/2012,R,DYNAMIQ CLEANING LIMITED      
2012 - JUL,Central Services,Fully rechargeable Overheads,Morden Park House                       ,E02229,Premises Related Expenditure  ,Cleaning and Domestic Supplies,BH03,Cleaning Services,346,"1,579.28",6/24/2012,R,DYNAMIQ CLEANING LIMITED      
2012 - JUL,Central Services,Fully rechargeable Overheads,Facilities                              ,E02231,Premises Related Expenditure  ,RepairsAlterations&MtceOfBldgs,BA02,Energy Conservation,347,"1,350.00",7/11/2012,R,CARBONPLAN LTD                
2012 - JUL,Central Services,Fully rechargeable Overheads,Facilities                              ,E02231,Premises Related Expenditure  ,RepairsAlterations&MtceOfBldgs,BA06,Repairs & Maintenance General,348,"7,980.00",6/28/2012,R,COFELY LIMITED                
2012 - JUL,Central Services,Fully rechargeable Overheads,Facilities                              ,E02231,Premises Related Expenditure  ,RepairsAlterations&MtceOfBldgs,BA06,Repairs & Maintenance General,349,"10,821.57",6/28/2012,R,COFELY LIMITED                
2012 - JUL,Central Services,Fully rechargeable Overheads,Facilities                              ,E02231,Premises Related Expenditure  ,RepairsAlterations&MtceOfBldgs,BA06,Repairs & Maintenance General,350,"35,000.00",7/12/2012,R,SALTASH ENTERPRISES LTD       
2012 - JUL,Central Services,Fully rechargeable Overheads,Facilities                              ,E02231,Supplies & Services           ,Services                      ,DF09,Miscellaneous Fees,351,"184,800.00",7/11/2012,R,DEPT ENERGY & CLIMATE CHANGE  
2012 - JUL,Central Services,Fully rechargeable Overheads,Facilities                              ,E02231,Third Party Payments          ,Private Contractors           ,EH02,Miscellaneous Hired Services,352,"1,500.00",6/28/2012,R,HYDRO-X WATER TREATMENT LTD   
2012 - JUL,Central Services,Fully rechargeable Overheads,Corporate Services Buildings            ,E02240,Premises Related Expenditure  ,RepairsAlterations&MtceOfBldgs,BA01,DDM - General Building,353,668.93,6/20/2012,R,PJ HARVEY & CO LTD            
2012 - JUL,Central Services,Fully rechargeable Overheads,Corporate Services Buildings            ,E02240,Premises Related Expenditure  ,RepairsAlterations&MtceOfBldgs,BA01,DDM - General Building,354,"2,165.00",6/29/2012,R,BLAKEDOWN LANDSCAPES (SE) LTD 
2012 - JUL,Central Services,Fully rechargeable Overheads,Corporate Services Buildings            ,E02240,Premises Related Expenditure  ,RepairsAlterations&MtceOfBldgs,BA01,DDM - General Building,355,625,7/17/2012,R,KH FLOORING LTD               
2012 - JUL,Central Services,Fully rechargeable Overheads,Corporate Services Buildings            ,E02240,Premises Related Expenditure  ,RepairsAlterations&MtceOfBldgs,BA03,DDM - Mechanical,356,"2,997.26",6/18/2012,R,AVON BARRIER COMPANY LTD      
2012 - JUL,Central Services,Fully rechargeable Overheads,Corporate Services Buildings            ,E02240,Premises Related Expenditure  ,RepairsAlterations&MtceOfBldgs,BA05,DDM - Electrical,357,"1,264.00",6/28/2012,R,COFELY LIMITED                
2012 - JUL,Central Services,Fully rechargeable Overheads,Corporate Services Buildings            ,E02240,Premises Related Expenditure  ,RepairsAlterations&MtceOfBldgs,BA05,DDM - Electrical,358,724.42,6/22/2012,R,WF ELECTRICAL PLC             
2012 - JUL,Central Services,Fully rechargeable Overheads,Corporate Services Buildings            ,E02240,Premises Related Expenditure  ,RepairsAlterations&MtceOfBldgs,BA05,DDM - Electrical,359,"1,100.00",7/15/2012,R,SSD LIMITED                   
2012 - JUL,Central Services,Fully rechargeable Overheads,Corporate Services Buildings            ,E02240,Premises Related Expenditure  ,RepairsAlterations&MtceOfBldgs,BA05,DDM - Electrical,360,"1,686.00",6/30/2012,R,FIRST CHOICE FACILITIES PLC   
2012 - JUL,Central Services,Fully rechargeable Overheads,Corporate Services Buildings            ,E02240,Premises Related Expenditure  ,RepairsAlterations&MtceOfBldgs,BA05,DDM - Electrical,361,"1,594.50",4/16/2012,R,FIRST CHOICE FACILITIES PLC   
2012 - JUL,Central Services,Fully rechargeable Overheads,Corporate Services Buildings            ,E02240,Premises Related Expenditure  ,Energy Costs                  ,BB02,Electricity,362,"13,036.01",7/6/2012,R,KENT COUNTY COUNCIL           
2012 - JUL,Central Services,Fully rechargeable Overheads,Corporate Services Buildings            ,E02240,Premises Related Expenditure  ,Energy Costs                  ,BB02,Electricity,363,"14,571.56",6/14/2012,R,KENT COUNTY COUNCIL           
2012 - JUL,Central Services,Fully rechargeable Overheads,Corporate Services Buildings            ,E02240,Premises Related Expenditure  ,Energy Costs                  ,BB03,Gas (incl. Butane),364,"8,111.36",6/25/2012,R,KENT COUNTY COUNCIL           
2012 - JUL,Central Services,Fully rechargeable Overheads,Corporate Services Buildings            ,E02240,Premises Related Expenditure  ,Water Services                ,BE01,Use of Water (Metered),365,987.86,6/28/2012,R,SUTTON AND EAST SURREY WATER  
2012 - JUL,Central Services,Fully rechargeable Overheads,Corporate Services Buildings            ,E02240,Premises Related Expenditure  ,Water Services                ,BE01,Use of Water (Metered),366,"1,703.53",6/28/2012,R,SUTTON AND EAST SURREY WATER  
2012 - JUL,Adult Social Care,Adult u65 Phys/Sensory Impair,C & H Buildings                         ,E02345,Premises Related Expenditure  ,RepairsAlterations&MtceOfBldgs,BA01,DDM - General Building,367,506.77,6/28/2012,R,SALTASH ENTERPRISES LTD       
2012 - JUL,Adult Social Care,Adult u65 Phys/Sensory Impair,C & H Buildings                         ,E02345,Premises Related Expenditure  ,RepairsAlterations&MtceOfBldgs,BA01,DDM - General Building,368,580.35,6/28/2012,R,SALTASH ENTERPRISES LTD       
2012 - JUL,Adult Social Care,Adult u65 Phys/Sensory Impair,C & H Buildings                         ,E02345,Premises Related Expenditure  ,RepairsAlterations&MtceOfBldgs,BA01,DDM - General Building,369,"2,682.00",7/13/2012,R,COBSEN-DAVIES ROOFING (LOND)LT
2012 - JUL,Adult Social Care,Adult u65 Phys/Sensory Impair,C & H Buildings                         ,E02345,Premises Related Expenditure  ,RepairsAlterations&MtceOfBldgs,BA05,DDM - Electrical,370,692.25,10/25/2011,R,FIRST CHOICE FACILITIES PLC   
2012 - JUL,Adult Social Care,Adult u65 Phys/Sensory Impair,C & H Buildings                         ,E02345,Premises Related Expenditure  ,RepairsAlterations&MtceOfBldgs,BA05,DDM - Electrical,371,620,2/13/2012,R,COFELY LIMITED                
2012 - JUL,Cultural Env Reg&Plan Services,Open Spaces,Leisure Buildings                       ,E02350,Premises Related Expenditure  ,RepairsAlterations&MtceOfBldgs,BA01,DDM - General Building,372,"1,279.26",6/28/2012,R,SALTASH ENTERPRISES LTD       
2012 - JUL,Central Services,Fully rechargeable Overheads,Director of Corporate Services          ,E04060,Employees                     ,Direct Employee Expenses      ,AA17,Agency Staff & Casual Paymts,373,"2,500.00",5/14/2012,R,REDACTED
2012 - JUL,Central Services,Fully rechargeable Overheads,Director of Corporate Services          ,E04060,Employees                     ,Direct Employee Expenses      ,AA17,Agency Staff & Casual Paymts,374,"4,550.00",7/2/2012,R,REDACTED
2012 - JUL,Central Services,Democ' Representation & Mgt,Corporately Funded Items                ,E04065,Employees                     ,Direct Employee Expenses      ,AA17,Agency Staff & Casual Paymts,375,"5,750.00",5/14/2012,R,REDACTED
2012 - JUL,Central Services,Democ' Representation & Mgt,Corporately Funded Items                ,E04065,Employees                     ,Direct Employee Expenses      ,AA17,Agency Staff & Casual Paymts,376,"15,750.00",6/6/2012,R,REDACTED
2012 - JUL,Central Services,Fully rechargeable Overheads,Internal Audit&Service Review           ,E05101,Supplies & Services           ,Services                      ,DF58,Audit Fee,377,"3,600.00",6/26/2012,R,RSM TENON                     
2012 - JUL,Central Services,Fully rechargeable Overheads,Insurance Premiums & Funding            ,E05161,Supplies & Services           ,Services                      ,DF74,Insurance Premiums,378,"4,551.75",6/25/2012,R,ZURICH INSURANCE COMPANY      
2012 - JUL,Central Services,Fully rechargeable Overheads,Corporate Accountancy                   ,E06209,Supplies & Services           ,Services                      ,DF58,Audit Fee,379,"3,427.00",6/1/2012,R,AUDIT COMMISSION              
2012 - JUL,Central Services,Fully rechargeable Overheads,Corporate Accountancy                   ,E06209,Supplies & Services           ,Services                      ,DF58,Audit Fee,380,"20,683.00",6/1/2012,R,AUDIT COMMISSION              
2012 - JUL,Central Services,Fully rechargeable Overheads,Corporate Accountancy                   ,E06209,Supplies & Services           ,Services                      ,DF58,Audit Fee,381,"1,337.00",7/10/2012,R,AUDIT COMMISSION              
2012 - JUL,Central Services,Fully rechargeable Overheads,Corporate Accountancy                   ,E06209,Supplies & Services           ,Grants and Subscriptions      ,DJ04,Subscriptions,382,"1,500.00",7/13/2012,R,KPMG LLP FEES ACCOUNT         
2012 - JUL,Central Services,Fully rechargeable Overheads,Accounts Payable                        ,E06212,Supplies & Services           ,Services                      ,DF03,Consultants,383,"1,659.14",6/15/2012,R,MERIDIAN COST BENEFIT LTD     
2012 - JUL,Central Services,Fully rechargeable Overheads,Treasury & Insurance                    ,E06222,Employees                     ,Direct Employee Expenses      ,AA17,Agency Staff & Casual Paymts,384,"6,110.00",6/27/2012,R,RANDSTAD FIN & PROF LTD.      
2012 - JUL,Central Services,Fully rechargeable Overheads,Treasury & Insurance                    ,E06222,Employees                     ,Direct Employee Expenses      ,AA17,Agency Staff & Casual Paymts,385,"1,980.00",6/27/2012,R,RANDSTAD FIN & PROF LTD.      
2012 - JUL,Central Services,Fully rechargeable Overheads,Treasury & Insurance                    ,E06222,Employees                     ,Direct Employee Expenses      ,AA17,Agency Staff & Casual Paymts,386,"2,200.00",7/9/2012,R,RANDSTAD FIN & PROF LTD.      
2012 - JUL,Central Services,Fully rechargeable Overheads,Treasury & Insurance                    ,E06222,Employees                     ,Direct Employee Expenses      ,AA17,Agency Staff & Casual Paymts,387,660,7/16/2012,R,RANDSTAD FIN & PROF LTD.      
2012 - JUL,Central Services,Fully rechargeable Overheads,Treasury & Insurance                    ,E06222,Employees                     ,Direct Employee Expenses      ,AA17,Agency Staff & Casual Paymts,388,"4,700.00",7/13/2012,R,RANDSTAD FIN & PROF LTD.      
2012 - JUL,Central Services,Fully rechargeable Overheads,Treasury & Insurance                    ,E06222,Employees                     ,Direct Employee Expenses      ,AA17,Agency Staff & Casual Paymts,389,"1,100.00",7/24/2012,R,RANDSTAD FIN & PROF LTD.      
2012 - JUL,Central Services,Fully rechargeable Overheads,Treasury & Insurance                    ,E06222,Employees                     ,Direct Employee Expenses      ,AA17,Agency Staff & Casual Paymts,390,"4,700.00",7/24/2012,R,RANDSTAD FIN & PROF LTD.      
2012 - JUL,Central Services,Fully rechargeable Overheads,Parking Cash Collect'n Contrct          ,E06225,Third Party Payments          ,Private Contractors           ,EH02,Miscellaneous Hired Services,391,"11,162.60",6/30/2012,R,BANKING AUTOMATION LTD        
2012 - JUL,Central Services,Fully rechargeable Overheads,Establishments' Cash Collect'n          ,E06226,Third Party Payments          ,Private Contractors           ,EH02,Miscellaneous Hired Services,392,"3,264.13",6/15/2012,R,LOOMIS UK LTD                 
2012 - JUL,Central Services,Fully rechargeable Overheads,Establishments' Cash Collect'n          ,E06226,Third Party Payments          ,Private Contractors           ,EH02,Miscellaneous Hired Services,393,581.75,6/29/2012,R,LOOMIS UK LTD                 
2012 - JUL,Central Services,Fully rechargeable Overheads,Service Accountancy                     ,E06227,Employees                     ,Direct Employee Expenses      ,AA17,Agency Staff & Casual Paymts,394,"3,680.00",6/27/2012,R,RANDSTAD FIN & PROF LTD.      
2012 - JUL,Central Services,Fully rechargeable Overheads,Service Accountancy                     ,E06227,Employees                     ,Direct Employee Expenses      ,AA17,Agency Staff & Casual Paymts,395,"2,700.00",6/27/2012,R,RANDSTAD FIN & PROF LTD.      
2012 - JUL,Central Services,Fully rechargeable Overheads,Service Accountancy                     ,E06227,Employees                     ,Direct Employee Expenses      ,AA17,Agency Staff & Casual Paymts,396,"1,500.00",7/9/2012,R,RANDSTAD FIN & PROF LTD.      
2012 - JUL,Central Services,Fully rechargeable Overheads,Service Accountancy                     ,E06227,Employees                     ,Direct Employee Expenses      ,AA17,Agency Staff & Casual Paymts,397,"2,300.00",7/9/2012,R,RANDSTAD FIN & PROF LTD.      
2012 - JUL,Central Services,Fully rechargeable Overheads,Service Accountancy                     ,E06227,Employees                     ,Direct Employee Expenses      ,AA17,Agency Staff & Casual Paymts,398,"1,350.00",7/9/2012,R,RANDSTAD FIN & PROF LTD.      
2012 - JUL,Central Services,Fully rechargeable Overheads,Service Accountancy                     ,E06227,Employees                     ,Direct Employee Expenses      ,AA17,Agency Staff & Casual Paymts,399,"1,500.00",7/16/2012,R,RANDSTAD FIN & PROF LTD.      
2012 - JUL,Central Services,Fully rechargeable Overheads,Service Accountancy                     ,E06227,Employees                     ,Direct Employee Expenses      ,AA17,Agency Staff & Casual Paymts,400,"2,300.00",7/16/2012,R,RANDSTAD FIN & PROF LTD.      
2012 - JUL,Central Services,Fully rechargeable Overheads,Service Accountancy                     ,E06227,Employees                     ,Direct Employee Expenses      ,AA17,Agency Staff & Casual Paymts,401,"1,500.00",7/24/2012,R,RANDSTAD FIN & PROF LTD.      
2012 - JUL,Central Services,Fully rechargeable Overheads,Service Accountancy                     ,E06227,Employees                     ,Direct Employee Expenses      ,AA17,Agency Staff & Casual Paymts,402,"2,300.00",7/24/2012,R,RANDSTAD FIN & PROF LTD.      
2012 - JUL,Central Services,Fully rechargeable Overheads,AD CORPORATE GOVERNANCE               ,E10279,Supplies & Services           ,Equip Furniture/Materials     ,DA01,Equipment - R & M,403,"1,361.80",7/14/2012,R,KODAK LIMITED                 
2012 - JUL,Central Services,Fully rechargeable Overheads,Legal Services                          ,E10282,Supplies & Services           ,Services                      ,DF28,Court Fees,404,700,7/5/2012,R,REDACTED
2012 - JUL,Central Services,Fully rechargeable Overheads,Legal Services                          ,E10282,Supplies & Services           ,Services                      ,DF28,Court Fees,405,"2,395.00",7/5/2012,R,REDACTED
2012 - JUL,Central Services,Fully rechargeable Overheads,Legal Services                          ,E10282,Supplies & Services           ,Services                      ,DF28,Court Fees,406,"2,226.26",7/5/2012,R,REDACTED
2012 - JUL,Central Services,Fully rechargeable Overheads,Legal Services                          ,E10282,Supplies & Services           ,Services                      ,DF28,Court Fees,407,"2,600.00",7/5/2012,R,REDACTED
2012 - JUL,Central Services,Fully rechargeable Overheads,Legal Services                          ,E10282,Supplies & Services           ,Services                      ,DF28,Court Fees,408,"2,225.00",6/26/2012,R,REDACTED
2012 - JUL,Central Services,Fully rechargeable Overheads,Legal Services                          ,E10282,Supplies & Services           ,Services                      ,DF28,Court Fees,409,"1,900.00",7/6/2012,R,REDACTED
2012 - JUL,Central Services,Fully rechargeable Overheads,Legal Services                          ,E10282,Supplies & Services           ,Services                      ,DF28,Court Fees,410,"1,400.00",7/9/2012,R,REDACTED
2012 - JUL,Central Services,Local Land Charges,Land Charges                            ,E10283,Supplies & Services           ,Prntng Stnry Gen Off Exp      ,DE30,General Office Expenses,411,733.65,6/29/2012,R,LIGHTSPEED BUSINESS SOLUTIONS 
2012 - JUL,Central Services,Local Land Charges,Land Charges                            ,E10283,Supplies & Services           ,Comms and Computing           ,DG04,Postage - General,412,"1,220.01",5/17/2012,R,DX NETWORK SERVICES LTD       
2012 - JUL,Central Services,Fully rechargeable Overheads,Shared Legal Service                    ,E10288,Supplies & Services           ,Comms and Computing           ,DG04,Postage - General,413,506.89,5/29/2012,R,NEOPOST FINANCE LIMITED       
2012 - JUL,Central Services,Fully rechargeable Overheads,Richmond Legal                          ,E10289,Supplies & Services           ,Services                      ,DF11,Counsel's fees,414,775,5/28/2012,R,REDACTED
2012 - JUL,Central Services,Fully rechargeable Overheads,Richmond Legal                          ,E10289,Supplies & Services           ,Services                      ,DF11,Counsel's fees,415,"2,600.00",5/28/2012,R,REDACTED
2012 - JUL,Central Services,Fully rechargeable Overheads,Richmond Legal                          ,E10289,Supplies & Services           ,Services                      ,DF11,Counsel's fees,416,"1,225.00",6/27/2012,R,REDACTED
2012 - JUL,Central Services,Fully rechargeable Overheads,Richmond Legal                          ,E10289,Supplies & Services           ,Services                      ,DF11,Counsel's fees,417,522.5,6/18/2012,R,REDACTED
2012 - JUL,Central Services,Fully rechargeable Overheads,Richmond Legal                          ,E10289,Supplies & Services           ,Services                      ,DF11,Counsel's fees,418,"1,637.98",5/28/2012,R,REDACTED
2012 - JUL,Central Services,Fully rechargeable Overheads,Richmond Legal                          ,E10289,Supplies & Services           ,Services                      ,DF11,Counsel's fees,419,"1,335.00",5/28/2012,R,REDACTED
2012 - JUL,Central Services,Fully rechargeable Overheads,Richmond Legal                          ,E10289,Supplies & Services           ,Services                      ,DF11,Counsel's fees,420,600,6/25/2012,R,REDACTED
2012 - JUL,Central Services,Fully rechargeable Overheads,Richmond Legal                          ,E10289,Supplies & Services           ,Services                      ,DF11,Counsel's fees,421,555,6/19/2012,R,REDACTED
2012 - JUL,Central Services,Fully rechargeable Overheads,Richmond Legal                          ,E10289,Supplies & Services           ,Services                      ,DF11,Counsel's fees,422,"3,487.50",6/29/2012,R,REDACTED
2012 - JUL,Central Services,Fully rechargeable Overheads,Richmond Legal                          ,E10289,Supplies & Services           ,Services                      ,DF11,Counsel's fees,423,"3,000.00",6/29/2012,R,REDACTED
2012 - JUL,Central Services,Fully rechargeable Overheads,Richmond Legal                          ,E10289,Supplies & Services           ,Services                      ,DF11,Counsel's fees,424,"1,500.00",7/2/2012,R,GERALD GOURIET QC             
2012 - JUL,Central Services,Fully rechargeable Overheads,Richmond Legal                          ,E10289,Supplies & Services           ,Services                      ,DF95,Services from Provider,425,"3,471.00",6/29/2012,R,SPRINGFIELD LAW CENTRE LTD
2012 - JUL,Central Services,Fully rechargeable Overheads,Richmond Legal                          ,E10289,Supplies & Services           ,Services                      ,DF95,Services from Provider,426,"1,568.40",5/16/2012,R,REDACTED
2012 - JUL,Central Services,Fully rechargeable Overheads,Richmond Legal                          ,E10289,Supplies & Services           ,Services                      ,DF95,Services from Provider,427,"12,132.67",7/13/2012,R,BINDMANS LLP                  
2012 - JUL,Central Services,Fully rechargeable Overheads,Richmond Legal                          ,E10289,Supplies & Services           ,Services                      ,DF95,Services from Provider,428,"4,578.00",4/20/2012,R,REDACTED
2012 - JUL,Central Services,Fully rechargeable Overheads,Richmond Legal                          ,E10289,Supplies & Services           ,Services                      ,DF95,Services from Provider,429,635.1,6/29/2012,R,SHOOSMITHS SOLICITORS         
2012 - JUL,Central Services,Fully rechargeable Overheads,Richmond Legal                          ,E10289,Supplies & Services           ,Services                      ,DF95,Services from Provider,430,"3,950.00",5/31/2012,R,COBBETTS                      
2012 - JUL,Central Services,Fully rechargeable Overheads,AD Business Improvement                 ,E14358,Employees                     ,Direct Employee Expenses      ,AA17,Agency Staff & Casual Paymts,431,"6,250.00",6/28/2012,R,JW MANAGEMENT                 
2012 - JUL,Central Services,Fully rechargeable Overheads,AD Business Improvement                 ,E14358,Employees                     ,Direct Employee Expenses      ,AA17,Agency Staff & Casual Paymts,432,"6,585.00",6/30/2012,R,PENNA PLC                     
2012 - JUL,Central Services,Fully rechargeable Overheads,AD Business Improvement                 ,E14358,Employees                     ,Direct Employee Expenses      ,AA17,Agency Staff & Casual Paymts,433,904,7/9/2012,R,HAYS RECRUITING EXPERTS       
2012 - JUL,Central Services,Fully rechargeable Overheads,AD Business Improvement                 ,E14358,Employees                     ,Direct Employee Expenses      ,AA17,Agency Staff & Casual Paymts,434,"1,808.00",7/13/2012,R,HAYS RECRUITING EXPERTS       
2012 - JUL,Central Services,Fully rechargeable Overheads,AD Business Improvement                 ,E14358,Employees                     ,Direct Employee Expenses      ,AA17,Agency Staff & Casual Paymts,435,"1,808.00",7/19/2012,R,HAYS RECRUITING EXPERTS       
2012 - JUL,Central Services,Fully rechargeable Overheads,AD Business Improvement                 ,E14358,Employees                     ,Indirect Employee Expenses    ,AB02,Recruitment Adverts,436,"3,983.33",5/28/2012,R,HAYS RECRUITING EXPERTS       
2012 - JUL,Central Services,Fully rechargeable Overheads,AD Business Improvement                 ,E14358,Employees                     ,Indirect Employee Expenses    ,AB02,Recruitment Adverts,437,"-3,200.00",7/5/2012,R,ODGERS RAY & BERNDTSON INTERIM
2012 - JUL,Central Services,Fully rechargeable Overheads,BI IT Projects                          ,E14360,Supplies & Services           ,Services                      ,DF03,Consultants,438,"1,250.00",6/20/2012,R,CASHFRIDAY                    
2012 - JUL,Central Services,Fully rechargeable Overheads,BI IT Projects                          ,E14360,Supplies & Services           ,Services                      ,DF03,Consultants,439,"3,900.00",7/1/2012,R,REDACTED
2012 - JUL,Central Services,Fully rechargeable Overheads,Systems & Projects                      ,E14366,Supplies & Services           ,Equip Furniture/Materials     ,DA65,Application Licenses,440,"3,500.00",5/31/2012,R,FIRMSTEP                      
2012 - JUL,Central Services,Fully rechargeable Overheads,Operations & Telecomms                  ,E14367,Supplies & Services           ,Comms and Computing           ,DG54,Corporate Telephones,441,"2,996.76",5/4/2012,R,T MOBILE (UK)                 
2012 - JUL,Central Services,Fully rechargeable Overheads,Operations & Telecomms                  ,E14367,Supplies & Services           ,Comms and Computing           ,DG54,Corporate Telephones,442,"1,035.00",6/29/2012,R,O2 (UK) LIMITED               
2012 - JUL,Central Services,Fully rechargeable Overheads,Operations & Telecomms                  ,E14367,Supplies & Services           ,Comms and Computing           ,DG54,Corporate Telephones,443,"9,525.97",6/4/2012,R,T MOBILE (UK)                 
2012 - JUL,Central Services,Fully rechargeable Overheads,Operations & Telecomms                  ,E14367,Supplies & Services           ,Comms and Computing           ,DG54,Corporate Telephones,444,"2,704.97",7/2/2012,R,COLT TELECOMMUNICATIONS       
2012 - JUL,Central Services,Fully rechargeable Overheads,Operations & Telecomms                  ,E14367,Supplies & Services           ,Comms and Computing           ,DG54,Corporate Telephones,445,"9,727.18",7/4/2012,R,T MOBILE (UK)                 
2012 - JUL,Central Services,Fully rechargeable Overheads,Distributed Services                    ,E14368,Supplies & Services           ,Comms and Computing           ,DG63,Software Licences - Data,446,"4,401.47",6/27/2012,R,CIVICA UK LIMITED             
2012 - JUL,Central Services,Fully rechargeable Overheads,Distributed Services                    ,E14368,Supplies & Services           ,Comms and Computing           ,DG63,Software Licences - Data,447,"2,169.38",6/27/2012,R,CIVICA UK LIMITED             
2012 - JUL,Central Services,Fully rechargeable Overheads,Distributed Services                    ,E14368,Supplies & Services           ,Comms and Computing           ,DG63,Software Licences - Data,448,"5,207.01",6/29/2012,R,PITNEY BOWES SOFTWARE LTD     
2012 - JUL,Central Services,Fully rechargeable Overheads,Distributed Services                    ,E14368,Supplies & Services           ,Comms and Computing           ,DG63,Software Licences - Data,449,"5,000.00",7/2/2012,R,QUOVADIS ONLINE SECURITY LTD  
2012 - JUL,Central Services,Fully rechargeable Overheads,Distributed Services                    ,E14368,Supplies & Services           ,Comms and Computing           ,DG63,Software Licences - Data,450,650,6/30/2012,R,ORBIT U.K.                    
2012 - JUL,Central Services,Fully rechargeable Overheads,Distributed Services                    ,E14368,Supplies & Services           ,Comms and Computing           ,DG65,Application Licences,451,"3,237.09",7/10/2012,R,NEDSTAT LTD                   
2012 - JUL,Central Services,Fully rechargeable Overheads,Distributed Services                    ,E14368,Supplies & Services           ,Comms and Computing           ,DG65,Application Licences,452,"6,813.45",7/11/2012,R,RANDOMSTORM LTD               
2012 - JUL,Central Services,Fully rechargeable Overheads,Distributed Services                    ,E14368,Supplies & Services           ,Comms and Computing           ,DG65,Application Licences,453,"1,798.26",6/27/2012,R,CIVICA UK LIMITED             
2012 - JUL,Central Services,Fully rechargeable Overheads,Distributed Services                    ,E14368,Supplies & Services           ,Comms and Computing           ,DG65,Application Licences,454,"68,608.77",6/27/2012,R,CIVICA UK LIMITED             
2012 - JUL,Central Services,Fully rechargeable Overheads,Corp Saving-IT Consolidation            ,E14370,Premises Related Expenditure  ,RepairsAlterations&MtceOfBldgs,BA01,DDM - General Building,455,890,6/30/2012,R,AIR SURVEYS  LIMITED          
2012 - JUL,Cultural Env Reg&Plan Services,SMSS (Env),ES Support & Development                ,G00070,Supplies & Services           ,Expenses                      ,DH02,Conferences,456,"2,144.60",5/24/2012,R,BOND SOLON                    
2012 - JUL,Cultural Env Reg&Plan Services,SMSS (Env),Senior Mgt. - E.S.C.                    ,G00100,Employees                     ,Direct Employee Expenses      ,AA96,SALARY SACRIFICE (TEACHERS),457,833.33,6/27/2012,R,F.W.EVANS CYCLES (UK) LTD.    
2012 - JUL,Highways & Transport Services,Env Safety&Routine Maintenance,Walk Sheets                             ,G00127,Third Party Payments          ,Private Contractors           ,EH56,Carriageway/Fway Maint,458,"1,275.28",7/4/2012,R,FM CONWAY LTD                 
2012 - JUL,Highways & Transport Services,Env Safety&Routine Maintenance,Walk Sheets                             ,G00127,Third Party Payments          ,Private Contractors           ,EH56,Carriageway/Fway Maint,459,"6,811.50",7/16/2012,R,FM CONWAY LTD                 
2012 - JUL,Highways & Transport Services,Env Safety&Routine Maintenance,Traffic Signs.                          ,G00160,Third Party Payments          ,Private Contractors           ,EH01,Miscellaneous Agency Services,460,513,6/12/2012,R,UK POWER NETWORKS (OPERATIONS)
2012 - JUL,Highways & Transport Services,Env Safety&Routine Maintenance,Traffic Signs.                          ,G00160,Third Party Payments          ,Private Contractors           ,EH01,Miscellaneous Agency Services,461,"1,265.68",6/18/2012,R,MAY GURNEY LTD T/A CARTLEDGE  
2012 - JUL,Highways & Transport Services,Env Safety&Routine Maintenance,Traffic Signs.                          ,G00160,Third Party Payments          ,Private Contractors           ,EH01,Miscellaneous Agency Services,462,"2,004.73",6/29/2012,R,MAY GURNEY LTD T/A CARTLEDGE  
2012 - JUL,Highways & Transport Services,Tr'sport Plg / Policy / Str'gy,CPZ implementation & Consultat          ,G00211,Third Party Payments          ,Private Contractors           ,EH56,Carriageway/Fway Maint,463,"1,167.03",7/16/2012,R,FM CONWAY LTD                 
2012 - JUL,Highways & Transport Services,Traffic Mgt & Road Safety,Tr Man & Accid Sch                      ,G00220,Employees                     ,Indirect Employee Expenses    ,AB57,External Training Costs,464,"1,500.00",7/27/2012,R,PTRC EDUCATION & RESEARCH SERV
2012 - JUL,Highways & Transport Services,Traffic Mgt & Road Safety,Tr Man & Accid Sch                      ,G00220,Third Party Payments          ,Private Contractors           ,EH56,Carriageway/Fway Maint,465,"1,332.80",7/16/2012,R,FM CONWAY LTD                 
2012 - JUL,Highways & Transport Services,Street Lights(Inc Energy Cost),Street Lighting .                       ,G00260,Premises Related Expenditure  ,Energy Costs                  ,BB02,Electricity,466,"55,178.54",6/14/2012,R,KENT COUNTY COUNCIL           
2012 - JUL,Highways & Transport Services,Street Lights(Inc Energy Cost),Street Lighting .                       ,G00260,Premises Related Expenditure  ,Energy Costs                  ,BB02,Electricity,467,"53,398.59",7/6/2012,R,KENT COUNTY COUNCIL           
2012 - JUL,Highways & Transport Services,Street Lights(Inc Energy Cost),Street Lighting .                       ,G00260,Third Party Payments          ,Private Contractors           ,EH01,Miscellaneous Agency Services,468,644,6/22/2012,R,UK POWER NETWORKS (OPERATIONS)
2012 - JUL,Highways & Transport Services,Street Lights(Inc Energy Cost),Street Lighting .                       ,G00260,Third Party Payments          ,Private Contractors           ,EH01,Miscellaneous Agency Services,469,644,6/12/2012,R,UK POWER NETWORKS (OPERATIONS)
2012 - JUL,Highways & Transport Services,Street Lights(Inc Energy Cost),Street Lighting .                       ,G00260,Third Party Payments          ,Private Contractors           ,EH01,Miscellaneous Agency Services,470,"1,763.68",6/29/2012,R,MAY GURNEY LTD T/A CARTLEDGE  
2012 - JUL,Highways & Transport Services,Street Lights(Inc Energy Cost),Street Lighting .                       ,G00260,Third Party Payments          ,Private Contractors           ,EH01,Miscellaneous Agency Services,471,643,6/19/2012,R,UK POWER NETWORKS (OPERATIONS)
2012 - JUL,Highways & Transport Services,Street Lights(Inc Energy Cost),Street Lighting .                       ,G00260,Third Party Payments          ,Private Contractors           ,EH01,Miscellaneous Agency Services,472,"13,947.98",6/29/2012,R,MAY GURNEY LTD T/A CARTLEDGE  
2012 - JUL,Highways & Transport Services,Street Lights(Inc Energy Cost),Street Lighting .                       ,G00260,Third Party Payments          ,Private Contractors           ,EH01,Miscellaneous Agency Services,473,643,6/22/2012,R,UK POWER NETWORKS (OPERATIONS)
2012 - JUL,Highways & Transport Services,Street Lights(Inc Energy Cost),Street Lighting .                       ,G00260,Third Party Payments          ,Private Contractors           ,EH01,Miscellaneous Agency Services,474,864.32,6/18/2012,R,MAY GURNEY LTD T/A CARTLEDGE  
2012 - JUL,Highways & Transport Services,Street Lights(Inc Energy Cost),Street Lighting .                       ,G00260,Third Party Payments          ,Private Contractors           ,EH01,Miscellaneous Agency Services,475,"3,253.30",6/18/2012,R,MAY GURNEY LTD T/A CARTLEDGE  
2012 - JUL,Highways & Transport Services,Parking Services,Hartfield Road C P                      ,G00294,Premises Related Expenditure  ,RepairsAlterations&MtceOfBldgs,BA06,Repairs & Maintenance General,476,600,6/25/2012,R,TEASDALE GROUP LTD            
2012 - JUL,Highways & Transport Services,Parking Services,Queen's Road C P                        ,G00297,Premises Related Expenditure  ,RepairsAlterations&MtceOfBldgs,BA06,Repairs & Maintenance General,477,600,6/25/2012,R,TEASDALE GROUP LTD            
2012 - JUL,Highways & Transport Services,Parking Services,St. Georges Car Park WEST M/S           ,G00302,Premises Related Expenditure  ,RepairsAlterations&MtceOfBldgs,BA06,Repairs & Maintenance General,478,800,6/25/2012,R,TEASDALE GROUP LTD            
2012 - JUL,Highways & Transport Services,Parking Services,St. Georges Car Park WEST M/S           ,G00302,Premises Related Expenditure  ,RepairsAlterations&MtceOfBldgs,BA06,Repairs & Maintenance General,479,847.38,6/29/2012,R,MAY GURNEY LTD T/A CARTLEDGE  
2012 - JUL,Highways & Transport Services,Parking Services,St. Georges Car Park WEST M/S           ,G00302,Premises Related Expenditure  ,Energy Costs                  ,BB02,Electricity,480,"1,205.51",7/4/2012,R,KENT COUNTY COUNCIL           
2012 - JUL,Highways & Transport Services,Parking Services,"St. Mks Rd, Multi Sty                   ",G00308,Premises Related Expenditure  ,RepairsAlterations&MtceOfBldgs,BA06,Repairs & Maintenance General,481,985.05,7/6/2012,R,R.J.H.WELDING                 
2012 - JUL,Highways & Transport Services,Parking Services,"St. Mks Rd, Multi Sty                   ",G00308,Premises Related Expenditure  ,Energy Costs                  ,BB02,Electricity,482,"1,639.12",7/13/2012,R,EDF ENERGY 1 LIMITED          
2012 - JUL,Highways & Transport Services,Parking Services,"St. Mks Rd, Multi Sty                   ",G00308,Premises Related Expenditure  ,Rents                         ,BC01,Miscellaneous Rents,483,"3,175.55",4/25/2012,R,FISHER PROPERTY CONSULTANTS   
2012 - JUL,Highways & Transport Services,Parking Services,"St. Mks Rd, Multi Sty                   ",G00308,Premises Related Expenditure  ,Rents                         ,BC01,Miscellaneous Rents,484,545.62,4/25/2012,R,FISHER PROPERTY CONSULTANTS   
2012 - JUL,Highways & Transport Services,Parking Services,Civil Enforcement Officers              ,G00330,Supplies & Services           ,Clothing Unfrms Laundry       ,DC02,Clothing & Uniforms,485,718.5,6/26/2012,R,KELTIC CLOTHING LTD           
2012 - JUL,Highways & Transport Services,Parking Services,Civil Enforcement Officers              ,G00330,Supplies & Services           ,Clothing Unfrms Laundry       ,DC02,Clothing & Uniforms,486,615.45,6/26/2012,R,KELTIC CLOTHING LTD           
2012 - JUL,Highways & Transport Services,Parking Services,Civil Enforcement Officers              ,G00330,Supplies & Services           ,Clothing Unfrms Laundry       ,DC02,Clothing & Uniforms,487,501.4,6/26/2012,R,KELTIC CLOTHING LTD           
2012 - JUL,Highways & Transport Services,Parking Services,Civil Enforcement Officers              ,G00330,Supplies & Services           ,Clothing Unfrms Laundry       ,DC02,Clothing & Uniforms,488,"1,320.00",7/12/2012,R,VOUCHER SYSTEMS LIMITED       
2012 - JUL,Highways & Transport Services,Parking Services,Operational Running Costs               ,G00331,Supplies & Services           ,Equip Furniture/Materials     ,DA09,Equip-Purchases,489,"1,700.00",7/5/2012,R,PARKEON LTD                   
2012 - JUL,Highways & Transport Services,Parking Services,Operational Running Costs               ,G00331,Supplies & Services           ,Comms and Computing           ,DG08,Computer Hardware,490,"4,109.28",7/16/2012,R,VIGLEN LIMITED                
2012 - JUL,Highways & Transport Services,Parking Services,Operational Running Costs               ,G00331,Supplies & Services           ,Comms and Computing           ,DG08,Computer Hardware,491,"1,076.60",7/16/2012,R,VIGLEN LIMITED                
2012 - JUL,Highways & Transport Services,Parking Services,Operational Running Costs               ,G00331,Supplies & Services           ,Comms and Computing           ,DG50,Other IT Expenditure,492,659.94,7/7/2012,R,INSIGHT DIRECT (UK) LTD       
2012 - JUL,Highways & Transport Services,Parking Services,Operational Running Costs               ,G00331,Third Party Payments          ,Other Agencies                ,EJ58,Parking Cttee for London,493,"14,920.91",7/12/2012,R,LONDON COUNCILS               
2012 - JUL,Highways & Transport Services,Env Safety&Routine Maintenance,Flood Risk Management                   ,G00350,Supplies & Services           ,Services                      ,DF03,Consultants,494,"14,005.80",7/5/2012,R,URS INFRASTRUCTURE & ENV UK LT
2012 - JUL,Highways & Transport Services,Structural Maintenance,Footpath Crossings.                     ,G00390,Third Party Payments          ,Private Contractors           ,EH56,Carriageway/Fway Maint,495,"2,241.46",7/4/2012,R,FM CONWAY LTD                 
2012 - JUL,Highways & Transport Services,Structural Maintenance,Footpath Crossings.                     ,G00390,Third Party Payments          ,Private Contractors           ,EH56,Carriageway/Fway Maint,496,"6,310.04",7/18/2012,R,FM CONWAY LTD                 
2012 - JUL,Cultural Env Reg&Plan Services,Street Cleaning - Not highways,Street Cleansing (Inc. Gully)           ,G00492,Premises Related Expenditure  ,Energy Costs                  ,BB02,Electricity,497,"1,075.10",5/16/2012,R,EDF ENERGY                    
2012 - JUL,Cultural Env Reg&Plan Services,Street Cleaning - Not highways,Street Cleansing (Inc. Gully)           ,G00492,Premises Related Expenditure  ,Water Services                ,BE01,Use of Water (Metered),498,"2,389.00",6/27/2012,R,SUPPLY UK HIRE SHOPS          
2012 - JUL,Cultural Env Reg&Plan Services,Street Cleaning - Not highways,Street Cleansing (Inc. Gully)           ,G00492,Premises Related Expenditure  ,Water Services                ,BE01,Use of Water (Metered),499,"2,389.00",6/27/2012,R,SUPPLY UK HIRE SHOPS          
2012 - JUL,Cultural Env Reg&Plan Services,Street Cleaning - Not highways,Street Cleansing (Inc. Gully)           ,G00492,Premises Related Expenditure  ,Water Services                ,BE01,Use of Water (Metered),500,"2,389.00",6/27/2012,R,SUPPLY UK HIRE SHOPS          
2012 - JUL,Cultural Env Reg&Plan Services,Street Cleaning - Not highways,Street Cleansing (Inc. Gully)           ,G00492,Premises Related Expenditure  ,Water Services                ,BE01,Use of Water (Metered),501,"1,039.00",6/27/2012,R,SUPPLY UK HIRE SHOPS          
2012 - JUL,Cultural Env Reg&Plan Services,Street Cleaning - Not highways,Street Cleansing (Inc. Gully)           ,G00492,Premises Related Expenditure  ,Water Services                ,BE01,Use of Water (Metered),502,"1,039.00",6/27/2012,R,SUPPLY UK HIRE SHOPS          
2012 - JUL,Cultural Env Reg&Plan Services,Street Cleaning - Not highways,Street Cleansing (Inc. Gully)           ,G00492,Premises Related Expenditure  ,Water Services                ,BE01,Use of Water (Metered),503,"1,039.00",7/4/2012,R,SUPPLY UK HIRE SHOPS          
2012 - JUL,Cultural Env Reg&Plan Services,Street Cleaning - Not highways,Street Cleansing (Inc. Gully)           ,G00492,Premises Related Expenditure  ,Water Services                ,BE01,Use of Water (Metered),504,"1,039.00",6/27/2012,R,SUPPLY UK HIRE SHOPS          
2012 - JUL,Cultural Env Reg&Plan Services,Street Cleaning - Not highways,Street Cleansing (Inc. Gully)           ,G00492,Premises Related Expenditure  ,Water Services                ,BE01,Use of Water (Metered),505,"1,039.00",6/27/2012,R,SUPPLY UK HIRE SHOPS          
2012 - JUL,Cultural Env Reg&Plan Services,Street Cleaning - Not highways,Street Cleansing (Inc. Gully)           ,G00492,Supplies & Services           ,Equip Furniture/Materials     ,DA08,Tools-Purchase,506,724.75,7/16/2012,R,BELL BRUSH                    
2012 - JUL,Cultural Env Reg&Plan Services,Street Cleaning - Not highways,Street Cleansing (Inc. Gully)           ,G00492,Supplies & Services           ,Equip Furniture/Materials     ,DA31,Waste Sacks & Bags,507,926.1,6/22/2012,R,POLARIS PLASTICS LTD          
2012 - JUL,Cultural Env Reg&Plan Services,Street Cleaning - Not highways,Street Cleansing (Inc. Gully)           ,G00492,Supplies & Services           ,Clothing Unfrms Laundry       ,DC02,Clothing & Uniforms,508,"2,133.43",6/19/2012,R,SAFETY MANAGEMENT             
2012 - JUL,Cultural Env Reg&Plan Services,Street Cleaning - Not highways,Street Cleansing (Inc. Gully)           ,G00492,Third Party Payments          ,Private Contractors           ,EH74,Weed Spraying Contract,509,"11,517.98",5/31/2012,R,COMPLETE WEED CONTROL         
2012 - JUL,Cultural Env Reg&Plan Services,Street Cleaning - Not highways,Graffiti                                ,G00495,Supplies & Services           ,Equip Furniture/Materials     ,DA04,Materials,510,"2,716.75",5/18/2012,R,GRAFFITIHOTLINE               
2012 - JUL,Cultural Env Reg&Plan Services,Waste Disposal,Waste Disposal .                        ,G00550,Third Party Payments          ,Private Contractors           ,EH04,Accommodation Based Support,511,"198,418.91",6/15/2012,R,KINGSTON CORPORATION          
2012 - JUL,Cultural Env Reg&Plan Services,Waste Disposal,Waste Disposal .                        ,G00550,Third Party Payments          ,Private Contractors           ,EH04,Accommodation Based Support,512,"357,097.72",6/15/2012,R,KINGSTON CORPORATION          
2012 - JUL,Cultural Env Reg&Plan Services,Waste Disposal,Waste Disposal .                        ,G00550,Third Party Payments          ,Private Contractors           ,EH04,Accommodation Based Support,513,"109,332.36",6/15/2012,R,KINGSTON CORPORATION          
2012 - JUL,Cultural Env Reg&Plan Services,Waste Disposal,Waste Disposal .                        ,G00550,Third Party Payments          ,Private Contractors           ,EH04,Accommodation Based Support,514,"354,219.66",7/10/2012,R,KINGSTON CORPORATION          
2012 - JUL,Cultural Env Reg&Plan Services,Waste Disposal,Waste Disposal .                        ,G00550,Third Party Payments          ,Private Contractors           ,EH10,Contract Payments,515,"32,925.54",6/15/2012,R,KINGSTON CORPORATION          
2012 - JUL,Cultural Env Reg&Plan Services,Waste Disposal,Waste Disposal .                        ,G00550,Third Party Payments          ,Private Contractors           ,EH10,Contract Payments,516,"22,768.97",6/15/2012,R,KINGSTON CORPORATION          
2012 - JUL,Cultural Env Reg&Plan Services,Waste Disposal,Waste Disposal .                        ,G00550,Third Party Payments          ,Private Contractors           ,EH10,Contract Payments,517,"31,529.62",6/15/2012,R,KINGSTON CORPORATION          
2012 - JUL,Cultural Env Reg&Plan Services,Waste Disposal,Waste Disposal .                        ,G00550,Third Party Payments          ,Private Contractors           ,EH10,Contract Payments,518,"4,734.44",6/15/2012,R,KINGSTON CORPORATION          
2012 - JUL,Cultural Env Reg&Plan Services,Waste Disposal,Waste Disposal .                        ,G00550,Third Party Payments          ,Private Contractors           ,EH10,Contract Payments,519,"33,511.11",7/10/2012,R,KINGSTON CORPORATION          
2012 - JUL,Cultural Env Reg&Plan Services,Waste Disposal,Waste Disposal .                        ,G00550,Third Party Payments          ,Private Contractors           ,EH66,Clinical Waste Disposal,520,653.09,6/30/2012,R,S.GRUNDON (WASTE) LTD.        
2012 - JUL,Cultural Env Reg&Plan Services,Waste Disposal,Waste Disposal .                        ,G00550,Third Party Payments          ,Private Contractors           ,EH96,Hardcore Disposal - Country Waste,521,579.79,6/30/2012,R,CORY ENVIRONMENTAL LIMITED    
2012 - JUL,Cultural Env Reg&Plan Services,Waste Disposal,Waste Disposal .                        ,G00550,Third Party Payments          ,Private Contractors           ,EH97,Detritus - Alt. Contractor,522,579.6,5/15/2012,R,NEOLAY LTD                    
2012 - JUL,Cultural Env Reg&Plan Services,Waste Disposal,Garth Road Site                         ,G00580,Premises Related Expenditure  ,Water Services                ,BE02,Use of Water (Unmetered),523,"1,373.10",5/25/2012,R,SUTTON AND EAST SURREY WATER  
2012 - JUL,Cultural Env Reg&Plan Services,Waste Disposal,Garth Road Site                         ,G00580,Supplies & Services           ,Equip Furniture/Materials     ,DA01,Equipment - R & M,524,565,6/3/2012,R,R.J.H.WELDING                 
2012 - JUL,Cultural Env Reg&Plan Services,Waste Disposal,Garth Road Site                         ,G00580,Supplies & Services           ,Equip Furniture/Materials     ,DA70,Milk and Meals,525,"3,675.00",4/30/2012,R,MATTIUSSI UK                  
2012 - JUL,Cultural Env Reg&Plan Services,Waste Disposal,Garth Road Site                         ,G00580,Supplies & Services           ,Equip Furniture/Materials     ,DA70,Milk and Meals,526,"3,675.00",4/30/2012,R,MATTIUSSI UK                  
2012 - JUL,Cultural Env Reg&Plan Services,Waste Disposal,Garth Road Site                         ,G00580,Supplies & Services           ,Equip Furniture/Materials     ,DA70,Milk and Meals,527,"7,350.00",4/30/2012,R,MATTIUSSI UK                  
2012 - JUL,Cultural Env Reg&Plan Services,Waste Disposal,Garth Road Site                         ,G00580,Third Party Payments          ,Private Contractors           ,EH01,Miscellaneous Agency Services,528,"1,668.32",6/15/2012,R,KINGSTON CORPORATION          
2012 - JUL,Cultural Env Reg&Plan Services,Waste Disposal,Garth Road Site                         ,G00580,Third Party Payments          ,Private Contractors           ,EH01,Miscellaneous Agency Services,529,"102,758.01",6/15/2012,R,KINGSTON CORPORATION          
2012 - JUL,Cultural Env Reg&Plan Services,Waste Disposal,Garth Road Site                         ,G00580,Third Party Payments          ,Private Contractors           ,EH63,Paper Haulage,530,"8,252.65",6/15/2012,R,KINGSTON CORPORATION          
2012 - JUL,Cultural Env Reg&Plan Services,Waste Disposal,Garth Road Site                         ,G00580,Third Party Payments          ,Private Contractors           ,EH63,Paper Haulage,531,"3,124.20",6/15/2012,R,KINGSTON CORPORATION          
2012 - JUL,Cultural Env Reg&Plan Services,Waste Disposal,Garth Road Site                         ,G00580,Third Party Payments          ,Private Contractors           ,EH63,Paper Haulage,532,"6,159.75",6/15/2012,R,KINGSTON CORPORATION          
2012 - JUL,Cultural Env Reg&Plan Services,Waste Disposal,Garth Road Site                         ,G00580,Third Party Payments          ,Private Contractors           ,EH63,Paper Haulage,533,"9,639.05",7/26/2012,R,KINGSTON CORPORATION          
2012 - JUL,Highways & Transport Services,Structural Maintenance,Grass Cut/Tr Mtce                       ,G00600,Premises Related Expenditure  ,Ground Maintenance Costs      ,BL03,Maintenance of Grounds,534,"4,689.34",6/26/2012,R,VEOLIA ES (UK) LIMITED        
2012 - JUL,Highways & Transport Services,Structural Maintenance,Grass Cut/Tr Mtce                       ,G00600,Premises Related Expenditure  ,Ground Maintenance Costs      ,BL03,Maintenance of Grounds,535,"13,490.38",6/26/2012,R,VEOLIA ES (UK) LIMITED        
2012 - JUL,Cultural Env Reg&Plan Services,Environmental Health,Dog Control.                            ,G00620,Third Party Payments          ,Private Contractors           ,EH02,Miscellaneous Hired Services,536,"1,490.00",6/3/2012,R,RIVERSIDE ANIMAL SERVICES     
2012 - JUL,Cultural Env Reg&Plan Services,Environmental Health,Dog Control.                            ,G00620,Third Party Payments          ,Private Contractors           ,EH02,Miscellaneous Hired Services,537,"1,590.00",5/31/2012,R,WOODLANDS ANIMAL CARE LTD     
2012 - JUL,Cultural Env Reg&Plan Services,Environmental Health,Dog Control.                            ,G00620,Third Party Payments          ,Private Contractors           ,EH02,Miscellaneous Hired Services,538,"2,341.10",7/16/2012,R,RIVERSIDE ANIMAL SERVICES     
2012 - JUL,Cultural Env Reg&Plan Services,Environmental Health,Dog Control.                            ,G00620,Third Party Payments          ,Private Contractors           ,EH02,Miscellaneous Hired Services,539,"1,430.00",6/30/2012,R,WOODLANDS ANIMAL CARE LTD     
2012 - JUL,Cultural Env Reg&Plan Services,Waste Collection,Recycling Activities                    ,G00640,Employees                     ,Indirect Employee Expenses    ,AB57,External Training Costs,540,"1,297.00",6/29/2012,R,KEEP BRITAIN TIDY             
2012 - JUL,Cultural Env Reg&Plan Services,Waste Collection,Recycling Activities                    ,G00640,Supplies & Services           ,Equip Furniture/Materials     ,DA04,Materials,541,"2,340.00",5/16/2012,R,LONDON LETTERBOX MARKETING    
2012 - JUL,Cultural Env Reg&Plan Services,Waste Collection,Recycling Activities                    ,G00640,Supplies & Services           ,Equip Furniture/Materials     ,DA32,Wheeled Bins,542,870,6/21/2012,R,SPIDER UK LTD                 
2012 - JUL,Cultural Env Reg&Plan Services,Waste Collection,Recycling Activities                    ,G00640,Third Party Payments          ,Private Contractors           ,EH03,Term Contract,543,"83,296.46",6/15/2012,R,KINGSTON CORPORATION          
2012 - JUL,Cultural Env Reg&Plan Services,Waste Collection,Recycling Activities                    ,G00640,Third Party Payments          ,Private Contractors           ,EH03,Term Contract,544,"48,247.56",6/15/2012,R,KINGSTON CORPORATION          
2012 - JUL,Cultural Env Reg&Plan Services,Waste Collection,Recycling Activities                    ,G00640,Third Party Payments          ,Private Contractors           ,EH10,Contract Payments,545,"6,804.72",7/10/2012,R,KINGSTON CORPORATION          
2012 - JUL,Cultural Env Reg&Plan Services,Waste Collection,Recycling Activities                    ,G00640,Third Party Payments          ,Private Contractors           ,EH18,Disposal of Kitchen Waste,546,"20,643.86",6/15/2012,R,KINGSTON CORPORATION          
2012 - JUL,Cultural Env Reg&Plan Services,Waste Collection,Recycling Activities                    ,G00640,Third Party Payments          ,Private Contractors           ,EH18,Disposal of Kitchen Waste,547,"15,743.95",6/15/2012,R,KINGSTON CORPORATION          
2012 - JUL,Cultural Env Reg&Plan Services,Waste Collection,Recycling Activities                    ,G00640,Third Party Payments          ,Private Contractors           ,EH19,Dano Drum Contract Sita Haulage & H,548,"2,106.14",7/10/2012,R,KINGSTON CORPORATION          
2012 - JUL,Cultural Env Reg&Plan Services,Waste Collection,Recycling Activities                    ,G00640,Third Party Payments          ,Private Contractors           ,EH61,Green Waste Disposal,549,"17,462.85",5/31/2012,R,VIRIDOR WASTE KENT LTD        
2012 - JUL,Cultural Env Reg&Plan Services,Waste Collection,Recycling Activities                    ,G00640,Third Party Payments          ,Private Contractors           ,EH61,Green Waste Disposal,550,"15,813.71",6/30/2012,R,VIRIDOR WASTE KENT LTD        
2012 - JUL,Cultural Env Reg&Plan Services,Waste Collection,Recycling Activities                    ,G00640,Third Party Payments          ,Private Contractors           ,EH63,Paper Haulage,551,"6,503.46",6/15/2012,R,KINGSTON CORPORATION          
2012 - JUL,Cultural Env Reg&Plan Services,Waste Collection,Recycling Activities                    ,G00640,Third Party Payments          ,Private Contractors           ,EH63,Paper Haulage,552,"10,286.95",6/15/2012,R,KINGSTON CORPORATION          
2012 - JUL,Cultural Env Reg&Plan Services,Waste Collection,Recycling Activities                    ,G00640,Third Party Payments          ,Private Contractors           ,EH63,Paper Haulage,553,"20,954.36",6/15/2012,R,KINGSTON CORPORATION          
2012 - JUL,Cultural Env Reg&Plan Services,Waste Collection,Recycling Activities                    ,G00640,Third Party Payments          ,Private Contractors           ,EH94,Waste Disposal - Alt. Site,554,"6,990.98",7/10/2012,R,KINGSTON CORPORATION          
2012 - JUL,Cultural Env Reg&Plan Services,Waste Collection,BARROW AND BINS REPLACEMENT        ,G00641,Supplies & Services           ,Equip Furniture/Materials     ,DA54,Recycling Containers,555,"6,048.00",6/28/2012,R,STRAIGHT PLC                  
2012 - JUL,Cultural Env Reg&Plan Services,Waste Collection,Recycling Collection                    ,G00645,Supplies & Services           ,Clothing Unfrms Laundry       ,DC02,Clothing & Uniforms,556,"2,133.43",6/19/2012,R,SAFETY MANAGEMENT             
2012 - JUL,Cultural Env Reg&Plan Services,Waste Collection,Garden Waste Service                    ,G00647,Supplies & Services           ,Equip Furniture/Materials     ,DA31,Waste Sacks & Bags,557,"2,937.60",6/21/2012,R,ALPHA WASTE SUPPLIES          
2012 - JUL,Cultural Env Reg&Plan Services,Waste Collection,Refuse Collection (Operations)          ,G00661,Transport Related Expenditure ,Direct Transport Costs        ,CA52,Reps Vehicles Ins Claims,558,750,6/14/2012,R,S.E.T.S SERVICES              
2012 - JUL,Cultural Env Reg&Plan Services,Waste Collection,Refuse Collection (Operations)          ,G00661,Supplies & Services           ,Equip Furniture/Materials     ,DA08,Tools-Purchase,559,728,7/6/2012,R,BELL BRUSH                    
2012 - JUL,Cultural Env Reg&Plan Services,Waste Collection,Refuse Collection (Operations)          ,G00661,Supplies & Services           ,Clothing Unfrms Laundry       ,DC02,Clothing & Uniforms,560,"2,133.45",6/19/2012,R,SAFETY MANAGEMENT             
2012 - JUL,Cultural Env Reg&Plan Services,Waste Collection,Commercial Waste Collection             ,G00665,Supplies & Services           ,Equip Furniture/Materials     ,DA32,Wheeled Bins,561,"1,656.00",6/21/2012,R,SPIDER UK LTD                 
2012 - JUL,Cultural Env Reg&Plan Services,Street Cleaning - Not highways,Waste Enforcement                       ,G00680,Supplies & Services           ,Services                      ,DF30,Activities Programme,562,"1,920.00",7/3/2012,R,DANGEROUS THEATRE COMPANY     
2012 - JUL,Cultural Env Reg&Plan Services,Environmental Health,Merton Winter Warmer Programme          ,G00696,Third Party Payments          ,Private Contractors           ,EH02,Miscellaneous Hired Services,563,700,5/10/2012,R,OSBORNE ENERGY LTD            
2012 - JUL,Cultural Env Reg&Plan Services,Environmental Health,Merton Winter Warmer Programme          ,G00696,Third Party Payments          ,Private Contractors           ,EH02,Miscellaneous Hired Services,564,"-1,217.36",3/14/2012,R,OSBORNE ENERGY LTD            
2012 - JUL,Cultural Env Reg&Plan Services,Environmental Health,Merton Winter Warmer Programme          ,G00696,Third Party Payments          ,Private Contractors           ,EH02,Miscellaneous Hired Services,565,875,5/3/2012,R,OSBORNE ENERGY LTD            
2012 - JUL,Cultural Env Reg&Plan Services,Environmental Health,Merton Winter Warmer Programme          ,G00696,Third Party Payments          ,Private Contractors           ,EH02,Miscellaneous Hired Services,566,"1,750.00",5/3/2012,R,OSBORNE ENERGY LTD            
2012 - JUL,Cultural Env Reg&Plan Services,Environmental Health,Health & Safety                         ,G00697,Third Party Payments          ,Private Contractors           ,EH10,Contract Payments,567,"2,835.00",7/3/2012,R,PUBLIC ANALYST SCIENTIFIC SER.
2012 - JUL,Cultural Env Reg&Plan Services,Environmental Health,Pest Control                            ,G00724,Supplies & Services           ,Equip Furniture/Materials     ,DA09,Equip-Purchases,568,514.07,6/12/2012,R,KILLGERM CHEMICALS LIMITED    
2012 - JUL,Cultural Env Reg&Plan Services,Environmental Health,Housing/Env                             ,G00730,Employees                     ,Direct Employee Expenses      ,AA17,Agency Staff & Casual Paymts,569,893.55,6/20/2012,R,REDACTED
2012 - JUL,Cultural Env Reg&Plan Services,Environmental Health,Housing/Env                             ,G00730,Employees                     ,Direct Employee Expenses      ,AA17,Agency Staff & Casual Paymts,570,901.6,7/18/2012,R,REDACTED
2012 - JUL,Cultural Env Reg&Plan Services,Environmental Health,Housing/Env                             ,G00730,Employees                     ,Direct Employee Expenses      ,AA17,Agency Staff & Casual Paymts,571,579.6,7/11/2012,R,REDACTED
2012 - JUL,Cultural Env Reg&Plan Services,Environmental Health,Housing/Env                             ,G00730,Employees                     ,Direct Employee Expenses      ,AA17,Agency Staff & Casual Paymts,572,877.45,7/4/2012,R,REDACTED
2012 - JUL,Cultural Env Reg&Plan Services,SMSS (Env),Waste Management                        ,G00900,Premises Related Expenditure  ,RepairsAlterations&MtceOfBldgs,BA01,DDM - General Building,573,"5,770.95",3/26/2012,R,SANTANDER ASSET FINANCE PLC   
2012 - JUL,Central Services,Gen Grants Bequest & Donations,Vestry Hall                             ,G40314,Employees                     ,Direct Employee Expenses      ,AA17,Agency Staff & Casual Paymts,574,"4,486.95",6/12/2012,R,PCL SECURITY LTD              
2012 - JUL,Central Services,Gen Grants Bequest & Donations,Vestry Hall                             ,G40314,Employees                     ,Direct Employee Expenses      ,AA17,Agency Staff & Casual Paymts,575,"4,486.95",7/10/2012,R,PCL SECURITY LTD              
2012 - JUL,Central Services,Gen Grants Bequest & Donations,Vestry Hall                             ,G40314,Employees                     ,Direct Employee Expenses      ,AA17,Agency Staff & Casual Paymts,576,"1,040.12",6/30/2012,R,PCL SECURITY LTD              
2012 - JUL,Central Services,Gen Grants Bequest & Donations,Vestry Hall                             ,G40314,Third Party Payments          ,Private Contractors           ,EH02,Miscellaneous Hired Services,577,"1,408.47",6/24/2012,R,DYNAMIQ CLEANING LIMITED      
2012 - JUL,Cultural Env Reg&Plan Services,Development Control,Development Control                     ,H01130,Supplies & Services           ,Prntng Stnry Gen Off Exp      ,DE03,Stationery,578,670,5/30/2012,R,ROTADEX SYSTEMS LTD           
2012 - JUL,Cultural Env Reg&Plan Services,Development Control,Development Control                     ,H01130,Supplies & Services           ,Services                      ,DF11,Counsel's fees,579,"1,000.00",7/11/2012,R,VALUATION OFFICE AGENCY ADMIN.
2012 - JUL,Cultural Env Reg&Plan Services,Development Control,Development Control                     ,H01130,Supplies & Services           ,Services                      ,DF11,Counsel's fees,580,500,7/13/2012,R,VALUATION OFFICE AGENCY ADMIN.
2012 - JUL,Cultural Env Reg&Plan Services,Planning Policy,Spatial Policy                          ,H01173,Employees                     ,Indirect Employee Expenses    ,AB57,External Training Costs,581,"1,400.00",7/5/2012,R,ONE WORLD CONSULTING LTD      
2012 - JUL,Cultural Env Reg&Plan Services,Planning Policy,HPDG - FUTUREMERTON                     ,H01183,Supplies & Services           ,Services                      ,DF03,Consultants,582,"7,075.00",6/28/2012,R,ADROIT ECONOMICS              
2012 - JUL,Cultural Env Reg&Plan Services,Planning Policy,HPDG - FUTUREMERTON                     ,H01183,Supplies & Services           ,Grants and Subscriptions      ,DJ04,Subscriptions,583,"4,000.00",5/14/2012,R,OPEN CITY                     
2012 - JUL,Cultural Env Reg&Plan Services,Economic Development,(LABGI)-BUSINESS SUPPORT                ,H01210,Supplies & Services           ,Grants and Subscriptions      ,DJ54,Contributions,584,"10,000.00",6/21/2012,R,SOUTH LONDON BUSINESS         
2012 - JUL,CS -Oth Operating Inc & Expend,Trading A/c Surpluses/Deficits,Transport-Contract Hire                 ,J01374,Transport Related Expenditure ,Direct Transport Costs        ,CA01,Petrol Derv & Oil,585,"37,938.92",6/14/2012,R,EMO OILS LTD                  
2012 - JUL,CS -Oth Operating Inc & Expend,Trading A/c Surpluses/Deficits,Transport-Contract Hire                 ,J01374,Transport Related Expenditure ,Direct Transport Costs        ,CA01,Petrol Derv & Oil,586,"37,424.72",7/2/2012,R,EMO OILS LTD                  
2012 - JUL,CS -Oth Operating Inc & Expend,Trading A/c Surpluses/Deficits,Transport-Contract Hire                 ,J01374,Transport Related Expenditure ,Direct Transport Costs        ,CA03,Vehicle Licences,587,"1,305.00",7/19/2012,R,DVLA SWANSEA                  
2012 - JUL,CS -Oth Operating Inc & Expend,Trading A/c Surpluses/Deficits,Transport-Contract Hire                 ,J01374,Transport Related Expenditure ,Direct Transport Costs        ,CA52,Reps Vehicles Ins Claims,588,500,6/30/2012,R,FLEETSPEED COACHWORKS LTD.    
2012 - JUL,CS -Oth Operating Inc & Expend,Trading A/c Surpluses/Deficits,Transport-Contract Hire                 ,J01374,Transport Related Expenditure ,Contract Hire and Op Leasing  ,CC53,Plant Hire for MRCS,589,693,6/28/2012,R,GVS HIRE LTD                  
2012 - JUL,CS -Oth Operating Inc & Expend,Trading A/c Surpluses/Deficits,Transport-Contract Hire                 ,J01374,Transport Related Expenditure ,Contract Hire and Op Leasing  ,CC53,Plant Hire for MRCS,590,"1,113.00",6/28/2012,R,GVS HIRE LTD                  
2012 - JUL,CS -Oth Operating Inc & Expend,Trading A/c Surpluses/Deficits,Transport-Contract Hire                 ,J01374,Transport Related Expenditure ,Contract Hire and Op Leasing  ,CC53,Plant Hire for MRCS,591,693,6/28/2012,R,GVS HIRE LTD                  
2012 - JUL,CS -Oth Operating Inc & Expend,Trading A/c Surpluses/Deficits,Transport-Contract Hire                 ,J01374,Transport Related Expenditure ,Contract Hire and Op Leasing  ,CC53,Plant Hire for MRCS,592,535,6/24/2012,R,PHOENIX VEHICLE HIRE LTD      
2012 - JUL,CS -Oth Operating Inc & Expend,Trading A/c Surpluses/Deficits,Transport-Contract Hire                 ,J01374,Transport Related Expenditure ,Contract Hire and Op Leasing  ,CC53,Plant Hire for MRCS,593,535,6/24/2012,R,PHOENIX VEHICLE HIRE LTD      
2012 - JUL,CS -Oth Operating Inc & Expend,Trading A/c Surpluses/Deficits,Transport-Contract Hire                 ,J01374,Transport Related Expenditure ,Contract Hire and Op Leasing  ,CC53,Plant Hire for MRCS,594,684,4/30/2012,R,B&T PLANT HIRE LTD            
2012 - JUL,CS -Oth Operating Inc & Expend,Trading A/c Surpluses/Deficits,Transport-Contract Hire                 ,J01374,Transport Related Expenditure ,Contract Hire and Op Leasing  ,CC53,Plant Hire for MRCS,595,"2,242.00",6/30/2012,R,DRM MUNICIPAL SERVICES LIMITED
2012 - JUL,CS -Oth Operating Inc & Expend,Trading A/c Surpluses/Deficits,Transport-Contract Hire                 ,J01374,Transport Related Expenditure ,Contract Hire and Op Leasing  ,CC53,Plant Hire for MRCS,596,840,6/25/2012,R,GULLIVER'S TRUCK HIRE LTD.    
2012 - JUL,CS -Oth Operating Inc & Expend,Trading A/c Surpluses/Deficits,Transport-Contract Hire                 ,J01374,Transport Related Expenditure ,Contract Hire and Op Leasing  ,CC53,Plant Hire for MRCS,597,777,6/30/2012,R,SHB HIRE LTD                  
2012 - JUL,CS -Oth Operating Inc & Expend,Trading A/c Surpluses/Deficits,Transport-Contract Hire                 ,J01374,Transport Related Expenditure ,Contract Hire and Op Leasing  ,CC53,Plant Hire for MRCS,598,777,6/30/2012,R,SHB HIRE LTD                  
2012 - JUL,CS -Oth Operating Inc & Expend,Trading A/c Surpluses/Deficits,Transport-Contract Hire                 ,J01374,Transport Related Expenditure ,Contract Hire and Op Leasing  ,CC53,Plant Hire for MRCS,599,777,6/30/2012,R,SHB HIRE LTD                  
2012 - JUL,CS -Oth Operating Inc & Expend,Trading A/c Surpluses/Deficits,Transport-Contract Hire                 ,J01374,Transport Related Expenditure ,Contract Hire and Op Leasing  ,CC53,Plant Hire for MRCS,600,"1,407.00",6/30/2012,R,SHB HIRE LTD                  
2012 - JUL,CS -Oth Operating Inc & Expend,Trading A/c Surpluses/Deficits,Transport-Contract Hire                 ,J01374,Transport Related Expenditure ,Contract Hire and Op Leasing  ,CC53,Plant Hire for MRCS,601,"2,352.00",6/28/2012,R,GVS HIRE LTD                  
2012 - JUL,CS -Oth Operating Inc & Expend,Trading A/c Surpluses/Deficits,Transport-Contract Hire                 ,J01374,Transport Related Expenditure ,Contract Hire and Op Leasing  ,CC53,Plant Hire for MRCS,602,693,6/28/2012,R,GVS HIRE LTD                  
2012 - JUL,CS -Oth Operating Inc & Expend,Trading A/c Surpluses/Deficits,Transport-Contract Hire                 ,J01374,Transport Related Expenditure ,Contract Hire and Op Leasing  ,CC53,Plant Hire for MRCS,603,675,6/25/2012,R,TIP EUROPE                    
2012 - JUL,CS -Oth Operating Inc & Expend,Trading A/c Surpluses/Deficits,Transport-Contract Hire                 ,J01374,Transport Related Expenditure ,Contract Hire and Op Leasing  ,CC53,Plant Hire for MRCS,604,535,7/1/2012,R,PHOENIX VEHICLE HIRE LTD      
2012 - JUL,CS -Oth Operating Inc & Expend,Trading A/c Surpluses/Deficits,Transport-Contract Hire                 ,J01374,Transport Related Expenditure ,Contract Hire and Op Leasing  ,CC53,Plant Hire for MRCS,605,535,7/1/2012,R,PHOENIX VEHICLE HIRE LTD      
2012 - JUL,CS -Oth Operating Inc & Expend,Trading A/c Surpluses/Deficits,Transport-Contract Hire                 ,J01374,Transport Related Expenditure ,Contract Hire and Op Leasing  ,CC53,Plant Hire for MRCS,606,"1,197.00",6/28/2012,R,GVS HIRE LTD                  
2012 - JUL,CS -Oth Operating Inc & Expend,Trading A/c Surpluses/Deficits,Transport-Contract Hire                 ,J01374,Transport Related Expenditure ,Contract Hire and Op Leasing  ,CC53,Plant Hire for MRCS,607,840,7/5/2012,R,GULLIVER'S TRUCK HIRE LTD.    
2012 - JUL,CS -Oth Operating Inc & Expend,Trading A/c Surpluses/Deficits,Transport-Contract Hire                 ,J01374,Transport Related Expenditure ,Contract Hire and Op Leasing  ,CC53,Plant Hire for MRCS,608,840,7/9/2012,R,GULLIVER'S TRUCK HIRE LTD.    
2012 - JUL,CS -Oth Operating Inc & Expend,Trading A/c Surpluses/Deficits,Transport-Contract Hire                 ,J01374,Transport Related Expenditure ,Contract Hire and Op Leasing  ,CC53,Plant Hire for MRCS,609,675,7/2/2012,R,TIP EUROPE                    
2012 - JUL,CS -Oth Operating Inc & Expend,Trading A/c Surpluses/Deficits,Transport-Contract Hire                 ,J01374,Transport Related Expenditure ,Contract Hire and Op Leasing  ,CC53,Plant Hire for MRCS,610,675,7/9/2012,R,TIP EUROPE                    
2012 - JUL,CS -Oth Operating Inc & Expend,Trading A/c Surpluses/Deficits,Transport-Contract Hire                 ,J01374,Transport Related Expenditure ,Contract Hire and Op Leasing  ,CC53,Plant Hire for MRCS,611,535,7/8/2012,R,PHOENIX VEHICLE HIRE LTD      
2012 - JUL,CS -Oth Operating Inc & Expend,Trading A/c Surpluses/Deficits,Transport-Contract Hire                 ,J01374,Transport Related Expenditure ,Contract Hire and Op Leasing  ,CC53,Plant Hire for MRCS,612,535,7/8/2012,R,PHOENIX VEHICLE HIRE LTD      
2012 - JUL,CS -Oth Operating Inc & Expend,Trading A/c Surpluses/Deficits,Transport-Contract Hire                 ,J01374,Transport Related Expenditure ,Contract Hire and Op Leasing  ,CC53,Plant Hire for MRCS,613,535,7/15/2012,R,PHOENIX VEHICLE HIRE LTD      
2012 - JUL,CS -Oth Operating Inc & Expend,Trading A/c Surpluses/Deficits,Transport-Contract Hire                 ,J01374,Transport Related Expenditure ,Contract Hire and Op Leasing  ,CC53,Plant Hire for MRCS,614,535,7/15/2012,R,PHOENIX VEHICLE HIRE LTD      
2012 - JUL,CS -Oth Operating Inc & Expend,Trading A/c Surpluses/Deficits,Transport-Contract Hire                 ,J01374,Transport Related Expenditure ,Contract Hire and Op Leasing  ,CC53,Plant Hire for MRCS,615,840,7/16/2012,R,GULLIVER'S TRUCK HIRE LTD.    
2012 - JUL,CS -Oth Operating Inc & Expend,Trading A/c Surpluses/Deficits,Transport-Contract Hire                 ,J01374,Transport Related Expenditure ,Contract Hire and Op Leasing  ,CC53,Plant Hire for MRCS,616,"2,500.00",6/29/2012,R,NOBLET MUNICIPAL SERVICES LTD 
2012 - JUL,CS -Oth Operating Inc & Expend,Trading A/c Surpluses/Deficits,Transport-Contract Hire                 ,J01374,Transport Related Expenditure ,Contract Hire and Op Leasing  ,CC53,Plant Hire for MRCS,617,-560,7/13/2012,R,GVS HIRE LTD                  
2012 - JUL,CS -Oth Operating Inc & Expend,Trading A/c Surpluses/Deficits,Transport-Contract Hire                 ,J01374,Transport Related Expenditure ,Contract Hire and Op Leasing  ,CC53,Plant Hire for MRCS,618,535,7/22/2012,R,PHOENIX VEHICLE HIRE LTD      
2012 - JUL,CS -Oth Operating Inc & Expend,Trading A/c Surpluses/Deficits,Transport-Contract Hire                 ,J01374,Transport Related Expenditure ,Contract Hire and Op Leasing  ,CC53,Plant Hire for MRCS,619,535,7/22/2012,R,PHOENIX VEHICLE HIRE LTD      
2012 - JUL,CS -Oth Operating Inc & Expend,Trading A/c Surpluses/Deficits,Transport-Contract Hire                 ,J01374,Transport Related Expenditure ,Contract Hire and Op Leasing  ,CC53,Plant Hire for MRCS,620,675,7/16/2012,R,TIP EUROPE                    
2012 - JUL,CS -Oth Operating Inc & Expend,Trading A/c Surpluses/Deficits,Transport-Contract Hire                 ,J01374,Transport Related Expenditure ,Contract Hire and Op Leasing  ,CC57,Plant Hire for Housing,621,702,6/24/2012,R,KENT COUNTY COUNCIL           
2012 - JUL,CS -Oth Operating Inc & Expend,Trading A/c Surpluses/Deficits,Transport-Contract Hire                 ,J01374,Transport Related Expenditure ,Contract Hire and Op Leasing  ,CC57,Plant Hire for Housing,622,940,6/30/2012,R,REDACTED
2012 - JUL,CS -Oth Operating Inc & Expend,Trading A/c Surpluses/Deficits,Transport-Contract Hire                 ,J01374,Transport Related Expenditure ,Contract Hire and Op Leasing  ,CC59,Plant Hire - Non Rechargeable,623,"8,390.08",6/29/2012,R,KENT COUNTY COUNCIL           
2012 - JUL,CS -Oth Operating Inc & Expend,Trading A/c Surpluses/Deficits,Transport-Contract Hire                 ,J01374,Transport Related Expenditure ,Contract Hire and Op Leasing  ,CC59,Plant Hire - Non Rechargeable,624,"7,284.80",6/29/2012,R,KENT COUNTY COUNCIL           
2012 - JUL,CS -Oth Operating Inc & Expend,Trading A/c Surpluses/Deficits,Transport-Contract Hire                 ,J01374,Transport Related Expenditure ,Contract Hire and Op Leasing  ,CC64,Mini Cab Hire for Education,625,600,6/11/2012,R,CAREFIRST24                   
2012 - JUL,CS -Oth Operating Inc & Expend,Trading A/c Surpluses/Deficits,Transport-Contract Hire                 ,J01374,Transport Related Expenditure ,Contract Hire and Op Leasing  ,CC64,Mini Cab Hire for Education,626,"1,000.00",5/21/2012,R,CAREFIRST24                   
2012 - JUL,CS -Oth Operating Inc & Expend,Trading A/c Surpluses/Deficits,Transport-Contract Hire                 ,J01374,Transport Related Expenditure ,Contract Hire and Op Leasing  ,CC64,Mini Cab Hire for Education,627,"1,000.00",6/4/2012,R,CAREFIRST24                   
2012 - JUL,CS -Oth Operating Inc & Expend,Trading A/c Surpluses/Deficits,Transport-Contract Hire                 ,J01374,Transport Related Expenditure ,Contract Hire and Op Leasing  ,CC64,Mini Cab Hire for Education,628,"1,364.00",5/31/2012,R,A STAR TRANSPORT LIMITED      
2012 - JUL,CS -Oth Operating Inc & Expend,Trading A/c Surpluses/Deficits,Transport-Contract Hire                 ,J01374,Transport Related Expenditure ,Contract Hire and Op Leasing  ,CC64,Mini Cab Hire for Education,629,774,5/31/2012,R,A STAR TRANSPORT LIMITED      
2012 - JUL,CS -Oth Operating Inc & Expend,Trading A/c Surpluses/Deficits,Transport-Contract Hire                 ,J01374,Transport Related Expenditure ,Contract Hire and Op Leasing  ,CC64,Mini Cab Hire for Education,630,"8,688.30",7/1/2012,R,KINGSTON ACCESSIBILITY TRAN LT
2012 - JUL,CS -Oth Operating Inc & Expend,Trading A/c Surpluses/Deficits,Transport-Contract Hire                 ,J01374,Transport Related Expenditure ,Contract Hire and Op Leasing  ,CC64,Mini Cab Hire for Education,631,"1,200.00",5/31/2012,R,SILVERBURN FINANCE (UK) LTD   
2012 - JUL,CS -Oth Operating Inc & Expend,Trading A/c Surpluses/Deficits,Transport-Contract Hire                 ,J01374,Transport Related Expenditure ,Contract Hire and Op Leasing  ,CC64,Mini Cab Hire for Education,632,"3,840.50",5/31/2012,R,SILVERBURN FINANCE (UK) LTD   
2012 - JUL,CS -Oth Operating Inc & Expend,Trading A/c Surpluses/Deficits,Transport-Contract Hire                 ,J01374,Transport Related Expenditure ,Contract Hire and Op Leasing  ,CC64,Mini Cab Hire for Education,633,"1,950.00",6/30/2012,R,ACCESS MOBILITY TRANSPORT LTD 
2012 - JUL,CS -Oth Operating Inc & Expend,Trading A/c Surpluses/Deficits,Transport-Contract Hire                 ,J01374,Transport Related Expenditure ,Contract Hire and Op Leasing  ,CC64,Mini Cab Hire for Education,634,630,6/30/2012,R,ACCESS MOBILITY TRANSPORT LTD 
2012 - JUL,CS -Oth Operating Inc & Expend,Trading A/c Surpluses/Deficits,Transport-Contract Hire                 ,J01374,Transport Related Expenditure ,Contract Hire and Op Leasing  ,CC64,Mini Cab Hire for Education,635,999,6/30/2012,R,ACCESS MOBILITY TRANSPORT LTD 
2012 - JUL,CS -Oth Operating Inc & Expend,Trading A/c Surpluses/Deficits,Transport-Contract Hire                 ,J01374,Transport Related Expenditure ,Contract Hire and Op Leasing  ,CC64,Mini Cab Hire for Education,636,"1,504.00",6/30/2012,R,ACCESS MOBILITY TRANSPORT LTD 
2012 - JUL,CS -Oth Operating Inc & Expend,Trading A/c Surpluses/Deficits,Transport-Contract Hire                 ,J01374,Transport Related Expenditure ,Contract Hire and Op Leasing  ,CC64,Mini Cab Hire for Education,637,"2,400.00",6/30/2012,R,ACCESS MOBILITY TRANSPORT LTD 
2012 - JUL,CS -Oth Operating Inc & Expend,Trading A/c Surpluses/Deficits,Transport-Contract Hire                 ,J01374,Transport Related Expenditure ,Contract Hire and Op Leasing  ,CC64,Mini Cab Hire for Education,638,"1,856.00",6/30/2012,R,ACCESS MOBILITY TRANSPORT LTD 
2012 - JUL,CS -Oth Operating Inc & Expend,Trading A/c Surpluses/Deficits,Transport-Contract Hire                 ,J01374,Transport Related Expenditure ,Contract Hire and Op Leasing  ,CC64,Mini Cab Hire for Education,639,"4,368.00",6/30/2012,R,ACCESS MOBILITY TRANSPORT LTD 
2012 - JUL,CS -Oth Operating Inc & Expend,Trading A/c Surpluses/Deficits,Transport-Contract Hire                 ,J01374,Transport Related Expenditure ,Contract Hire and Op Leasing  ,CC64,Mini Cab Hire for Education,640,"1,350.00",6/30/2012,R,ACCESS MOBILITY TRANSPORT LTD 
2012 - JUL,CS -Oth Operating Inc & Expend,Trading A/c Surpluses/Deficits,Transport-Contract Hire                 ,J01374,Transport Related Expenditure ,Contract Hire and Op Leasing  ,CC64,Mini Cab Hire for Education,641,"1,472.00",6/30/2012,R,ACCESS MOBILITY TRANSPORT LTD 
2012 - JUL,CS -Oth Operating Inc & Expend,Trading A/c Surpluses/Deficits,Transport-Contract Hire                 ,J01374,Transport Related Expenditure ,Contract Hire and Op Leasing  ,CC64,Mini Cab Hire for Education,642,625,6/30/2012,R,ACCESS MOBILITY TRANSPORT LTD 
2012 - JUL,CS -Oth Operating Inc & Expend,Trading A/c Surpluses/Deficits,Transport-Contract Hire                 ,J01374,Transport Related Expenditure ,Contract Hire and Op Leasing  ,CC64,Mini Cab Hire for Education,643,"2,240.00",6/30/2012,R,ACCESS MOBILITY TRANSPORT LTD 
2012 - JUL,CS -Oth Operating Inc & Expend,Trading A/c Surpluses/Deficits,Transport-Contract Hire                 ,J01374,Transport Related Expenditure ,Contract Hire and Op Leasing  ,CC64,Mini Cab Hire for Education,644,"1,536.00",6/30/2012,R,ACCESS MOBILITY TRANSPORT LTD 
2012 - JUL,CS -Oth Operating Inc & Expend,Trading A/c Surpluses/Deficits,Transport-Contract Hire                 ,J01374,Transport Related Expenditure ,Contract Hire and Op Leasing  ,CC64,Mini Cab Hire for Education,645,"1,700.00",6/30/2012,R,ACCESS MOBILITY TRANSPORT LTD 
2012 - JUL,CS -Oth Operating Inc & Expend,Trading A/c Surpluses/Deficits,Transport-Contract Hire                 ,J01374,Transport Related Expenditure ,Contract Hire and Op Leasing  ,CC64,Mini Cab Hire for Education,646,896,6/30/2012,R,ACCESS MOBILITY TRANSPORT LTD 
2012 - JUL,CS -Oth Operating Inc & Expend,Trading A/c Surpluses/Deficits,Transport-Contract Hire                 ,J01374,Transport Related Expenditure ,Contract Hire and Op Leasing  ,CC64,Mini Cab Hire for Education,647,750,6/30/2012,R,ACCESS MOBILITY TRANSPORT LTD 
2012 - JUL,CS -Oth Operating Inc & Expend,Trading A/c Surpluses/Deficits,Transport-Contract Hire                 ,J01374,Transport Related Expenditure ,Contract Hire and Op Leasing  ,CC64,Mini Cab Hire for Education,648,"1,218.00",6/30/2012,R,ACCESS MOBILITY TRANSPORT LTD 
2012 - JUL,CS -Oth Operating Inc & Expend,Trading A/c Surpluses/Deficits,Transport-Contract Hire                 ,J01374,Transport Related Expenditure ,Contract Hire and Op Leasing  ,CC64,Mini Cab Hire for Education,649,"2,282.00",6/30/2012,R,ACCESS MOBILITY TRANSPORT LTD 
2012 - JUL,CS -Oth Operating Inc & Expend,Trading A/c Surpluses/Deficits,Transport-Contract Hire                 ,J01374,Transport Related Expenditure ,Contract Hire and Op Leasing  ,CC64,Mini Cab Hire for Education,650,"1,564.38",6/30/2012,R,ACCESS MOBILITY TRANSPORT LTD 
2012 - JUL,CS -Oth Operating Inc & Expend,Trading A/c Surpluses/Deficits,Transport-Contract Hire                 ,J01374,Transport Related Expenditure ,Contract Hire and Op Leasing  ,CC64,Mini Cab Hire for Education,651,800,6/30/2012,R,ACCESS MOBILITY TRANSPORT LTD 
2012 - JUL,CS -Oth Operating Inc & Expend,Trading A/c Surpluses/Deficits,Transport-Contract Hire                 ,J01374,Transport Related Expenditure ,Contract Hire and Op Leasing  ,CC64,Mini Cab Hire for Education,652,912,6/30/2012,R,ACCESS MOBILITY TRANSPORT LTD 
2012 - JUL,CS -Oth Operating Inc & Expend,Trading A/c Surpluses/Deficits,Transport-Contract Hire                 ,J01374,Transport Related Expenditure ,Contract Hire and Op Leasing  ,CC64,Mini Cab Hire for Education,653,"1,289.00",6/30/2012,R,ACCESS MOBILITY TRANSPORT LTD 
2012 - JUL,CS -Oth Operating Inc & Expend,Trading A/c Surpluses/Deficits,Transport-Contract Hire                 ,J01374,Transport Related Expenditure ,Contract Hire and Op Leasing  ,CC64,Mini Cab Hire for Education,654,"1,216.00",6/30/2012,R,ACCESS MOBILITY TRANSPORT LTD 
2012 - JUL,CS -Oth Operating Inc & Expend,Trading A/c Surpluses/Deficits,Transport-Contract Hire                 ,J01374,Transport Related Expenditure ,Contract Hire and Op Leasing  ,CC64,Mini Cab Hire for Education,655,"1,935.00",6/30/2012,R,ACCESS MOBILITY TRANSPORT LTD 
2012 - JUL,CS -Oth Operating Inc & Expend,Trading A/c Surpluses/Deficits,Transport-Contract Hire                 ,J01374,Transport Related Expenditure ,Contract Hire and Op Leasing  ,CC64,Mini Cab Hire for Education,656,"1,140.00",6/30/2012,R,ACCESS MOBILITY TRANSPORT LTD 
2012 - JUL,CS -Oth Operating Inc & Expend,Trading A/c Surpluses/Deficits,Transport-Contract Hire                 ,J01374,Transport Related Expenditure ,Contract Hire and Op Leasing  ,CC64,Mini Cab Hire for Education,657,"9,168.30",7/8/2012,R,KINGSTON ACCESSIBILITY TRAN LT
2012 - JUL,CS -Oth Operating Inc & Expend,Trading A/c Surpluses/Deficits,Transport-Contract Hire                 ,J01374,Transport Related Expenditure ,Contract Hire and Op Leasing  ,CC64,Mini Cab Hire for Education,658,"1,120.00",6/30/2012,R,ACCESS MOBILITY TRANSPORT LTD 
2012 - JUL,CS -Oth Operating Inc & Expend,Trading A/c Surpluses/Deficits,Transport-Contract Hire                 ,J01374,Transport Related Expenditure ,Contract Hire and Op Leasing  ,CC64,Mini Cab Hire for Education,659,"1,800.00",6/30/2012,R,ACCESS MOBILITY TRANSPORT LTD 
2012 - JUL,CS -Oth Operating Inc & Expend,Trading A/c Surpluses/Deficits,Transport-Contract Hire                 ,J01374,Transport Related Expenditure ,Contract Hire and Op Leasing  ,CC64,Mini Cab Hire for Education,660,"1,920.00",6/30/2012,R,ACCESS MOBILITY TRANSPORT LTD 
2012 - JUL,CS -Oth Operating Inc & Expend,Trading A/c Surpluses/Deficits,Transport-Contract Hire                 ,J01374,Transport Related Expenditure ,Contract Hire and Op Leasing  ,CC64,Mini Cab Hire for Education,661,"1,860.00",6/30/2012,R,ACCESS MOBILITY TRANSPORT LTD 
2012 - JUL,CS -Oth Operating Inc & Expend,Trading A/c Surpluses/Deficits,Transport-Contract Hire                 ,J01374,Transport Related Expenditure ,Contract Hire and Op Leasing  ,CC64,Mini Cab Hire for Education,662,"2,310.00",6/30/2012,R,ACCESS MOBILITY TRANSPORT LTD 
2012 - JUL,CS -Oth Operating Inc & Expend,Trading A/c Surpluses/Deficits,Transport-Contract Hire                 ,J01374,Transport Related Expenditure ,Contract Hire and Op Leasing  ,CC64,Mini Cab Hire for Education,663,832,6/30/2012,R,ACCESS MOBILITY TRANSPORT LTD 
2012 - JUL,CS -Oth Operating Inc & Expend,Trading A/c Surpluses/Deficits,Transport-Contract Hire                 ,J01374,Transport Related Expenditure ,Contract Hire and Op Leasing  ,CC64,Mini Cab Hire for Education,664,"2,130.00",6/30/2012,R,ACCESS MOBILITY TRANSPORT LTD 
2012 - JUL,CS -Oth Operating Inc & Expend,Trading A/c Surpluses/Deficits,Transport-Contract Hire                 ,J01374,Transport Related Expenditure ,Contract Hire and Op Leasing  ,CC64,Mini Cab Hire for Education,665,558,6/30/2012,R,A STAR TRANSPORT LIMITED      
2012 - JUL,CS -Oth Operating Inc & Expend,Trading A/c Surpluses/Deficits,Transport-Contract Hire                 ,J01374,Transport Related Expenditure ,Contract Hire and Op Leasing  ,CC64,Mini Cab Hire for Education,666,"1,036.00",6/30/2012,R,CAPITAL CARS                  
2012 - JUL,CS -Oth Operating Inc & Expend,Trading A/c Surpluses/Deficits,Transport-Contract Hire                 ,J01374,Transport Related Expenditure ,Contract Hire and Op Leasing  ,CC64,Mini Cab Hire for Education,667,665,6/30/2012,R,CAPITAL CARS                  
2012 - JUL,CS -Oth Operating Inc & Expend,Trading A/c Surpluses/Deficits,Transport-Contract Hire                 ,J01374,Transport Related Expenditure ,Contract Hire and Op Leasing  ,CC64,Mini Cab Hire for Education,668,665,6/30/2012,R,CAPITAL CARS                  
2012 - JUL,CS -Oth Operating Inc & Expend,Trading A/c Surpluses/Deficits,Transport-Contract Hire                 ,J01374,Transport Related Expenditure ,Contract Hire and Op Leasing  ,CC64,Mini Cab Hire for Education,669,864,6/30/2012,R,CAPITAL CARS                  
2012 - JUL,CS -Oth Operating Inc & Expend,Trading A/c Surpluses/Deficits,Transport-Contract Hire                 ,J01374,Transport Related Expenditure ,Contract Hire and Op Leasing  ,CC64,Mini Cab Hire for Education,670,925,6/30/2012,R,CAPITAL CARS                  
2012 - JUL,CS -Oth Operating Inc & Expend,Trading A/c Surpluses/Deficits,Transport-Contract Hire                 ,J01374,Transport Related Expenditure ,Contract Hire and Op Leasing  ,CC64,Mini Cab Hire for Education,671,"1,960.00",6/30/2012,R,CAPITAL CARS                  
2012 - JUL,CS -Oth Operating Inc & Expend,Trading A/c Surpluses/Deficits,Transport-Contract Hire                 ,J01374,Transport Related Expenditure ,Contract Hire and Op Leasing  ,CC64,Mini Cab Hire for Education,672,800,6/30/2012,R,CAPITAL CARS                  
2012 - JUL,CS -Oth Operating Inc & Expend,Trading A/c Surpluses/Deficits,Transport-Contract Hire                 ,J01374,Transport Related Expenditure ,Contract Hire and Op Leasing  ,CC64,Mini Cab Hire for Education,673,"2,080.00",6/30/2012,R,CAPITAL CARS                  
2012 - JUL,CS -Oth Operating Inc & Expend,Trading A/c Surpluses/Deficits,Transport-Contract Hire                 ,J01374,Transport Related Expenditure ,Contract Hire and Op Leasing  ,CC64,Mini Cab Hire for Education,674,560,6/30/2012,R,GALPINS SERVICE               
2012 - JUL,CS -Oth Operating Inc & Expend,Trading A/c Surpluses/Deficits,Transport-Contract Hire                 ,J01374,Transport Related Expenditure ,Contract Hire and Op Leasing  ,CC64,Mini Cab Hire for Education,675,501,6/30/2012,R,MERTON COMMUNITY TRANSPORT    
2012 - JUL,CS -Oth Operating Inc & Expend,Trading A/c Surpluses/Deficits,Transport-Contract Hire                 ,J01374,Transport Related Expenditure ,Contract Hire and Op Leasing  ,CC64,Mini Cab Hire for Education,676,560,6/30/2012,R,AERIAL CAR SERVICES LTD       
2012 - JUL,CS -Oth Operating Inc & Expend,Trading A/c Surpluses/Deficits,Transport-Contract Hire                 ,J01374,Transport Related Expenditure ,Contract Hire and Op Leasing  ,CC64,Mini Cab Hire for Education,677,704,6/30/2012,R,AERIAL CAR SERVICES LTD       
2012 - JUL,CS -Oth Operating Inc & Expend,Trading A/c Surpluses/Deficits,Transport-Contract Hire                 ,J01374,Transport Related Expenditure ,Contract Hire and Op Leasing  ,CC64,Mini Cab Hire for Education,678,"1,088.00",6/29/2012,R,BRUNSWICK CARS LTD            
2012 - JUL,CS -Oth Operating Inc & Expend,Trading A/c Surpluses/Deficits,Transport-Contract Hire                 ,J01374,Transport Related Expenditure ,Contract Hire and Op Leasing  ,CC64,Mini Cab Hire for Education,679,"7,853.30",7/15/2012,R,KINGSTON ACCESSIBILITY TRAN LT
2012 - JUL,CS -Oth Operating Inc & Expend,Trading A/c Surpluses/Deficits,Transport-Contract Hire                 ,J01374,Transport Related Expenditure ,Contract Hire and Op Leasing  ,CC64,Mini Cab Hire for Education,680,"1,344.00",6/30/2012,R,NVCAR HIRE LTD                
2012 - JUL,CS -Oth Operating Inc & Expend,Trading A/c Surpluses/Deficits,Transport-Contract Hire                 ,J01374,Transport Related Expenditure ,Contract Hire and Op Leasing  ,CC64,Mini Cab Hire for Education,681,"1,080.00",6/30/2012,R,NVCAR HIRE LTD                
2012 - JUL,CS -Oth Operating Inc & Expend,Trading A/c Surpluses/Deficits,Transport-Contract Hire                 ,J01374,Transport Related Expenditure ,Contract Hire and Op Leasing  ,CC64,Mini Cab Hire for Education,682,720,6/30/2012,R,NVCAR HIRE LTD                
2012 - JUL,CS -Oth Operating Inc & Expend,Trading A/c Surpluses/Deficits,Transport-Contract Hire                 ,J01374,Transport Related Expenditure ,Contract Hire and Op Leasing  ,CC64,Mini Cab Hire for Education,683,"1,456.00",6/30/2012,R,SHERWOOD TRANSPORT GROUP      
2012 - JUL,CS -Oth Operating Inc & Expend,Trading A/c Surpluses/Deficits,Transport-Contract Hire                 ,J01374,Transport Related Expenditure ,Contract Hire and Op Leasing  ,CC64,Mini Cab Hire for Education,684,681.45,6/30/2012,R,SHERWOOD TRANSPORT GROUP      
2012 - JUL,CS -Oth Operating Inc & Expend,Trading A/c Surpluses/Deficits,Transport-Contract Hire                 ,J01374,Transport Related Expenditure ,Contract Hire and Op Leasing  ,CC64,Mini Cab Hire for Education,685,"1,722.00",6/30/2012,R,SHERWOOD TRANSPORT GROUP      
2012 - JUL,CS -Oth Operating Inc & Expend,Trading A/c Surpluses/Deficits,Transport-Contract Hire                 ,J01374,Transport Related Expenditure ,Contract Hire and Op Leasing  ,CC64,Mini Cab Hire for Education,686,550,6/30/2012,R,SHERWOOD TRANSPORT GROUP      
2012 - JUL,CS -Oth Operating Inc & Expend,Trading A/c Surpluses/Deficits,Transport-Contract Hire                 ,J01374,Transport Related Expenditure ,Contract Hire and Op Leasing  ,CC64,Mini Cab Hire for Education,687,"1,120.00",6/30/2012,R,SHERWOOD TRANSPORT GROUP      
2012 - JUL,CS -Oth Operating Inc & Expend,Trading A/c Surpluses/Deficits,Transport-Contract Hire                 ,J01374,Transport Related Expenditure ,Contract Hire and Op Leasing  ,CC64,Mini Cab Hire for Education,688,580,6/30/2012,R,SHERWOOD TRANSPORT GROUP      
2012 - JUL,CS -Oth Operating Inc & Expend,Trading A/c Surpluses/Deficits,Transport-Contract Hire                 ,J01374,Transport Related Expenditure ,Contract Hire and Op Leasing  ,CC64,Mini Cab Hire for Education,689,"2,385.00",6/30/2012,R,SHERWOOD TRANSPORT GROUP      
2012 - JUL,CS -Oth Operating Inc & Expend,Trading A/c Surpluses/Deficits,Transport-Contract Hire                 ,J01374,Transport Related Expenditure ,Contract Hire and Op Leasing  ,CC64,Mini Cab Hire for Education,690,"1,056.00",6/29/2012,R,SILVERBURN FINANCE (UK) LTD   
2012 - JUL,CS -Oth Operating Inc & Expend,Trading A/c Surpluses/Deficits,Transport-Contract Hire                 ,J01374,Transport Related Expenditure ,Contract Hire and Op Leasing  ,CC64,Mini Cab Hire for Education,691,768,6/29/2012,R,SILVERBURN FINANCE (UK) LTD   
2012 - JUL,CS -Oth Operating Inc & Expend,Trading A/c Surpluses/Deficits,Transport-Contract Hire                 ,J01374,Transport Related Expenditure ,Contract Hire and Op Leasing  ,CC64,Mini Cab Hire for Education,692,576,6/29/2012,R,SILVERBURN FINANCE (UK) LTD   
2012 - JUL,CS -Oth Operating Inc & Expend,Trading A/c Surpluses/Deficits,Transport-Contract Hire                 ,J01374,Transport Related Expenditure ,Contract Hire and Op Leasing  ,CC64,Mini Cab Hire for Education,693,"1,080.00",6/29/2012,R,SILVERBURN FINANCE (UK) LTD   
2012 - JUL,CS -Oth Operating Inc & Expend,Trading A/c Surpluses/Deficits,Transport-Contract Hire                 ,J01374,Transport Related Expenditure ,Contract Hire and Op Leasing  ,CC64,Mini Cab Hire for Education,694,674.85,6/29/2012,R,SILVERBURN FINANCE (UK) LTD   
2012 - JUL,CS -Oth Operating Inc & Expend,Trading A/c Surpluses/Deficits,Transport-Contract Hire                 ,J01374,Transport Related Expenditure ,Contract Hire and Op Leasing  ,CC64,Mini Cab Hire for Education,695,"1,144.00",6/29/2012,R,SILVERBURN FINANCE (UK) LTD   
2012 - JUL,CS -Oth Operating Inc & Expend,Trading A/c Surpluses/Deficits,Transport-Contract Hire                 ,J01374,Transport Related Expenditure ,Contract Hire and Op Leasing  ,CC64,Mini Cab Hire for Education,696,"1,080.00",6/29/2012,R,SILVERBURN FINANCE (UK) LTD   
2012 - JUL,CS -Oth Operating Inc & Expend,Trading A/c Surpluses/Deficits,Transport-Contract Hire                 ,J01374,Transport Related Expenditure ,Contract Hire and Op Leasing  ,CC64,Mini Cab Hire for Education,697,960,6/29/2012,R,SILVERBURN FINANCE (UK) LTD   
2012 - JUL,CS -Oth Operating Inc & Expend,Trading A/c Surpluses/Deficits,Transport-Contract Hire                 ,J01374,Transport Related Expenditure ,Contract Hire and Op Leasing  ,CC64,Mini Cab Hire for Education,698,568,6/29/2012,R,SILVERBURN FINANCE (UK) LTD   
2012 - JUL,CS -Oth Operating Inc & Expend,Trading A/c Surpluses/Deficits,Transport-Contract Hire                 ,J01374,Transport Related Expenditure ,Contract Hire and Op Leasing  ,CC64,Mini Cab Hire for Education,699,"2,231.04",6/29/2012,R,SILVERBURN FINANCE (UK) LTD   
2012 - JUL,CS -Oth Operating Inc & Expend,Trading A/c Surpluses/Deficits,Transport-Contract Hire                 ,J01374,Transport Related Expenditure ,Contract Hire and Op Leasing  ,CC64,Mini Cab Hire for Education,700,672,6/29/2012,R,SILVERBURN FINANCE (UK) LTD   
2012 - JUL,CS -Oth Operating Inc & Expend,Trading A/c Surpluses/Deficits,Transport-Contract Hire                 ,J01374,Transport Related Expenditure ,Contract Hire and Op Leasing  ,CC64,Mini Cab Hire for Education,701,"1,260.00",6/29/2012,R,SILVERBURN FINANCE (UK) LTD   
2012 - JUL,CS -Oth Operating Inc & Expend,Trading A/c Surpluses/Deficits,Transport-Contract Hire                 ,J01374,Transport Related Expenditure ,Contract Hire and Op Leasing  ,CC64,Mini Cab Hire for Education,702,896,6/29/2012,R,SILVERBURN FINANCE (UK) LTD   
2012 - JUL,CS -Oth Operating Inc & Expend,Trading A/c Surpluses/Deficits,Transport-Contract Hire                 ,J01374,Transport Related Expenditure ,Contract Hire and Op Leasing  ,CC64,Mini Cab Hire for Education,703,640,6/29/2012,R,SILVERBURN FINANCE (UK) LTD   
2012 - JUL,CS -Oth Operating Inc & Expend,Trading A/c Surpluses/Deficits,Transport-Contract Hire                 ,J01374,Transport Related Expenditure ,Contract Hire and Op Leasing  ,CC64,Mini Cab Hire for Education,704,896,6/29/2012,R,SILVERBURN FINANCE (UK) LTD   
2012 - JUL,CS -Oth Operating Inc & Expend,Trading A/c Surpluses/Deficits,Transport-Contract Hire                 ,J01374,Transport Related Expenditure ,Contract Hire and Op Leasing  ,CC64,Mini Cab Hire for Education,705,"1,536.00",6/29/2012,R,SILVERBURN FINANCE (UK) LTD   
2012 - JUL,CS -Oth Operating Inc & Expend,Trading A/c Surpluses/Deficits,Transport-Contract Hire                 ,J01374,Transport Related Expenditure ,Contract Hire and Op Leasing  ,CC64,Mini Cab Hire for Education,706,640,6/29/2012,R,SILVERBURN FINANCE (UK) LTD   
2012 - JUL,CS -Oth Operating Inc & Expend,Trading A/c Surpluses/Deficits,Transport-Contract Hire                 ,J01374,Transport Related Expenditure ,Contract Hire and Op Leasing  ,CC64,Mini Cab Hire for Education,707,510,6/29/2012,R,SILVERBURN FINANCE (UK) LTD   
2012 - JUL,CS -Oth Operating Inc & Expend,Trading A/c Surpluses/Deficits,Transport-Contract Hire                 ,J01374,Transport Related Expenditure ,Contract Hire and Op Leasing  ,CC64,Mini Cab Hire for Education,708,"1,403.20",6/29/2012,R,SILVERBURN FINANCE (UK) LTD   
2012 - JUL,CS -Oth Operating Inc & Expend,Trading A/c Surpluses/Deficits,Transport-Contract Hire                 ,J01374,Transport Related Expenditure ,Contract Hire and Op Leasing  ,CC64,Mini Cab Hire for Education,709,"1,184.00",6/29/2012,R,SILVERBURN FINANCE (UK) LTD   
2012 - JUL,CS -Oth Operating Inc & Expend,Trading A/c Surpluses/Deficits,Transport-Contract Hire                 ,J01374,Transport Related Expenditure ,Contract Hire and Op Leasing  ,CC64,Mini Cab Hire for Education,710,"1,536.00",6/29/2012,R,SILVERBURN FINANCE (UK) LTD   
2012 - JUL,CS -Oth Operating Inc & Expend,Trading A/c Surpluses/Deficits,Transport-Contract Hire                 ,J01374,Transport Related Expenditure ,Contract Hire and Op Leasing  ,CC64,Mini Cab Hire for Education,711,"1,070.00",6/30/2012,R,CHEAM STATION CARS            
2012 - JUL,CS -Oth Operating Inc & Expend,Trading A/c Surpluses/Deficits,Transport-Contract Hire                 ,J01374,Transport Related Expenditure ,Contract Hire and Op Leasing  ,CC64,Mini Cab Hire for Education,712,960,6/30/2012,R,CHEAM STATION CARS            
2012 - JUL,CS -Oth Operating Inc & Expend,Trading A/c Surpluses/Deficits,Transport-Contract Hire                 ,J01374,Transport Related Expenditure ,Contract Hire and Op Leasing  ,CC64,Mini Cab Hire for Education,713,570.72,3/31/2012,R,MERTON COMMUNITY TRANSPORT    
2012 - JUL,CS -Oth Operating Inc & Expend,Trading A/c Surpluses/Deficits,Transport-Contract Hire                 ,J01374,Transport Related Expenditure ,Contract Hire and Op Leasing  ,CC64,Mini Cab Hire for Education,714,612.48,6/6/2012,R,MERTON COMMUNITY TRANSPORT    
2012 - JUL,CS -Oth Operating Inc & Expend,Trading A/c Surpluses/Deficits,Transport-Contract Hire                 ,J01374,Transport Related Expenditure ,Contract Hire and Op Leasing  ,CC64,Mini Cab Hire for Education,715,-612.48,6/28/2012,R,MERTON COMMUNITY TRANSPORT    
2012 - JUL,CS -Oth Operating Inc & Expend,Trading A/c Surpluses/Deficits,Transport-Contract Hire                 ,J01374,Transport Related Expenditure ,Contract Hire and Op Leasing  ,CC64,Mini Cab Hire for Education,716,-570.72,6/28/2012,R,MERTON COMMUNITY TRANSPORT    
2012 - JUL,CS -Oth Operating Inc & Expend,Trading A/c Surpluses/Deficits,Transport-Contract Hire                 ,J01374,Transport Related Expenditure ,Contract Hire and Op Leasing  ,CC64,Mini Cab Hire for Education,717,"2,080.00",6/29/2012,R,CALVERTON FACTORS LTD         
2012 - JUL,CS -Oth Operating Inc & Expend,Trading A/c Surpluses/Deficits,Transport-Contract Hire                 ,J01374,Transport Related Expenditure ,Contract Hire and Op Leasing  ,CC64,Mini Cab Hire for Education,718,734.8,6/28/2012,R,MERTON COMMUNITY TRANSPORT    
2012 - JUL,CS -Oth Operating Inc & Expend,Trading A/c Surpluses/Deficits,Transport-Contract Hire                 ,J01374,Transport Related Expenditure ,Contract Hire and Op Leasing  ,CC64,Mini Cab Hire for Education,719,684.7,6/28/2012,R,MERTON COMMUNITY TRANSPORT    
2012 - JUL,CS -Oth Operating Inc & Expend,Trading A/c Surpluses/Deficits,Transport-Contract Hire                 ,J01374,Transport Related Expenditure ,Contract Hire and Op Leasing  ,CC64,Mini Cab Hire for Education,720,"6,741.74",7/22/2012,R,KINGSTON ACCESSIBILITY TRAN LT
2012 - JUL,CS -Oth Operating Inc & Expend,Trading A/c Surpluses/Deficits,Transport-Contract Hire                 ,J01374,Transport Related Expenditure ,Contract Hire and Op Leasing  ,CC64,Mini Cab Hire for Education,721,"1,038.40",6/30/2012,R,SHERWOOD TRANSPORT GROUP      
2012 - JUL,CS -Oth Operating Inc & Expend,Trading A/c Surpluses/Deficits,Transport-Contract Hire                 ,J01374,Transport Related Expenditure ,Contract Hire and Op Leasing  ,CC64,Mini Cab Hire for Education,722,-540,7/9/2012,R,BARCLAYS ASSET & SALES FINANCE
2012 - JUL,CS -Oth Operating Inc & Expend,Trading A/c Surpluses/Deficits,Transport-Contract Hire                 ,J01374,Transport Related Expenditure ,Contract Hire and Op Leasing  ,CC64,Mini Cab Hire for Education,723,"1,280.00",7/16/2012,R,REDACTED
2012 - JUL,CS -Oth Operating Inc & Expend,Trading A/c Surpluses/Deficits,Transport-Contract Hire                 ,J01374,Transport Related Expenditure ,Contract Hire and Op Leasing  ,CC64,Mini Cab Hire for Education,724,960,6/30/2012,R,WALLINGTON CARS & COURIERS LTD
2012 - JUL,CS -Oth Operating Inc & Expend,Trading A/c Surpluses/Deficits,Transport-Contract Hire                 ,J01374,Transport Related Expenditure ,Contract Hire and Op Leasing  ,CC64,Mini Cab Hire for Education,725,535,7/29/2012,R,KINGSTON ACCESSIBILITY TRAN LT
2012 - JUL,CS -Oth Operating Inc & Expend,Trading A/c Surpluses/Deficits,Transport-Contract Hire                 ,J01374,Transport Related Expenditure ,Contract Hire and Op Leasing  ,CC64,Mini Cab Hire for Education,726,780,7/29/2012,R,KINGSTON ACCESSIBILITY TRAN LT
2012 - JUL,CS -Oth Operating Inc & Expend,Trading A/c Surpluses/Deficits,Transport-Contract Hire                 ,J01374,Transport Related Expenditure ,Contract Hire and Op Leasing  ,CC66,Mini Cab Hire -Soc Serv -Child,727,"1,932.69",7/1/2012,R,KINGSTON ACCESSIBILITY TRAN LT
2012 - JUL,CS -Oth Operating Inc & Expend,Trading A/c Surpluses/Deficits,Transport-Contract Hire                 ,J01374,Transport Related Expenditure ,Contract Hire and Op Leasing  ,CC66,Mini Cab Hire -Soc Serv -Child,728,"1,877.70",7/8/2012,R,KINGSTON ACCESSIBILITY TRAN LT
2012 - JUL,CS -Oth Operating Inc & Expend,Trading A/c Surpluses/Deficits,Transport-Contract Hire                 ,J01374,Transport Related Expenditure ,Contract Hire and Op Leasing  ,CC66,Mini Cab Hire -Soc Serv -Child,729,538,6/30/2012,R,ACCESS MOBILITY TRANSPORT LTD 
2012 - JUL,CS -Oth Operating Inc & Expend,Trading A/c Surpluses/Deficits,Transport-Contract Hire                 ,J01374,Transport Related Expenditure ,Contract Hire and Op Leasing  ,CC66,Mini Cab Hire -Soc Serv -Child,730,"3,373.75",7/15/2012,R,KINGSTON ACCESSIBILITY TRAN LT
2012 - JUL,CS -Oth Operating Inc & Expend,Trading A/c Surpluses/Deficits,Transport-Contract Hire                 ,J01374,Transport Related Expenditure ,Contract Hire and Op Leasing  ,CC66,Mini Cab Hire -Soc Serv -Child,731,570,5/31/2012,R,CHEAM STATION CARS            
2012 - JUL,CS -Oth Operating Inc & Expend,Trading A/c Surpluses/Deficits,Transport-Contract Hire                 ,J01374,Transport Related Expenditure ,Contract Hire and Op Leasing  ,CC66,Mini Cab Hire -Soc Serv -Child,732,750,6/30/2012,R,CHEAM STATION CARS            
2012 - JUL,CS -Oth Operating Inc & Expend,Trading A/c Surpluses/Deficits,Transport-Contract Hire                 ,J01374,Transport Related Expenditure ,Contract Hire and Op Leasing  ,CC66,Mini Cab Hire -Soc Serv -Child,733,"1,768.32",7/22/2012,R,KINGSTON ACCESSIBILITY TRAN LT
2012 - JUL,CS -Oth Operating Inc & Expend,Trading A/c Surpluses/Deficits,Transport-Contract Hire                 ,J01374,Transport Related Expenditure ,Contract Hire and Op Leasing  ,CC67,Mini Cab Hire -Soc Serv -Adult,734,"1,136.00",7/1/2012,R,KINGSTON ACCESSIBILITY TRAN LT
2012 - JUL,CS -Oth Operating Inc & Expend,Trading A/c Surpluses/Deficits,Transport-Contract Hire                 ,J01374,Transport Related Expenditure ,Contract Hire and Op Leasing  ,CC67,Mini Cab Hire -Soc Serv -Adult,735,533.5,11/30/2011,R,MERTON COMMUNITY TRANSPORT    
2012 - JUL,CS -Oth Operating Inc & Expend,Trading A/c Surpluses/Deficits,Transport-Contract Hire                 ,J01374,Transport Related Expenditure ,Contract Hire and Op Leasing  ,CC67,Mini Cab Hire -Soc Serv -Adult,736,600,6/30/2012,R,ACCESS MOBILITY TRANSPORT LTD 
2012 - JUL,CS -Oth Operating Inc & Expend,Trading A/c Surpluses/Deficits,Transport-Contract Hire                 ,J01374,Transport Related Expenditure ,Contract Hire and Op Leasing  ,CC67,Mini Cab Hire -Soc Serv -Adult,737,864,6/30/2012,R,ACCESS MOBILITY TRANSPORT LTD 
2012 - JUL,CS -Oth Operating Inc & Expend,Trading A/c Surpluses/Deficits,Transport-Contract Hire                 ,J01374,Transport Related Expenditure ,Contract Hire and Op Leasing  ,CC67,Mini Cab Hire -Soc Serv -Adult,738,644,6/30/2012,R,ACCESS MOBILITY TRANSPORT LTD 
2012 - JUL,CS -Oth Operating Inc & Expend,Trading A/c Surpluses/Deficits,Transport-Contract Hire                 ,J01374,Transport Related Expenditure ,Contract Hire and Op Leasing  ,CC67,Mini Cab Hire -Soc Serv -Adult,739,576,6/30/2012,R,ACCESS MOBILITY TRANSPORT LTD 
2012 - JUL,CS -Oth Operating Inc & Expend,Trading A/c Surpluses/Deficits,Transport-Contract Hire                 ,J01374,Transport Related Expenditure ,Contract Hire and Op Leasing  ,CC67,Mini Cab Hire -Soc Serv -Adult,740,"-1,830.00",6/30/2012,R,BARCLAYS ASSET & SALES FINANCE
2012 - JUL,CS -Oth Operating Inc & Expend,Trading A/c Surpluses/Deficits,Transport-Contract Hire                 ,J01374,Transport Related Expenditure ,Contract Hire and Op Leasing  ,CC67,Mini Cab Hire -Soc Serv -Adult,741,"1,136.00",7/8/2012,R,KINGSTON ACCESSIBILITY TRAN LT
2012 - JUL,CS -Oth Operating Inc & Expend,Trading A/c Surpluses/Deficits,Transport-Contract Hire                 ,J01374,Transport Related Expenditure ,Contract Hire and Op Leasing  ,CC67,Mini Cab Hire -Soc Serv -Adult,742,"1,120.00",6/30/2012,R,ACCESS MOBILITY TRANSPORT LTD 
2012 - JUL,CS -Oth Operating Inc & Expend,Trading A/c Surpluses/Deficits,Transport-Contract Hire                 ,J01374,Transport Related Expenditure ,Contract Hire and Op Leasing  ,CC67,Mini Cab Hire -Soc Serv -Adult,743,976,6/30/2012,R,ACCESS MOBILITY TRANSPORT LTD 
2012 - JUL,CS -Oth Operating Inc & Expend,Trading A/c Surpluses/Deficits,Transport-Contract Hire                 ,J01374,Transport Related Expenditure ,Contract Hire and Op Leasing  ,CC67,Mini Cab Hire -Soc Serv -Adult,744,"1,188.00",6/30/2012,R,ACCESS MOBILITY TRANSPORT LTD 
2012 - JUL,CS -Oth Operating Inc & Expend,Trading A/c Surpluses/Deficits,Transport-Contract Hire                 ,J01374,Transport Related Expenditure ,Contract Hire and Op Leasing  ,CC67,Mini Cab Hire -Soc Serv -Adult,745,897,6/30/2012,R,CAPITAL CARS                  
2012 - JUL,CS -Oth Operating Inc & Expend,Trading A/c Surpluses/Deficits,Transport-Contract Hire                 ,J01374,Transport Related Expenditure ,Contract Hire and Op Leasing  ,CC67,Mini Cab Hire -Soc Serv -Adult,746,588,6/30/2012,R,CAPITAL CARS                  
2012 - JUL,CS -Oth Operating Inc & Expend,Trading A/c Surpluses/Deficits,Transport-Contract Hire                 ,J01374,Transport Related Expenditure ,Contract Hire and Op Leasing  ,CC67,Mini Cab Hire -Soc Serv -Adult,747,760,6/30/2012,R,AERIAL CAR SERVICES LTD       
2012 - JUL,CS -Oth Operating Inc & Expend,Trading A/c Surpluses/Deficits,Transport-Contract Hire                 ,J01374,Transport Related Expenditure ,Contract Hire and Op Leasing  ,CC67,Mini Cab Hire -Soc Serv -Adult,748,888,6/30/2012,R,AERIAL CAR SERVICES LTD       
2012 - JUL,CS -Oth Operating Inc & Expend,Trading A/c Surpluses/Deficits,Transport-Contract Hire                 ,J01374,Transport Related Expenditure ,Contract Hire and Op Leasing  ,CC67,Mini Cab Hire -Soc Serv -Adult,749,"2,516.00",6/30/2012,R,BARCLAYS ASSET & SALES FINANCE
2012 - JUL,CS -Oth Operating Inc & Expend,Trading A/c Surpluses/Deficits,Transport-Contract Hire                 ,J01374,Transport Related Expenditure ,Contract Hire and Op Leasing  ,CC67,Mini Cab Hire -Soc Serv -Adult,750,"1,496.00",7/15/2012,R,KINGSTON ACCESSIBILITY TRAN LT
2012 - JUL,CS -Oth Operating Inc & Expend,Trading A/c Surpluses/Deficits,Transport-Contract Hire                 ,J01374,Transport Related Expenditure ,Contract Hire and Op Leasing  ,CC67,Mini Cab Hire -Soc Serv -Adult,751,"1,226.00",6/30/2012,R,NVCAR HIRE LTD                
2012 - JUL,CS -Oth Operating Inc & Expend,Trading A/c Surpluses/Deficits,Transport-Contract Hire                 ,J01374,Transport Related Expenditure ,Contract Hire and Op Leasing  ,CC67,Mini Cab Hire -Soc Serv -Adult,752,634,7/29/2012,R,KINGSTON ACCESSIBILITY TRAN LT
2012 - JUL,CS -Oth Operating Inc & Expend,Trading A/c Surpluses/Deficits,Transport-Contract Hire                 ,J01374,Transport Related Expenditure ,Contract Hire and Op Leasing  ,CC68,Vehicle Hire Special Projects,753,976,7/1/2012,R,KINGSTON ACCESSIBILITY TRAN LT
2012 - JUL,CS -Oth Operating Inc & Expend,Trading A/c Surpluses/Deficits,Transport-Contract Hire                 ,J01374,Transport Related Expenditure ,Contract Hire and Op Leasing  ,CC68,Vehicle Hire Special Projects,754,785,6/30/2012,R,ACCESS MOBILITY TRANSPORT LTD 
2012 - JUL,CS -Oth Operating Inc & Expend,Trading A/c Surpluses/Deficits,Transport-Contract Hire                 ,J01374,Transport Related Expenditure ,Contract Hire and Op Leasing  ,CC68,Vehicle Hire Special Projects,755,"2,121.84",6/30/2012,R,ACCESS MOBILITY TRANSPORT LTD 
2012 - JUL,CS -Oth Operating Inc & Expend,Trading A/c Surpluses/Deficits,Transport-Contract Hire                 ,J01374,Transport Related Expenditure ,Contract Hire and Op Leasing  ,CC68,Vehicle Hire Special Projects,756,519.33,6/30/2012,R,GALPINS SERVICE               
2012 - JUL,CS -Oth Operating Inc & Expend,Trading A/c Surpluses/Deficits,Transport-Contract Hire                 ,J01374,Transport Related Expenditure ,Contract Hire and Op Leasing  ,CC68,Vehicle Hire Special Projects,757,976,7/8/2012,R,KINGSTON ACCESSIBILITY TRAN LT
2012 - JUL,CS -Oth Operating Inc & Expend,Trading A/c Surpluses/Deficits,Transport-Contract Hire                 ,J01374,Transport Related Expenditure ,Contract Hire and Op Leasing  ,CC68,Vehicle Hire Special Projects,758,"1,512.00",6/30/2012,R,ACCESS MOBILITY TRANSPORT LTD 
2012 - JUL,CS -Oth Operating Inc & Expend,Trading A/c Surpluses/Deficits,Transport-Contract Hire                 ,J01374,Transport Related Expenditure ,Contract Hire and Op Leasing  ,CC68,Vehicle Hire Special Projects,759,"1,024.00",6/30/2012,R,ACCESS MOBILITY TRANSPORT LTD 
2012 - JUL,CS -Oth Operating Inc & Expend,Trading A/c Surpluses/Deficits,Transport-Contract Hire                 ,J01374,Transport Related Expenditure ,Contract Hire and Op Leasing  ,CC68,Vehicle Hire Special Projects,760,"1,024.00",6/30/2012,R,ACCESS MOBILITY TRANSPORT LTD 
2012 - JUL,CS -Oth Operating Inc & Expend,Trading A/c Surpluses/Deficits,Transport-Contract Hire                 ,J01374,Transport Related Expenditure ,Contract Hire and Op Leasing  ,CC68,Vehicle Hire Special Projects,761,"2,040.00",6/30/2012,R,ACCESS MOBILITY TRANSPORT LTD 
2012 - JUL,CS -Oth Operating Inc & Expend,Trading A/c Surpluses/Deficits,Transport-Contract Hire                 ,J01374,Transport Related Expenditure ,Contract Hire and Op Leasing  ,CC68,Vehicle Hire Special Projects,762,720,6/30/2012,R,GALPINS SERVICE               
2012 - JUL,CS -Oth Operating Inc & Expend,Trading A/c Surpluses/Deficits,Transport-Contract Hire                 ,J01374,Transport Related Expenditure ,Contract Hire and Op Leasing  ,CC68,Vehicle Hire Special Projects,763,940,7/15/2012,R,KINGSTON ACCESSIBILITY TRAN LT
2012 - JUL,CS -Oth Operating Inc & Expend,Trading A/c Surpluses/Deficits,Transport-Contract Hire                 ,J01374,Transport Related Expenditure ,Contract Hire and Op Leasing  ,CC68,Vehicle Hire Special Projects,764,"1,088.00",6/29/2012,R,SILVERBURN FINANCE (UK) LTD   
2012 - JUL,CS -Oth Operating Inc & Expend,Trading A/c Surpluses/Deficits,Transport-Workshop                      ,J01376,Transport Related Expenditure ,Direct Transport Costs        ,CA02,Tyres,765,"1,610.00",6/26/2012,R,MORDEN TYRE SERVICES LTD      
2012 - JUL,CS -Oth Operating Inc & Expend,Trading A/c Surpluses/Deficits,Transport-Workshop                      ,J01376,Transport Related Expenditure ,Direct Transport Costs        ,CA02,Tyres,766,"1,020.00",6/27/2012,R,MORDEN TYRE SERVICES LTD      
2012 - JUL,CS -Oth Operating Inc & Expend,Trading A/c Surpluses/Deficits,Transport-Workshop                      ,J01376,Transport Related Expenditure ,Direct Transport Costs        ,CA02,Tyres,767,"1,270.00",7/5/2012,R,MORDEN TYRE SERVICES LTD      
2012 - JUL,CS -Oth Operating Inc & Expend,Trading A/c Surpluses/Deficits,Transport-Workshop                      ,J01376,Transport Related Expenditure ,Direct Transport Costs        ,CA02,Tyres,768,720,7/6/2012,R,MORDEN TYRE SERVICES LTD      
2012 - JUL,CS -Oth Operating Inc & Expend,Trading A/c Surpluses/Deficits,Transport-Workshop                      ,J01376,Transport Related Expenditure ,Direct Transport Costs        ,CA02,Tyres,769,670,7/6/2012,R,MORDEN TYRE SERVICES LTD      
2012 - JUL,CS -Oth Operating Inc & Expend,Trading A/c Surpluses/Deficits,Transport-Workshop                      ,J01376,Transport Related Expenditure ,Direct Transport Costs        ,CA02,Tyres,770,530,7/9/2012,R,MORDEN TYRE SERVICES LTD      
2012 - JUL,CS -Oth Operating Inc & Expend,Trading A/c Surpluses/Deficits,Transport-Workshop                      ,J01376,Transport Related Expenditure ,Direct Transport Costs        ,CA02,Tyres,771,615,7/19/2012,R,MORDEN TYRE SERVICES LTD      
2012 - JUL,CS -Oth Operating Inc & Expend,Trading A/c Surpluses/Deficits,Transport-Workshop                      ,J01376,Transport Related Expenditure ,Direct Transport Costs        ,CA04,R & M of Veh - General,772,"1,891.16",6/28/2012,R,FREIGHT TRANSPORT ASSOCIATION 
2012 - JUL,CS -Oth Operating Inc & Expend,Trading A/c Surpluses/Deficits,Transport-Workshop                      ,J01376,Transport Related Expenditure ,Direct Transport Costs        ,CA55,Specialist Maint. (Off Site),773,786.91,6/13/2012,R,GO PLANT                      
2012 - JUL,CS -Oth Operating Inc & Expend,Trading A/c Surpluses/Deficits,Transport-Workshop                      ,J01376,Transport Related Expenditure ,Direct Transport Costs        ,CA55,Specialist Maint. (Off Site),774,750.36,6/19/2012,R,DAWSON RENTALS BUS AND COACH  
2012 - JUL,CS -Oth Operating Inc & Expend,Trading A/c Surpluses/Deficits,Transport-Workshop                      ,J01376,Transport Related Expenditure ,Direct Transport Costs        ,CA55,Specialist Maint. (Off Site),775,586.8,6/19/2012,R,DAWSON RENTALS BUS AND COACH  
2012 - JUL,CS -Oth Operating Inc & Expend,Trading A/c Surpluses/Deficits,Transport-Workshop                      ,J01376,Transport Related Expenditure ,Direct Transport Costs        ,CA55,Specialist Maint. (Off Site),776,671.7,6/19/2012,R,DAWSON RENTALS BUS AND COACH  
2012 - JUL,CS -Oth Operating Inc & Expend,Trading A/c Surpluses/Deficits,Transport-Workshop                      ,J01376,Transport Related Expenditure ,Direct Transport Costs        ,CA55,Specialist Maint. (Off Site),777,791.1,6/26/2012,R,GVS HIRE LTD                  
2012 - JUL,CS -Oth Operating Inc & Expend,Trading A/c Surpluses/Deficits,Transport-Workshop                      ,J01376,Transport Related Expenditure ,Direct Transport Costs        ,CA55,Specialist Maint. (Off Site),778,835.5,7/2/2012,R,TENNANT UK CLEANING SOLUTIONS 
2012 - JUL,CS -Oth Operating Inc & Expend,Trading A/c Surpluses/Deficits,Transport-Workshop                      ,J01376,Transport Related Expenditure ,Direct Transport Costs        ,CA55,Specialist Maint. (Off Site),779,835.5,7/2/2012,R,TENNANT UK CLEANING SOLUTIONS 
2012 - JUL,CS -Oth Operating Inc & Expend,Trading A/c Surpluses/Deficits,Transport-Workshop                      ,J01376,Transport Related Expenditure ,Direct Transport Costs        ,CA55,Specialist Maint. (Off Site),780,"2,683.75",7/10/2012,R,DAGENHAM MOTORS               
2012 - JUL,CS -Oth Operating Inc & Expend,Trading A/c Surpluses/Deficits,Transport-Workshop                      ,J01376,Transport Related Expenditure ,Direct Transport Costs        ,CA56,Specialist Maint. (On Site),781,657.19,6/25/2012,R,DENNIS EAGLE LIMITED          
2012 - JUL,CS -Oth Operating Inc & Expend,Trading A/c Surpluses/Deficits,Transport-Workshop                      ,J01376,Transport Related Expenditure ,Direct Transport Costs        ,CA56,Specialist Maint. (On Site),782,618.75,7/4/2012,R,R.J.H.WELDING                 
2012 - JUL,CS -Oth Operating Inc & Expend,Trading A/c Surpluses/Deficits,Transport-Workshop                      ,J01376,Transport Related Expenditure ,Direct Transport Costs        ,CA56,Specialist Maint. (On Site),783,552.43,7/5/2012,R,TENNANT UK CLEANING SOLUTIONS 
2012 - JUL,CS -Oth Operating Inc & Expend,Trading A/c Surpluses/Deficits,Transport-Workshop                      ,J01376,Transport Related Expenditure ,Direct Transport Costs        ,CA72,Vehicle Parts,784,"1,536.90",5/30/2012,R,OPTIMUM OILS LTD              
2012 - JUL,CS -Oth Operating Inc & Expend,Trading A/c Surpluses/Deficits,Transport-Workshop                      ,J01376,Transport Related Expenditure ,Direct Transport Costs        ,CA72,Vehicle Parts,785,646.15,7/3/2012,R,COMMERCIAL & PLANT LTD        
2012 - JUL,CS -Oth Operating Inc & Expend,Trading A/c Surpluses/Deficits,Transport-Workshop                      ,J01376,Transport Related Expenditure ,Direct Transport Costs        ,CA72,Vehicle Parts,786,673.12,7/9/2012,R,COMMERCIAL & PLANT LTD        
2012 - JUL,CS -Oth Operating Inc & Expend,Trading A/c Surpluses/Deficits,Transport-Workshop                      ,J01376,Transport Related Expenditure ,Direct Transport Costs        ,CA72,Vehicle Parts,787,565.24,7/4/2012,R,DENNIS EAGLE LIMITED          
2012 - JUL,CS -Oth Operating Inc & Expend,Trading A/c Surpluses/Deficits,Transport-Workshop                      ,J01376,Transport Related Expenditure ,Direct Transport Costs        ,CA72,Vehicle Parts,788,932.37,6/21/2012,R,GRAYS TRUCK CENTRE LIMITED    
2012 - JUL,CS -Oth Operating Inc & Expend,Trading A/c Surpluses/Deficits,Transport-Workshop                      ,J01376,Transport Related Expenditure ,Direct Transport Costs        ,CA72,Vehicle Parts,789,"4,840.12",6/21/2012,R,GRAYS TRUCK CENTRE LIMITED    
2012 - JUL,CS -Oth Operating Inc & Expend,Trading A/c Surpluses/Deficits,Transport-Workshop                      ,J01376,Transport Related Expenditure ,Direct Transport Costs        ,CA72,Vehicle Parts,790,528.39,7/5/2012,R,JD ASSOCIATES                 
2012 - JUL,CS -Oth Operating Inc & Expend,Trading A/c Surpluses/Deficits,Transport-Workshop                      ,J01376,Transport Related Expenditure ,Direct Transport Costs        ,CA72,Vehicle Parts,791,932.76,6/28/2012,R,JD ASSOCIATES                 
2012 - JUL,CS -Oth Operating Inc & Expend,Trading A/c Surpluses/Deficits,Transport-Workshop                      ,J01376,Transport Related Expenditure ,Direct Transport Costs        ,CA72,Vehicle Parts,792,945.24,7/10/2012,R,DENNIS EAGLE LIMITED          
2012 - JUL,CS -Oth Operating Inc & Expend,Trading A/c Surpluses/Deficits,Transport-Workshop                      ,J01376,Transport Related Expenditure ,Direct Transport Costs        ,CA72,Vehicle Parts,793,549.43,7/12/2012,R,DENNIS EAGLE LIMITED          
2012 - JUL,CS -Oth Operating Inc & Expend,Trading A/c Surpluses/Deficits,Transport-Workshop                      ,J01376,Transport Related Expenditure ,Direct Transport Costs        ,CA72,Vehicle Parts,794,701.62,7/13/2012,R,CITROEN LONDON WEST           
2012 - JUL,CS -Oth Operating Inc & Expend,Trading A/c Surpluses/Deficits,Transport-Workshop                      ,J01376,Transport Related Expenditure ,Direct Transport Costs        ,CA72,Vehicle Parts,795,715,7/10/2012,R,TENNANTS                      
2012 - JUL,CS -Oth Operating Inc & Expend,Trading A/c Surpluses/Deficits,Transport-Workshop                      ,J01376,Transport Related Expenditure ,Direct Transport Costs        ,CA72,Vehicle Parts,796,549.43,7/16/2012,R,DENNIS EAGLE LIMITED          
2012 - JUL,CS -Oth Operating Inc & Expend,Trading A/c Surpluses/Deficits,Transport-Workshop                      ,J01376,Transport Related Expenditure ,Contract Hire and Op Leasing  ,CC60,Vehicle Hire for LB Sutton,797,"1,036.00",6/30/2012,R,ACCESS MOBILITY TRANSPORT LTD 
2012 - JUL,CS -Oth Operating Inc & Expend,Trading A/c Surpluses/Deficits,Transport-Workshop                      ,J01376,Transport Related Expenditure ,Contract Hire and Op Leasing  ,CC60,Vehicle Hire for LB Sutton,798,"1,140.00",6/29/2012,R,CALVERTON FACTORS LTD         
2012 - JUL,CS -Oth Operating Inc & Expend,Trading A/c Surpluses/Deficits,Transport-Workshop                      ,J01376,Transport Related Expenditure ,Contract Hire and Op Leasing  ,CC60,Vehicle Hire for LB Sutton,799,"1,376.00",6/30/2012,R,BARCLAYS ASSET & SALES FINANCE
2012 - JUL,CS -Oth Operating Inc & Expend,Trading A/c Surpluses/Deficits,Transport-Workshop                      ,J01376,Transport Related Expenditure ,Contract Hire and Op Leasing  ,CC60,Vehicle Hire for LB Sutton,800,900,6/30/2012,R,BARCLAYS ASSET & SALES FINANCE
2012 - JUL,CS -Oth Operating Inc & Expend,Trading A/c Surpluses/Deficits,Transport-Workshop                      ,J01376,Transport Related Expenditure ,Contract Hire and Op Leasing  ,CC60,Vehicle Hire for LB Sutton,801,"3,402.00",6/30/2012,R,BARCLAYS ASSET & SALES FINANCE
2012 - JUL,CS -Oth Operating Inc & Expend,Trading A/c Surpluses/Deficits,Transport-Workshop                      ,J01376,Transport Related Expenditure ,Contract Hire and Op Leasing  ,CC60,Vehicle Hire for LB Sutton,802,720,6/30/2012,R,BARCLAYS ASSET & SALES FINANCE
2012 - JUL,CS -Oth Operating Inc & Expend,Trading A/c Surpluses/Deficits,Transport-Workshop                      ,J01376,Transport Related Expenditure ,Contract Hire and Op Leasing  ,CC60,Vehicle Hire for LB Sutton,803,"2,240.00",6/29/2012,R,BRUNSWICK CARS LTD            
2012 - JUL,CS -Oth Operating Inc & Expend,Trading A/c Surpluses/Deficits,Transport-Workshop                      ,J01376,Transport Related Expenditure ,Contract Hire and Op Leasing  ,CC60,Vehicle Hire for LB Sutton,804,592,6/30/2012,R,CAPITAL CARS                  
2012 - JUL,CS -Oth Operating Inc & Expend,Trading A/c Surpluses/Deficits,Transport-Workshop                      ,J01376,Transport Related Expenditure ,Contract Hire and Op Leasing  ,CC60,Vehicle Hire for LB Sutton,805,595,6/30/2012,R,KENDALL CARS                  
2012 - JUL,CS -Oth Operating Inc & Expend,Trading A/c Surpluses/Deficits,Transport-Workshop                      ,J01376,Transport Related Expenditure ,Contract Hire and Op Leasing  ,CC60,Vehicle Hire for LB Sutton,806,840,6/29/2012,R,CALVERTON FACTORS LTD         
2012 - JUL,CS -Oth Operating Inc & Expend,Trading A/c Surpluses/Deficits,Transport-Workshop                      ,J01376,Transport Related Expenditure ,Contract Hire and Op Leasing  ,CC60,Vehicle Hire for LB Sutton,807,"1,575.00",6/29/2012,R,CALVERTON FACTORS LTD         
2012 - JUL,CS -Oth Operating Inc & Expend,Trading A/c Surpluses/Deficits,Transport-Workshop                      ,J01376,Transport Related Expenditure ,Contract Hire and Op Leasing  ,CC60,Vehicle Hire for LB Sutton,808,"1,440.00",6/29/2012,R,CALVERTON FACTORS LTD         
2012 - JUL,CS -Oth Operating Inc & Expend,Trading A/c Surpluses/Deficits,Transport-Workshop                      ,J01376,Transport Related Expenditure ,Contract Hire and Op Leasing  ,CC60,Vehicle Hire for LB Sutton,809,"1,545.00",6/29/2012,R,BRUNSWICK CARS LTD            
2012 - JUL,CS -Oth Operating Inc & Expend,Trading A/c Surpluses/Deficits,Transport-Workshop                      ,J01376,Transport Related Expenditure ,Contract Hire and Op Leasing  ,CC60,Vehicle Hire for LB Sutton,810,"1,785.00",6/29/2012,R,BRUNSWICK CARS LTD            
2012 - JUL,CS -Oth Operating Inc & Expend,Trading A/c Surpluses/Deficits,Transport-Workshop                      ,J01376,Transport Related Expenditure ,Contract Hire and Op Leasing  ,CC65,Vehicle Hire for Education,811,600,6/30/2012,R,BARCLAYS ASSET & SALES FINANCE
2012 - JUL,CS -Oth Operating Inc & Expend,Trading A/c Surpluses/Deficits,Transport-Workshop                      ,J01376,Transport Related Expenditure ,Contract Hire and Op Leasing  ,CC65,Vehicle Hire for Education,812,"2,744.00",6/30/2012,R,BARCLAYS ASSET & SALES FINANCE
2012 - JUL,CS -Oth Operating Inc & Expend,Trading A/c Surpluses/Deficits,Transport-Workshop                      ,J01376,Transport Related Expenditure ,Contract Hire and Op Leasing  ,CC65,Vehicle Hire for Education,813,"1,140.00",6/30/2012,R,BARCLAYS ASSET & SALES FINANCE
2012 - JUL,CS -Oth Operating Inc & Expend,Trading A/c Surpluses/Deficits,Transport-Workshop                      ,J01376,Transport Related Expenditure ,Contract Hire and Op Leasing  ,CC65,Vehicle Hire for Education,814,720,6/30/2012,R,BARCLAYS ASSET & SALES FINANCE
2012 - JUL,CS -Oth Operating Inc & Expend,Trading A/c Surpluses/Deficits,Transport-Workshop                      ,J01376,Transport Related Expenditure ,Contract Hire and Op Leasing  ,CC65,Vehicle Hire for Education,815,"1,785.00",6/30/2012,R,REDACTED
2012 - JUL,CS -Oth Operating Inc & Expend,Trading A/c Surpluses/Deficits,Transport-Workshop                      ,J01376,Supplies & Services           ,Equip Furniture/Materials     ,DA01,Equipment - R & M,816,505.44,7/1/2012,R,SUNLIGHT SERVICE GROUP LTD    
2012 - JUL,CS -Oth Operating Inc & Expend,Trading A/c Surpluses/Deficits,Transport-Workshop                      ,J01376,Supplies & Services           ,Equip Furniture/Materials     ,DA01,Equipment - R & M,817,620.41,6/29/2012,R,THE COMPRESSED AIR CENTRE LTD 
2012 - JUL,Cultural Env Reg&Plan Services,SMSS (Env),Estates Mgt                             ,J01420,Supplies & Services           ,Comms and Computing           ,DG07,Computer Software,818,"3,375.00",6/22/2012,R,KEL COMPUTING LTD             
2012 - JUL,Cultural Env Reg&Plan Services,SMSS (Env),Estates Mgt                             ,J01420,Supplies & Services           ,Comms and Computing           ,DG07,Computer Software,819,"1,050.00",7/5/2012,R,KEL COMPUTING LTD             
2012 - JUL,CS -Oth Operating Inc & Expend,INVESTMENT PROPERTIES,Other Misc Props Budget                 ,J01526,Premises Related Expenditure  ,Energy Costs                  ,BB03,Gas (incl. Butane),820,715.07,7/9/2012,R,SOUTHERN ELECTRIC             
2012 - JUL,CS -Oth Operating Inc & Expend,INVESTMENT PROPERTIES,Durnsford Rd Budget                     ,J01580,Premises Related Expenditure  ,RepairsAlterations&MtceOfBldgs,BA79,Security of Premises,821,"1,014.00",6/30/2012,R,OM METROPOLITAN TOTAL SEC.LTD 
2012 - JUL,CS -Oth Operating Inc & Expend,INVESTMENT PROPERTIES,Durnsford Rd Budget                     ,J01580,Premises Related Expenditure  ,RepairsAlterations&MtceOfBldgs,BA79,Security of Premises,822,"1,040.00",5/31/2012,R,OM METROPOLITAN TOTAL SEC.LTD 
2012 - JUL,CS -Oth Operating Inc & Expend,INVESTMENT PROPERTIES,Durnsford Rd Budget                     ,J01580,Premises Related Expenditure  ,RepairsAlterations&MtceOfBldgs,BA79,Security of Premises,823,923,3/1/2012,R,OM METROPOLITAN TOTAL SEC.LTD 
2012 - JUL,Childrens & Education Services,Schools Strategic Management,Senior Mngt & Support Services          ,K01005,Supplies & Services           ,Services                      ,DF03,Consultants,824,"2,200.00",6/29/2012,R,DE GIDLOW BUSINESS            
2012 - JUL,Childrens & Education Services,Schools Strategic Management,Senior Mngt & Support Services          ,K01005,Supplies & Services           ,Services                      ,DF03,Consultants,825,"1,500.00",7/6/2012,R,MOORE INSIGHT LIMITED         
2012 - JUL,Childrens & Education Services,Schools Strategic Management,Senior Mngt & Support Services          ,K01005,Supplies & Services           ,Services                      ,DF11,Counsel's fees,826,550,6/29/2012,R,REDACTED
2012 - JUL,Childrens & Education Services,Schools Strategic Management,Senior Mngt & Support Services          ,K01005,Supplies & Services           ,Services                      ,DF11,Counsel's fees,827,575,3/2/2012,R,REDACTED
2012 - JUL,Childrens & Education Services,Schools Strategic Management,Senior Mngt & Support Services          ,K01005,Supplies & Services           ,Services                      ,DF11,Counsel's fees,828,790,6/6/2012,R,REDACTED
2012 - JUL,Childrens & Education Services,Schools Strategic Management,Senior Mngt & Support Services          ,K01005,Supplies & Services           ,Services                      ,DF11,Counsel's fees,829,520,4/17/2012,R,REDACTED
2012 - JUL,Childrens & Education Services,Schools Strategic Management,Senior Mngt & Support Services          ,K01005,Supplies & Services           ,Services                      ,DF11,Counsel's fees,830,520,4/23/2012,R,REDACTED
2012 - JUL,Childrens & Education Services,Schools Strategic Management,Senior Mngt & Support Services          ,K01005,Supplies & Services           ,Services                      ,DF11,Counsel's fees,831,550,5/28/2012,R,REDACTED
